﻿Directorate,Service,Division,Responsible Unit,Expense Type,Payment Date,Trans No,Net Amount,Supplier Name
Children's Services,Children's Social Care,Children Looked After,S23-Resi-P&V/OLA-Child Home,Childrens Act Section 23 - Placement Fee,03/04/2017,3843576,"14,000.00",Era Care Ltd
Children's Services,Children's Social Care,Support Service and Management Costs,Welfare Catering,Kitchen Supplies - Food and Beverages,03/04/2017,3843597,747.96,Thomas Ridley & Son Ltd
Children's Services,Children's Social Care,Support Service and Management Costs,Schools Catering,Kitchen Supplies - Food and Beverages,03/04/2017,3843777,362.90,Thomas Ridley & Son Ltd
Children's Services,Children's Social Care,Support Service and Management Costs,Schools Catering,Kitchen Supplies - Food and Beverages,03/04/2017,3843783,746.82,Thomas Ridley & Son Ltd
Children's Services,Children's Social Care,Support Service and Management Costs,Schools Catering,Kitchen Supplies - Food and Beverages,03/04/2017,3843791,659.05,Thomas Ridley & Son Ltd
Children's Services,Children's Social Care,Support Service and Management Costs,Schools Catering,Kitchen Supplies - Food and Beverages,03/04/2017,3843795,335.06,Thomas Ridley & Son Ltd
Children's Services,Children's Social Care,Support Service and Management Costs,Schools Catering,Kitchen Supplies - Food and Beverages,03/04/2017,3843797,818.61,Thomas Ridley & Son Ltd
Children's Services,Children's Social Care,Support Service and Management Costs,Schools Catering,Kitchen Supplies - Food and Beverages,03/04/2017,3843798,445.96,Thomas Ridley & Son Ltd
Children's Services,Children's Social Care,Support Service and Management Costs,Schools Catering,Kitchen Supplies - Food and Beverages,03/04/2017,3843799,328.84,Thomas Ridley & Son Ltd
Children's Services,Children's Social Care,Support Service and Management Costs,Schools Catering,Kitchen Supplies - Food and Beverages,03/04/2017,3843800,282.24,Thomas Ridley & Son Ltd
Children's Services,Children's Social Care,Support Service and Management Costs,Schools Catering,Kitchen Supplies - Food and Beverages,03/04/2017,3843801,314.52,Thomas Ridley & Son Ltd
Children's Services,Children's Social Care,Support Service and Management Costs,Schools Catering,Kitchen Supplies - Food and Beverages,03/04/2017,3843802,276.00,Thomas Ridley & Son Ltd
Children's Services,Children's Social Care,Support Service and Management Costs,Schools Catering,Kitchen Supplies - Food and Beverages,03/04/2017,3843803,282.68,Thomas Ridley & Son Ltd
Children's Services,Children's Social Care,Support Service and Management Costs,Schools Catering,Kitchen Supplies - Food and Beverages,03/04/2017,3843806,263.20,Thomas Ridley & Son Ltd
Children's Services,Children's Social Care,Support Service and Management Costs,Schools Catering,Kitchen Supplies - Food and Beverages,03/04/2017,3843824,429.00,Thomas Ridley & Son Ltd
Children's Services,Children's Social Care,Support Service and Management Costs,Schools Catering,Kitchen Supplies - Food and Beverages,03/04/2017,3843825,529.38,Thomas Ridley & Son Ltd
Children's Services,Children's Social Care,Support Service and Management Costs,Schools Catering,Kitchen Supplies - Food and Beverages,03/04/2017,3843828,722.10,Thomas Ridley & Son Ltd
Children's Services,Children's Social Care,Support Service and Management Costs,Schools Catering,Kitchen Supplies - Food and Beverages,03/04/2017,3843829,531.26,Thomas Ridley & Son Ltd
Children's Services,Children's Social Care,Support Service and Management Costs,Schools Catering,Kitchen Supplies - Food and Beverages,03/04/2017,3843830,293.13,Thomas Ridley & Son Ltd
Children's Services,Children's Social Care,Support Service and Management Costs,Schools Catering,Kitchen Supplies - Food and Beverages,03/04/2017,3843831,608.54,Thomas Ridley & Son Ltd
Children's Services,Children's Social Care,Support Service and Management Costs,Schools Catering,Kitchen Supplies - Food and Beverages,03/04/2017,3843835,568.13,Thomas Ridley & Son Ltd
Children's Services,Children's Social Care,Support Service and Management Costs,Schools Catering,Kitchen Supplies - Food and Beverages,03/04/2017,3843836,373.39,Thomas Ridley & Son Ltd
Children's Services,Children's Social Care,Support Service and Management Costs,Schools Catering,Kitchen Supplies - Food and Beverages,03/04/2017,3843837,659.84,Thomas Ridley & Son Ltd
Children's Services,Children's Social Care,Support Service and Management Costs,Schools Catering,Kitchen Supplies - Food and Beverages,03/04/2017,3843838,511.22,Thomas Ridley & Son Ltd
Children's Services,Children's Social Care,Support Service and Management Costs,Schools Catering,Kitchen Supplies - Food and Beverages,03/04/2017,3843839,311.72,Thomas Ridley & Son Ltd
Children's Services,Children's Social Care,Support Service and Management Costs,Schools Catering,Kitchen Supplies - Food and Beverages,03/04/2017,3843841,"1,753.49",Thomas Ridley & Son Ltd
Children's Services,Children's Social Care,Support Service and Management Costs,Schools Catering,Kitchen Supplies - Food and Beverages,03/04/2017,3843842,713.59,Thomas Ridley & Son Ltd
Children's Services,Children's Social Care,Support Service and Management Costs,Schools Catering,Kitchen Supplies - Food and Beverages,03/04/2017,3843848,887.45,Thomas Ridley & Son Ltd
Children's Services,Children's Social Care,Support Service and Management Costs,Schools Catering,Kitchen Supplies - Food and Beverages,03/04/2017,3843850,363.71,Thomas Ridley & Son Ltd
Children's Services,Children's Social Care,Support Service and Management Costs,Schools Catering,Kitchen Supplies - Food and Beverages,03/04/2017,3843851,653.36,Thomas Ridley & Son Ltd
Children's Services,Children's Social Care,Support Service and Management Costs,Schools Catering,Kitchen Supplies - Food and Beverages,03/04/2017,3843852,851.56,Thomas Ridley & Son Ltd
Children's Services,Children's Social Care,Support Service and Management Costs,Schools Catering,Kitchen Supplies - Food and Beverages,03/04/2017,3843853,440.76,Thomas Ridley & Son Ltd
Children's Services,Children's Social Care,Support Service and Management Costs,Schools Catering,Kitchen Supplies - Food and Beverages,03/04/2017,3843858,322.54,Thomas Ridley & Son Ltd
Children's Services,Children's Social Care,Support Service and Management Costs,Schools Catering,Kitchen Supplies - Food and Beverages,03/04/2017,3843860,579.13,Thomas Ridley & Son Ltd
Children's Services,Children's Social Care,Support Service and Management Costs,Schools Catering,Kitchen Supplies - Food and Beverages,03/04/2017,3843862,"1,145.40",Thomas Ridley & Son Ltd
Children's Services,Children's Social Care,Support Service and Management Costs,Schools Catering,Kitchen Supplies - Food and Beverages,03/04/2017,3843863,406.46,Thomas Ridley & Son Ltd
Children's Services,Children's Social Care,Support Service and Management Costs,Schools Catering,Kitchen Supplies - Food and Beverages,03/04/2017,3843866,289.21,Thomas Ridley & Son Ltd
Children's Services,Children's Social Care,Support Service and Management Costs,Schools Catering,Kitchen Supplies - Food and Beverages,03/04/2017,3843870,338.41,Thomas Ridley & Son Ltd
Children's Services,Children's Social Care,Support Service and Management Costs,Schools Catering,Kitchen Supplies - Food and Beverages,03/04/2017,3843871,454.11,Thomas Ridley & Son Ltd
Children's Services,Children's Social Care,Support Service and Management Costs,Schools Catering,Kitchen Supplies - Food and Beverages,03/04/2017,3843872,310.53,Thomas Ridley & Son Ltd
Children's Services,Children's Social Care,Support Service and Management Costs,Schools Catering,Kitchen Supplies - Food and Beverages,03/04/2017,3843874,426.89,Thomas Ridley & Son Ltd
Children's Services,Children's Social Care,Support Service and Management Costs,Schools Catering,Kitchen Supplies - Food and Beverages,03/04/2017,3843875,380.04,Thomas Ridley & Son Ltd
Children's Services,Children's Social Care,Support Service and Management Costs,Schools Catering,Kitchen Supplies - Food and Beverages,03/04/2017,3843877,433.76,Thomas Ridley & Son Ltd
Children's Services,Children's Social Care,Support Service and Management Costs,Schools Catering,Kitchen Supplies - Food and Beverages,03/04/2017,3843879,"1,058.13",Thomas Ridley & Son Ltd
Children's Services,Children's Social Care,Support Service and Management Costs,Schools Catering,Kitchen Supplies - Food and Beverages,03/04/2017,3843880,661.04,Thomas Ridley & Son Ltd
Children's Services,Children's Social Care,Support Service and Management Costs,Schools Catering,Kitchen Supplies - Food and Beverages,03/04/2017,3843883,262.56,Thomas Ridley & Son Ltd
Children's Services,Children's Social Care,Support Service and Management Costs,Schools Catering,Kitchen Supplies - Food and Beverages,03/04/2017,3843885,305.35,Thomas Ridley & Son Ltd
Children's Services,Children's Social Care,Support Service and Management Costs,Schools Catering,Kitchen Supplies - Food and Beverages,03/04/2017,3843974,460.17,Thomas Ridley & Son Ltd
Children's Services,Children's Social Care,Children Looked After,S23 Fam Pl P&V-F/Care,Childrens Act Section 23 - All Contact Expenses,03/04/2017,3844012,269.50,A. A. Agency Ltd
Children's Services,Children's Social Care,Support Service and Management Costs,Schools Catering,Kitchen Supplies - Food and Beverages,03/04/2017,3844093,570.41,Thomas Ridley & Son Ltd
Children's Services,Children's Social Care,Support Service and Management Costs,Schools Catering,Kitchen Supplies - Food and Beverages,03/04/2017,3844119,313.82,Thomas Ridley & Son Ltd
Children's Services,Children's Social Care,Support Service and Management Costs,Schools Catering,Kitchen Supplies - Food and Beverages,03/04/2017,3844144,"1,888.50",Thomas Ridley & Son Ltd
Children's Services,Children's Social Care,Support Service and Management Costs,Schools Catering,Kitchen Supplies - Food and Beverages,03/04/2017,3844153,965.75,Thomas Ridley & Son Ltd
Children's Services,Children's Social Care,Support Service and Management Costs,Schools Catering,Kitchen Supplies - Food and Beverages,03/04/2017,3844162,357.06,Thomas Ridley & Son Ltd
Children's Services,Children's Social Care,Support Service and Management Costs,Schools Catering,Kitchen Supplies - Food and Beverages,03/04/2017,3844163,478.55,Prescott-Thomas LTD.
Children's Services,Children's Social Care,Support Service and Management Costs,Schools Catering,Kitchen Supplies - Food and Beverages,03/04/2017,3844169,482.13,Thomas Ridley & Son Ltd
Children's Services,Children's Social Care,Support Service and Management Costs,Schools Catering,Kitchen Supplies - Food and Beverages,03/04/2017,3844177,273.96,Thomas Ridley & Son Ltd
Children's Services,Children's Social Care,Support Service and Management Costs,Schools Catering,Kitchen Supplies - Food and Beverages,03/04/2017,3844183,271.78,Thomas Ridley & Son Ltd
Children's Services,Children's Social Care,Support Service and Management Costs,Schools Catering,Kitchen Supplies - Food and Beverages,03/04/2017,3844184,268.94,Prescott-Thomas LTD.
Children's Services,Children's Social Care,Support Service and Management Costs,Schools Catering,Kitchen Supplies - Food and Beverages,03/04/2017,3844193,364.52,Thomas Ridley & Son Ltd
Children's Services,Children's Social Care,Support Service and Management Costs,Schools Catering,Kitchen Supplies - Food and Beverages,03/04/2017,3844199,692.99,Thomas Ridley & Son Ltd
Children's Services,Children's Social Care,Support Service and Management Costs,Schools Catering,Kitchen Supplies - Food and Beverages,03/04/2017,3844202,419.18,Thomas Ridley & Son Ltd
Children's Services,Children's Social Care,Support Service and Management Costs,Schools Catering,Kitchen Supplies - Food and Beverages,03/04/2017,3844206,785.60,Thomas Ridley & Son Ltd
Children's Services,Children's Social Care,Support Service and Management Costs,Schools Catering,Kitchen Supplies - Food and Beverages,03/04/2017,3844209,845.66,Thomas Ridley & Son Ltd
Children's Services,Children's Social Care,Support Service and Management Costs,Schools Catering,Kitchen Supplies - Food and Beverages,03/04/2017,3844225,623.01,Thomas Ridley & Son Ltd
Children's Services,Children's Social Care,Support Service and Management Costs,Schools Catering,Kitchen Supplies - Food and Beverages,03/04/2017,3844283,257.15,Prescott-Thomas LTD.
Children's Services,Children's Social Care,Support Service and Management Costs,Schools Catering,Kitchen Supplies - Food and Beverages,03/04/2017,3844315,287.44,Prescott-Thomas LTD.
Children's Services,Education Services,Other Strategic Functions,High Needs Academies & Free Schs,Third Party Payments - Payments to Schools,03/04/2017,3847468,"9,190.00",Canary Wharf College
Children's Services,Cultural and Related Services,Recreation & Sport,GLL Sports Centres,Payments to Private Contractors - Management Fee,03/04/2017,3847484,"178,109.59",Greenwich Leisure LTD
Children's Services,Children's Social Care,Children Looked After,S23-Other-Semi-Ind. Unit,Childrens Act Section 23 - Placement Fee,03/04/2017,3848141,"3,671.99",Transforming Lives Co
Children's Services,Children's Social Care,Children Looked After,S23-Other-Semi-Ind. Unit,Childrens Act Section 23 - Placement Fee,03/04/2017,3848142,"3,810.67",Heartwood Outreach Services Ltd
Children's Services,Children's Social Care,Children Looked After,S23-Other-Semi-Ind. Unit,Childrens Act Section 23 - Placement Fee,03/04/2017,3848143,"3,752.67",Heartwood Outreach Services Ltd
Children's Services,Children's Social Care,Children Looked After,S23-Other-Semi-Ind. Unit,Childrens Act Section 23 - Placement Fee,03/04/2017,3848226,"3,472.00",Transforming Lives Co
Children's Services,Children's Social Care,Support Service and Management Costs,Schools Catering,Kitchen Supplies - Food and Beverages,03/04/2017,3849182,544.46,William White Meats Ltd
Children's Services,Children's Social Care,Support Service and Management Costs,Schools Catering,Kitchen Supplies - Food and Beverages,03/04/2017,3849202,494.84,William White Meats Ltd
Children's Services,Children's Social Care,Support Service and Management Costs,Schools Catering,Kitchen Supplies - Food and Beverages,03/04/2017,3849205,420.03,William White Meats Ltd
Children's Services,Children's Social Care,Support Service and Management Costs,Schools Catering,Kitchen Supplies - Food and Beverages,03/04/2017,3849214,593.25,William White Meats Ltd
Children's Services,Children's Social Care,Support Service and Management Costs,Schools Catering,Kitchen Supplies - Food and Beverages,03/04/2017,3849229,335.50,William White Meats Ltd
Children's Services,Children's Social Care,Support Service and Management Costs,Schools Catering,Kitchen Supplies - Food and Beverages,03/04/2017,3849235,384.48,William White Meats Ltd
Children's Services,Children's Social Care,Support Service and Management Costs,Schools Catering,Kitchen Supplies - Food and Beverages,03/04/2017,3849238,320.97,William White Meats Ltd
Children's Services,Children's Social Care,Support Service and Management Costs,Schools Catering,Kitchen Supplies - Food and Beverages,03/04/2017,3849296,275.58,William White Meats Ltd
Children's Services,Children's Social Care,Support Service and Management Costs,Schools Catering,Kitchen Supplies - Food and Beverages,03/04/2017,3849300,918.57,William White Meats Ltd
Children's Services,Children's Social Care,Support Service and Management Costs,Schools Catering,Kitchen Supplies - Food and Beverages,03/04/2017,3849304,603.43,William White Meats Ltd
Children's Services,Children's Social Care,Support Service and Management Costs,Schools Catering,Kitchen Supplies - Food and Beverages,03/04/2017,3849308,688.72,William White Meats Ltd
Children's Services,Children's Social Care,Support Service and Management Costs,Schools Catering,Kitchen Supplies - Food and Beverages,03/04/2017,3849316,567.84,William White Meats Ltd
Children's Services,Children's Social Care,Support Service and Management Costs,Schools Catering,Kitchen Supplies - Food and Beverages,03/04/2017,3849320,352.60,William White Meats Ltd
Children's Services,Children's Social Care,Support Service and Management Costs,Schools Catering,Kitchen Supplies - Food and Beverages,03/04/2017,3849323,327.72,William White Meats Ltd
Children's Services,Children's Social Care,Support Service and Management Costs,Schools Catering,Kitchen Supplies - Food and Beverages,03/04/2017,3849326,902.80,William White Meats Ltd
Children's Services,Children's Social Care,Support Service and Management Costs,Schools Catering,Kitchen Supplies - Food and Beverages,03/04/2017,3849332,263.46,William White Meats Ltd
Children's Services,Children's Social Care,Support Service and Management Costs,Schools Catering,Kitchen Supplies - Food and Beverages,03/04/2017,3849341,386.81,William White Meats Ltd
Children's Services,Children's Social Care,Support Service and Management Costs,Schools Catering,Kitchen Supplies - Food and Beverages,03/04/2017,3849344,300.31,William White Meats Ltd
Children's Services,Children's Social Care,Support Service and Management Costs,Schools Catering,Kitchen Supplies - Food and Beverages,03/04/2017,3849347,474.06,William White Meats Ltd
Children's Services,Children's Social Care,Support Service and Management Costs,Schools Catering,Kitchen Supplies - Food and Beverages,03/04/2017,3849350,276.81,William White Meats Ltd
Children's Services,Children's Social Care,Support Service and Management Costs,Schools Catering,Kitchen Supplies - Food and Beverages,03/04/2017,3849368,405.20,William White Meats Ltd
Children's Services,Children's Social Care,Support Service and Management Costs,Schools Catering,Kitchen Supplies - Food and Beverages,03/04/2017,3849371,691.20,William White Meats Ltd
Children's Services,Children's Social Care,Support Service and Management Costs,Schools Catering,Kitchen Supplies - Food and Beverages,03/04/2017,3849395,689.12,William White Meats Ltd
Children's Services,Children's Social Care,Support Service and Management Costs,Schools Catering,Kitchen Supplies - Food and Beverages,03/04/2017,3849404,339.70,William White Meats Ltd
Children's Services,Children's Social Care,Support Service and Management Costs,Schools Catering,Kitchen Supplies - Food and Beverages,03/04/2017,3849412,862.22,William White Meats Ltd
Children's Services,Children's Social Care,Support Service and Management Costs,Schools Catering,Kitchen Supplies - Food and Beverages,03/04/2017,3849431,423.80,William White Meats Ltd
Children's Services,Children's Social Care,Support Service and Management Costs,Schools Catering,Kitchen Supplies - Food and Beverages,03/04/2017,3849437,357.78,William White Meats Ltd
Children's Services,Children's Social Care,Support Service and Management Costs,Schools Catering,Kitchen Supplies - Food and Beverages,03/04/2017,3849440,261.06,William White Meats Ltd
Children's Services,Children's Social Care,Services for young people,Outdoor,Educational/Training Supplies - Curriculum Visits/Activities,03/04/2017,3849759,256.33,Specialist Computer Centres PLC
Children's Services,Adult Social Care,Support Service and Management Costs,Org Development L&D Training,Services - Professional Fees - Financial Services Fees,03/04/2017,3852157,"1,200.00",Middlesex University
Children's Services,Adult Social Care,Support Service and Management Costs,Org Development L&D Training,Services - Professional Fees - Financial Services Fees,03/04/2017,3853034,"1,200.00",Middlesex University
Children's Services,Children's Social Care,Other Children's and Family Services,Permanent Placements,Social Care - Others,03/04/2017,3853452,"5,264.06",Coram Academy Ltd T/A CoramBAAF
Children's Services,Children's Social Care,Support Service and Management Costs,Welfare Catering,Kitchen Supplies - Food and Beverages,03/04/2017,3853866,506.03,William White Meats Ltd
Children's Services,Education Services,Other Strategic Functions,Music Trading Account,Educational/Training Supplies - Arts & Crafts,03/04/2017,3855658,"1,402.00",Redacted Section 40 FOI ACT
Children's Services,Children's Social Care,Commissioning and Social Work,Advice and Assessment Section 17,Childrens Act Section 17 - Contract Expenses,03/04/2017,3855815,451.00,A. A. Agency Ltd
Children's Services,Education Services,Early Years,3&4 Year old PVI�s,Third Party Payments - Voluntary Associations,03/04/2017,3861144,"68,400.00",BRIGHT HORIZONS FAMILY SOLUTION
Children's Services,Education Services,Early Years,Meath Gardens CC,Community Equipment  Supplies - Non Store Items,03/04/2017,3861726,749.65,ESPO
Children's Services,Children's Social Care,Children Looked After,C.B.C & Fam.Prev/Support-Mgmnt,Third Party Payments - Staff External Training (UK Based),03/04/2017,3864300,"9,580.00",TCS SERVICES LTD
Children's Services,Children's Social Care,Children Looked After,C.B.C & Fam.Prev/Support-Mgmnt,Third Party Payments - Staff External Training (UK Based),03/04/2017,3864359,"23,515.00",TCS SERVICES LTD
Children's Services,Children's Social Care,Family Support Services,CNN Pool: Joint Family Support,Social Care - Homecare,03/04/2017,3864796,257.25,Allied Healthcare Group LTD
Children's Services,Education Services,Other Strategic Functions,Schools Library,Events & Exhibition Supplies,03/04/2017,3864833,"2,029.00",Louai Alhenawi
Children's Services,Children's Social Care,Children Looked After,Staying Put,Childrens Act Section 23 - Placement Fee,03/04/2017,3864835,"1,749.33",Children First Fostering Agency LTD
Children's Services,Children's Social Care,Children Looked After,S23 Fam Pl P&V-F/Care,Childrens Act Section 23 - Placement Fee,03/04/2017,3864836,"3,173.78",Children First Fostering Agency LTD
Children's Services,Cultural and Related Services,Open Spaces,Parks & Open Spaces Man&Admin,Events & Exhibition Supplies,03/04/2017,3864904,"3,930.00",Irvin Leisure Ltd
Children's Services,Cultural and Related Services,Culture & Heritage,Arts-Park Events,Events & Exhibition Supplies,03/04/2017,3865257,"3,000.00",EAST LONDON CHINESE COMMUNITY CENTRE
Children's Services,Children's Social Care,Children Looked After,Virtual School PPG,Training Expenses - Staff External Training (UK Based),03/04/2017,3865298,350.00,Fixup Enterprise
Children's Services,Children's Social Care,Children Looked After,Leaving Care-UASC,Leaving Care Financial Assistance - Supp Accom/Hous Rents,03/04/2017,3865313,"1,308.11",Newhaven 16 Plus
Children's Services,Children's Social Care,Children Looked After,Leaving Care-UASC,Leaving Care Financial Assistance - Supp Accom/Hous Rents,03/04/2017,3865322,960.11,Newhaven 16 Plus
Children's Services,Children's Social Care,Children Looked After,LCS/Allowances-Accom,Leaving Care Financial Assistance - Supp Accom/Hous Rents,03/04/2017,3865327,"1,992.86",Newhaven 16 Plus
Children's Services,Children's Social Care,Services for young people,Youth Service Management,Non Staff Transport Costs - Reimbursement,03/04/2017,3865373,610.00,Coachhire.com
Children's Services,Education Services,Other Strategic Functions,Vulnerable Pupils Fund,Non Staff Transport Costs - Reimbursement,03/04/2017,3865406,"2,250.00",Mile End Car Hire Limited
Children's Services,Children's Social Care,Children Looked After,LCS/Allowances-Accom,Leaving Care Financial Assistance - Supp Accom/Hous Rents,03/04/2017,3865451,"1,176.00",Newhaven 16 Plus
Children's Services,Children's Social Care,Children Looked After,LCS/Allowances-Accom,Leaving Care Financial Assistance - Grant Pay Special Needs,03/04/2017,3865455,"1,114.97",Newhaven 16 Plus
Children's Services,Children's Social Care,Children Looked After,LCS/Allowances-Accom,Leaving Care Financial Assistance - Supp Accom/Hous Rents,03/04/2017,3865456,464.29,Newhaven 16 Plus
Children's Services,Education Services,Early Years,Mile End CC,Stationery,05/04/2017,3845543,297.26,Office Depot (Catalogue)
Children's Services,Children's Social Care,Services for young people,Outdoor,Repairs and Maintenance - Responsive - Repair & Maintenance,05/04/2017,3845597,"3,760.00",JC Coster (Metalworks) Ltd
Children's Services,Education Services,Early Years,Overland CC,Repairs and Maintenance - Responsive - Repair & Maintenance,05/04/2017,3845598,"2,300.00",JC Coster (Metalworks) Ltd
Children's Services,Children's Social Care,Support Service and Management Costs,Welfare Catering,Kitchen Supplies - Food and Beverages,05/04/2017,3845613,744.24,Thomas Ridley & Son Ltd
Children's Services,No Service Specified,No Division Specified,Capital-Minor Works (SC),Building Works - Main Works,05/04/2017,3845632,"3,300.00",J&L Coster (Drainage) Ltd
Children's Services,Children's Social Care,Support Service and Management Costs,Schools Catering,Kitchen Supplies - Food and Beverages,05/04/2017,3845763,-740.41,Thomas Ridley & Son Ltd
Children's Services,Children's Social Care,Support Service and Management Costs,Schools Catering,Kitchen Supplies - Food and Beverages,05/04/2017,3845803,-441.59,Thomas Ridley & Son Ltd
Children's Services,Children's Social Care,Support Service and Management Costs,Schools Catering,Kitchen Supplies - Food and Beverages,05/04/2017,3845809,-787.36,Thomas Ridley & Son Ltd
Children's Services,Children's Social Care,Support Service and Management Costs,Schools Catering,Kitchen Supplies - Food and Beverages,05/04/2017,3845823,-414.66,Thomas Ridley & Son Ltd
Children's Services,Children's Social Care,Support Service and Management Costs,Schools Catering,Kitchen Supplies - Food and Beverages,05/04/2017,3845833,-271.81,Thomas Ridley & Son Ltd
Children's Services,Children's Social Care,Support Service and Management Costs,Schools Catering,Kitchen Supplies - Food and Beverages,05/04/2017,3845836,-573.65,Thomas Ridley & Son Ltd
Children's Services,Children's Social Care,Support Service and Management Costs,Schools Catering,Kitchen Supplies - Food and Beverages,05/04/2017,3845839,-282.68,Thomas Ridley & Son Ltd
Children's Services,Children's Social Care,Support Service and Management Costs,Schools Catering,Kitchen Supplies - Food and Beverages,05/04/2017,3845848,-294.14,Thomas Ridley & Son Ltd
Children's Services,Children's Social Care,Support Service and Management Costs,Schools Catering,Kitchen Supplies - Food and Beverages,05/04/2017,3845854,-475.14,Thomas Ridley & Son Ltd
Children's Services,Children's Social Care,Support Service and Management Costs,Schools Catering,Kitchen Supplies - Food and Beverages,05/04/2017,3845872,890.61,Thomas Ridley & Son Ltd
Children's Services,Children's Social Care,Support Service and Management Costs,Schools Catering,Kitchen Supplies - Food and Beverages,05/04/2017,3845881,467.67,Thomas Ridley & Son Ltd
Children's Services,Children's Social Care,Support Service and Management Costs,Schools Catering,Kitchen Supplies - Food and Beverages,05/04/2017,3846425,713.64,Thomas Ridley & Son Ltd
Children's Services,Children's Social Care,Support Service and Management Costs,Schools Catering,Kitchen Supplies - Food and Beverages,05/04/2017,3846427,544.43,Thomas Ridley & Son Ltd
Children's Services,Children's Social Care,Support Service and Management Costs,Schools Catering,Kitchen Supplies - Food and Beverages,05/04/2017,3846433,519.32,Thomas Ridley & Son Ltd
Children's Services,Children's Social Care,Support Service and Management Costs,Schools Catering,Kitchen Supplies - Food and Beverages,05/04/2017,3846440,479.24,Thomas Ridley & Son Ltd
Children's Services,Children's Social Care,Support Service and Management Costs,Schools Catering,Kitchen Supplies - Food and Beverages,05/04/2017,3846442,"1,075.49",Thomas Ridley & Son Ltd
Children's Services,Children's Social Care,Support Service and Management Costs,Schools Catering,Kitchen Supplies - Food and Beverages,05/04/2017,3846444,392.17,Thomas Ridley & Son Ltd
Children's Services,Children's Social Care,Support Service and Management Costs,Schools Catering,Kitchen Supplies - Food and Beverages,05/04/2017,3846446,256.62,Thomas Ridley & Son Ltd
Children's Services,Children's Social Care,Support Service and Management Costs,Schools Catering,Kitchen Supplies - Food and Beverages,05/04/2017,3846452,467.98,Thomas Ridley & Son Ltd
Children's Services,Children's Social Care,Support Service and Management Costs,Schools Catering,Kitchen Supplies - Food and Beverages,05/04/2017,3846496,478.57,Thomas Ridley & Son Ltd
Children's Services,Children's Social Care,Support Service and Management Costs,Schools Catering,Kitchen Supplies - Food and Beverages,05/04/2017,3846506,"1,514.46",Thomas Ridley & Son Ltd
Children's Services,Children's Social Care,Support Service and Management Costs,Schools Catering,Kitchen Supplies - Food and Beverages,05/04/2017,3846509,331.94,Thomas Ridley & Son Ltd
Children's Services,Children's Social Care,Support Service and Management Costs,Schools Catering,Kitchen Supplies - Food and Beverages,05/04/2017,3846514,436.53,Thomas Ridley & Son Ltd
Children's Services,Children's Social Care,Support Service and Management Costs,Schools Catering,Kitchen Supplies - Food and Beverages,05/04/2017,3846518,302.67,Thomas Ridley & Son Ltd
Children's Services,Children's Social Care,Support Service and Management Costs,Schools Catering,Kitchen Supplies - Food and Beverages,05/04/2017,3846520,301.73,Thomas Ridley & Son Ltd
Children's Services,Children's Social Care,Support Service and Management Costs,Schools Catering,Kitchen Supplies - Food and Beverages,05/04/2017,3846525,273.31,Thomas Ridley & Son Ltd
Children's Services,Children's Social Care,Support Service and Management Costs,Schools Catering,Kitchen Supplies - Food and Beverages,05/04/2017,3846529,331.81,Thomas Ridley & Son Ltd
Children's Services,Children's Social Care,Support Service and Management Costs,Schools Catering,Kitchen Supplies - Food and Beverages,05/04/2017,3846531,957.22,Thomas Ridley & Son Ltd
Children's Services,Children's Social Care,Support Service and Management Costs,Schools Catering,Kitchen Supplies - Food and Beverages,05/04/2017,3846533,401.66,Thomas Ridley & Son Ltd
Children's Services,Children's Social Care,Support Service and Management Costs,Schools Catering,Kitchen Supplies - Food and Beverages,05/04/2017,3846537,"1,830.65",Thomas Ridley & Son Ltd
Children's Services,Children's Social Care,Support Service and Management Costs,Schools Catering,Kitchen Supplies - Food and Beverages,05/04/2017,3846539,327.01,Thomas Ridley & Son Ltd
Children's Services,Children's Social Care,Support Service and Management Costs,Schools Catering,Kitchen Supplies - Food and Beverages,05/04/2017,3846542,966.55,Thomas Ridley & Son Ltd
Children's Services,Children's Social Care,Support Service and Management Costs,Schools Catering,Kitchen Supplies - Food and Beverages,05/04/2017,3846904,537.12,Thomas Ridley & Son Ltd
Children's Services,Children's Social Care,Support Service and Management Costs,Schools Catering,Kitchen Supplies - Food and Beverages,05/04/2017,3846906,409.89,Thomas Ridley & Son Ltd
Children's Services,Children's Social Care,Support Service and Management Costs,Schools Catering,Kitchen Supplies - Food and Beverages,05/04/2017,3846908,"1,106.04",Thomas Ridley & Son Ltd
Children's Services,Children's Social Care,Support Service and Management Costs,Schools Catering,Kitchen Supplies - Food and Beverages,05/04/2017,3846910,464.89,Thomas Ridley & Son Ltd
Children's Services,Children's Social Care,Support Service and Management Costs,Schools Catering,Kitchen Supplies - Food and Beverages,05/04/2017,3846912,450.13,Thomas Ridley & Son Ltd
Children's Services,Children's Social Care,Support Service and Management Costs,Schools Catering,Kitchen Supplies - Food and Beverages,05/04/2017,3846917,382.44,Thomas Ridley & Son Ltd
Children's Services,Children's Social Care,Support Service and Management Costs,Schools Catering,Kitchen Supplies - Food and Beverages,05/04/2017,3847372,731.33,Thomas Ridley & Son Ltd
Children's Services,Children's Social Care,Support Service and Management Costs,Schools Catering,Kitchen Supplies - Food and Beverages,05/04/2017,3847377,332.77,Thomas Ridley & Son Ltd
Children's Services,Children's Social Care,Support Service and Management Costs,Schools Catering,Kitchen Supplies - Food and Beverages,05/04/2017,3847381,372.32,Thomas Ridley & Son Ltd
Children's Services,Children's Social Care,Support Service and Management Costs,Schools Catering,Kitchen Supplies - Food and Beverages,05/04/2017,3847385,327.33,Thomas Ridley & Son Ltd
Children's Services,Children's Social Care,Support Service and Management Costs,Schools Catering,Kitchen Supplies - Food and Beverages,05/04/2017,3847390,717.21,Thomas Ridley & Son Ltd
Children's Services,Children's Social Care,Support Service and Management Costs,Schools Catering,Kitchen Supplies - Food and Beverages,05/04/2017,3847392,611.52,Thomas Ridley & Son Ltd
Children's Services,Children's Social Care,Support Service and Management Costs,Building Cleaning,Materials - Cleaning Materials,05/04/2017,3847434,"2,508.46",The Maintenance Supply Co Ltd
Children's Services,Children's Social Care,Support Service and Management Costs,Welfare Catering,Kitchen Supplies - Food and Beverages,05/04/2017,3847443,337.07,Thomas Ridley & Son Ltd
Children's Services,Children's Social Care,Support Service and Management Costs,Professional Dev Centre,Fixtures and Fittings - Purchases - Security,05/04/2017,3847447,600.00,surelock security systems ltd
Children's Services,Children's Social Care,Children Looked After,Virtual School PPG,Third Party Payments - Payments to Schools,05/04/2017,3847458,500.00,Manor Junior School
Children's Services,Children's Social Care,Children Looked After,Virtual School PPG,Third Party Payments - Payments to Schools,05/04/2017,3847466,550.00,The Appleton School Academy Trust
Children's Services,Children's Social Care,Children Looked After,S23-Resi-P&V/OLA-Boarding Sch,Childrens Act Section 23 - Equipment,05/04/2017,3847486,"2,709.57",St Elizabeth's Centre
Children's Services,Children's Social Care,Support Service and Management Costs,Schools Catering,Kitchen Supplies - Food and Beverages,05/04/2017,3847541,536.69,Thomas Ridley & Son Ltd
Children's Services,Children's Social Care,Support Service and Management Costs,Schools Catering,Kitchen Supplies - Food and Beverages,05/04/2017,3847551,330.16,Thomas Ridley & Son Ltd
Children's Services,Children's Social Care,Support Service and Management Costs,Schools Catering,Kitchen Supplies - Food and Beverages,05/04/2017,3847568,814.61,Thomas Ridley & Son Ltd
Children's Services,Children's Social Care,Support Service and Management Costs,Schools Catering,Kitchen Supplies - Food and Beverages,05/04/2017,3847576,692.64,Thomas Ridley & Son Ltd
Children's Services,Children's Social Care,Support Service and Management Costs,Schools Catering,Kitchen Supplies - Food and Beverages,05/04/2017,3847585,252.63,Prescott-Thomas LTD.
Children's Services,Children's Social Care,Support Service and Management Costs,Schools Catering,Kitchen Supplies - Food and Beverages,05/04/2017,3847598,771.85,Thomas Ridley & Son Ltd
Children's Services,Children's Social Care,Support Service and Management Costs,Schools Catering,Kitchen Supplies - Food and Beverages,05/04/2017,3847611,255.76,Thomas Ridley & Son Ltd
Children's Services,Children's Social Care,Support Service and Management Costs,Schools Catering,Kitchen Supplies - Food and Beverages,05/04/2017,3847624,641.89,Thomas Ridley & Son Ltd
Children's Services,Children's Social Care,Support Service and Management Costs,Schools Catering,Kitchen Supplies - Food and Beverages,05/04/2017,3847629,281.17,Thomas Ridley & Son Ltd
Children's Services,Children's Social Care,Support Service and Management Costs,Schools Catering,Kitchen Supplies - Food and Beverages,05/04/2017,3847634,711.46,Thomas Ridley & Son Ltd
Children's Services,Children's Social Care,Support Service and Management Costs,Schools Catering,Kitchen Supplies - Food and Beverages,05/04/2017,3847643,"1,164.63",Thomas Ridley & Son Ltd
Children's Services,Children's Social Care,Support Service and Management Costs,Schools Catering,Kitchen Supplies - Food and Beverages,05/04/2017,3847647,"1,407.75",Thomas Ridley & Son Ltd
Children's Services,Children's Social Care,Support Service and Management Costs,Schools Catering,Kitchen Supplies - Food and Beverages,05/04/2017,3847651,722.38,Thomas Ridley & Son Ltd
Children's Services,Children's Social Care,Support Service and Management Costs,Schools Catering,Kitchen Supplies - Food and Beverages,05/04/2017,3847659,315.33,Thomas Ridley & Son Ltd
Children's Services,Children's Social Care,Support Service and Management Costs,Schools Catering,Kitchen Supplies - Food and Beverages,05/04/2017,3847663,296.16,Thomas Ridley & Son Ltd
Children's Services,Children's Social Care,Support Service and Management Costs,Schools Catering,Kitchen Supplies - Food and Beverages,05/04/2017,3847667,596.39,Thomas Ridley & Son Ltd
Children's Services,Children's Social Care,Support Service and Management Costs,Schools Catering,Kitchen Supplies - Food and Beverages,05/04/2017,3847671,320.56,Thomas Ridley & Son Ltd
Children's Services,Children's Social Care,Support Service and Management Costs,Schools Catering,Kitchen Supplies - Food and Beverages,05/04/2017,3847678,271.08,Thomas Ridley & Son Ltd
Children's Services,Children's Social Care,Support Service and Management Costs,Schools Catering,Kitchen Supplies - Food and Beverages,05/04/2017,3847687,754.49,Thomas Ridley & Son Ltd
Children's Services,Children's Social Care,Support Service and Management Costs,Schools Catering,Kitchen Supplies - Food and Beverages,05/04/2017,3847695,642.95,Thomas Ridley & Son Ltd
Children's Services,Children's Social Care,Support Service and Management Costs,Schools Catering,Kitchen Supplies - Food and Beverages,05/04/2017,3847699,539.38,Thomas Ridley & Son Ltd
Children's Services,Children's Social Care,Support Service and Management Costs,Schools Catering,Kitchen Supplies - Food and Beverages,05/04/2017,3847701,508.49,Thomas Ridley & Son Ltd
Children's Services,Children's Social Care,Support Service and Management Costs,Schools Catering,Kitchen Supplies - Food and Beverages,05/04/2017,3847703,264.33,Thomas Ridley & Son Ltd
Children's Services,Children's Social Care,Support Service and Management Costs,Schools Catering,Kitchen Supplies - Food and Beverages,05/04/2017,3847710,"1,595.65",Thomas Ridley & Son Ltd
Children's Services,Children's Social Care,Support Service and Management Costs,Schools Catering,Kitchen Supplies - Food and Beverages,05/04/2017,3847713,498.98,Thomas Ridley & Son Ltd
Children's Services,Children's Social Care,Support Service and Management Costs,Schools Catering,Kitchen Supplies - Food and Beverages,05/04/2017,3847718,633.46,Thomas Ridley & Son Ltd
Children's Services,Children's Social Care,Support Service and Management Costs,Schools Catering,Kitchen Supplies - Food and Beverages,05/04/2017,3847720,583.22,Thomas Ridley & Son Ltd
Children's Services,Children's Social Care,Support Service and Management Costs,Schools Catering,Kitchen Supplies - Food and Beverages,05/04/2017,3847726,384.43,Thomas Ridley & Son Ltd
Children's Services,Children's Social Care,Support Service and Management Costs,Schools Catering,Kitchen Supplies - Food and Beverages,05/04/2017,3847729,484.73,Thomas Ridley & Son Ltd
Children's Services,Children's Social Care,Support Service and Management Costs,Schools Catering,Kitchen Supplies - Food and Beverages,05/04/2017,3847737,873.73,Thomas Ridley & Son Ltd
Children's Services,Children's Social Care,Support Service and Management Costs,Schools Catering,Kitchen Supplies - Food and Beverages,05/04/2017,3847739,745.84,Thomas Ridley & Son Ltd
Children's Services,Children's Social Care,Children Looked After,Virtual School PPG,Agency Staff - Associations,05/04/2017,3848119,916.00,Academics ltd
Children's Services,Children's Social Care,Children Looked After,Virtual School PPG,Agency Staff - Associations,05/04/2017,3848120,687.00,Academics ltd
Children's Services,Children's Social Care,Children Looked After,Virtual School PPG,Agency Staff - Associations,05/04/2017,3848121,916.00,Academics ltd
Children's Services,Children's Social Care,Children Looked After,Virtual School PPG,Agency Staff - Associations,05/04/2017,3848122,"1,145.00",Academics ltd
Children's Services,Children's Social Care,Children Looked After,Virtual School PPG,Agency Staff - Associations,05/04/2017,3848123,916.00,Academics ltd
Children's Services,Children's Social Care,Children Looked After,Virtual School PPG,Agency Staff - Associations,05/04/2017,3848124,916.00,Academics ltd
Children's Services,Children's Social Care,Children Looked After,S23-Other-Semi-Ind. Unit,Childrens Act Section 23 - Placement Fee,05/04/2017,3848144,"3,810.67",Heartwood Outreach Services Ltd
Children's Services,Children's Social Care,Children Looked After,S23-Other-Semi-Ind. Unit,Childrens Act Section 23 - Placement Fee,05/04/2017,3848145,"3,810.67",Heartwood Outreach Services Ltd
Children's Services,Children's Social Care,Children Looked After,S23-Other-Semi-Ind. Unit,Childrens Act Section 23 - Placement Fee,05/04/2017,3848146,"3,810.67",Heartwood Outreach Services Ltd
Children's Services,Children's Social Care,Children Looked After,S23-Other-Semi-Ind. Unit,Childrens Act Section 23 - Placement Fee,05/04/2017,3848147,"3,810.67",Heartwood Outreach Services Ltd
Children's Services,Children's Social Care,Children Looked After,S23-Other-Semi-Ind. Unit,Childrens Act Section 23 - Placement Fee,05/04/2017,3848148,"3,810.67",Heartwood Outreach Services Ltd
Children's Services,Children's Social Care,Children Looked After,Virtual School PPG,Third Party Payments - Payments to Schools,05/04/2017,3848507,900.00,Barking Abbey School
Children's Services,Children's Social Care,Children Looked After,Virtual School PPG,Third Party Payments - Payments to Schools,05/04/2017,3848524,700.00,Tower Hamlets College
Children's Services,Children's Social Care,Services for young people,Youth Service Management,Comms - Purchase of Equipment,05/04/2017,3849142,271.00,VMS Network Cabling Ltd
Children's Services,Children's Social Care,Support Service and Management Costs,Schools Catering,Kitchen Supplies - Food and Beverages,05/04/2017,3849377,393.55,William White Meats Ltd
Children's Services,Children's Social Care,Support Service and Management Costs,Schools Catering,Kitchen Supplies - Food and Beverages,05/04/2017,3849380,296.00,William White Meats Ltd
Children's Services,Children's Social Care,Support Service and Management Costs,Schools Catering,Kitchen Supplies - Food and Beverages,05/04/2017,3849386,274.50,William White Meats Ltd
Children's Services,Children's Social Care,Support Service and Management Costs,Schools Catering,Kitchen Supplies - Food and Beverages,05/04/2017,3849477,342.50,William White Meats Ltd
Children's Services,Children's Social Care,Support Service and Management Costs,Schools Catering,Kitchen Supplies - Food and Beverages,05/04/2017,3849480,409.30,William White Meats Ltd
Children's Services,Children's Social Care,Support Service and Management Costs,Schools Catering,Kitchen Supplies - Food and Beverages,05/04/2017,3849483,976.00,William White Meats Ltd
Children's Services,Children's Social Care,Support Service and Management Costs,Schools Catering,Kitchen Supplies - Food and Beverages,05/04/2017,3849486,560.00,William White Meats Ltd
Children's Services,Children's Social Care,Support Service and Management Costs,Schools Catering,Kitchen Supplies - Food and Beverages,05/04/2017,3849504,274.50,William White Meats Ltd
Children's Services,Children's Social Care,Support Service and Management Costs,Schools Catering,Kitchen Supplies - Food and Beverages,05/04/2017,3849516,274.50,William White Meats Ltd
Children's Services,Children's Social Care,Support Service and Management Costs,Schools Catering,Kitchen Supplies - Food and Beverages,05/04/2017,3849541,427.00,William White Meats Ltd
Children's Services,Children's Social Care,Support Service and Management Costs,Schools Catering,Kitchen Supplies - Food and Beverages,05/04/2017,3849555,396.50,William White Meats Ltd
Children's Services,Children's Social Care,Children Looked After,S23 Fam Pl P&V-F/Care,Childrens Act Section 23 - Placement Fee,05/04/2017,3849783,"3,003.80",Integrated Service Programme
Children's Services,Education Services,Other Strategic Functions,CS Finance Trading Account,Training Expenses - Staff External Training (UK Based),05/04/2017,3852115,"13,495.00",Frontline Data Ltd
Children's Services,Children's Social Care,Children Looked After,S23-Resi-P&V/OLA-Child Home,Services - Professional Fees - Security Fees,05/04/2017,3853053,"1,557.50",Wrixon Care Services
Children's Services,Education Services,Early Years,Mowlem CC,Computing - Purchase of Hardware,05/04/2017,3853120,369.18,Specialist Computer Centres PLC
Children's Services,Education Services,Early Years,Meath Gardens CC,Computing - Purchase of Hardware,05/04/2017,3853121,369.18,Specialist Computer Centres PLC
Children's Services,Children's Social Care,Support Service and Management Costs,Schools Catering,Kitchen Supplies - Catering Equipment,05/04/2017,3853464,"1,075.34",W V Howe LTD
Children's Services,Education Services,Other Strategic Functions,Parental Engagement,Subscriptions - Associations,05/04/2017,3853831,"2,340.00",Race Equality Foundation
Children's Services,Education Services,Early Years,Mowlem CC,Educational/Training Supplies - Arts & Crafts,05/04/2017,3855705,292.00,ESPO
Children's Services,Education Services,Early Years,Meath Gardens CC,Community Equipment  Supplies - Non Store Items,05/04/2017,3855706,955.00,ESPO
Children's Services,Children's Social Care,Services for young people,Youth Service Management,Training Expenses - Staff External Training (UK Based),05/04/2017,3856630,"2,955.00",London Metropolitan University
Children's Services,Children's Social Care,Children Looked After,S23-Resi-P&V/OLA-Child Home,Childrens Act Section 23 - Placement Fee,05/04/2017,3861751,"2,332.00",Horizon Residential Homes LTD
Children's Services,Education Services,Other Strategic Functions,Education Psychologists GF,Meeting Expenses,05/04/2017,3864314,470.00,the royal foundation of st katharine
Children's Services,No Service Specified,No Division Specified,Capital-Minor Works (SC),Building Works - Main Works,05/04/2017,3864329,"5,238.44",Energy Assets Ltd
Children's Services,Children's Social Care,Children Looked After,Children in Public Care Team,Recreational Activities,05/04/2017,3864513,833.34,The Urban Flower Firm Ltd
Children's Services,Cultural and Related Services,Culture & Heritage,Arts-Park Events,Events & Exhibition Supplies,05/04/2017,3865312,"35,645.09",A P Security (North) LTD
Children's Services,Children's Social Care,Children Looked After,LCS/Allowances-Accom,Leaving Care Financial Assistance - Supp Accom/Hous Rents,05/04/2017,3865324,960.11,Newhaven 16 Plus
Children's Services,Children's Social Care,Family Support Services,Short Breaks and Family Support,Third Party Payments - Voluntary Associations,05/04/2017,3865334,"28,217.85",Tower Project
Children's Services,Children's Social Care,Services for young people,Peer Work,Non Staff Transport Costs - Reimbursement,05/04/2017,3865372,610.00,Coachhire.com
Children's Services,Children's Social Care,Services for young people,Youth Service Management,Non Staff Transport Costs - Reimbursement,05/04/2017,3865374,610.00,Coachhire.com
Children's Services,Children's Social Care,Family Support Services,CNN Pool: Joint Family Support,Social Care - Homecare,05/04/2017,3865402,"24,076.80",APASENTH
Children's Services,Children's Social Care,Services for young people,Peer Work,Non Staff Transport Costs - Reimbursement,05/04/2017,3865464,610.00,Coachhire.com
Children's Services,Children's Social Care,Services for young people,Youth Service Management,Non Staff Transport Costs - Reimbursement,05/04/2017,3865465,610.00,Coachhire.com
Children's Services,Children's Social Care,Children Looked After,LCS/Allowances-Accom,Leaving Care Financial Assistance - Supp Accom/Hous Rents,05/04/2017,3865476,960.11,Newhaven 16 Plus
Children's Services,Children's Social Care,Services for young people,Youth Service Management,Education SLA - Other SLA's,05/04/2017,3865737,"1,000.00",BOW SCHOOL
Children's Services,Children's Social Care,Children Looked After,S23 Fam Pl In-Hse-S/Term F/C,Childrens Act Section 23 - Expert Assessmt/Witness Costs,05/04/2017,3866818,945.30,Y Walker Psychology Ltd
Children's Services,Children's Social Care,Other Children's and Family Services,Permanent Placements,Services - Professional Fees - Legal Fees/Expenses,05/04/2017,3866868,496.00,Guardian Training Services Ltd
Children's Services,Children's Social Care,Services for young people,Youth Service Management,SLA Services (Expenditure) - Service Level Agreements,05/04/2017,3867003,"8,333.20",Ocean Youth Connexions
Children's Services,Children's Social Care,Family Support Services,CNN Pool: Children Direct Paym,Social Care - Direct Payments,05/04/2017,3867088,795.18,DAVID HOWARD LTD CLIENT ACCOUNT
Children's Services,Children's Social Care,Family Support Services,CNN Pool: Children Direct Paym,Social Care - Direct Payments,05/04/2017,3867094,690.86,DAVID HOWARD LTD CLIENT ACCOUNT
Children's Services,Children's Social Care,Family Support Services,CNN Pool: Children Direct Paym,Social Care - Direct Payments,05/04/2017,3867095,674.60,DAVID HOWARD LTD CLIENT ACCOUNT
Children's Services,Children's Social Care,Family Support Services,CNN Pool: Children Direct Paym,Social Care - Direct Payments,05/04/2017,3867102,674.60,DAVID HOWARD LTD CLIENT ACCOUNT
Children's Services,Children's Social Care,Family Support Services,CNN Pool: Children Direct Paym,Social Care - Direct Payments,05/04/2017,3867105,929.40,DAVID HOWARD LTD CLIENT ACCOUNT
Children's Services,Children's Social Care,Family Support Services,CNN Pool: Children Direct Paym,Social Care - Direct Payments,05/04/2017,3867108,674.60,DAVID HOWARD LTD CLIENT ACCOUNT
Children's Services,Children's Social Care,Family Support Services,CNN Pool: Children Direct Paym,Social Care - Direct Payments,05/04/2017,3867111,"26,019.29",DAVID HOWARD LTD CLIENT ACCOUNT
Children's Services,Children's Social Care,Family Support Services,CNN Pool: Children Direct Paym,Social Care - Direct Payments,05/04/2017,3867115,674.60,DAVID HOWARD LTD CLIENT ACCOUNT
Children's Services,Children's Social Care,Family Support Services,CNN Pool: Children Direct Paym,Social Care - Direct Payments,05/04/2017,3867120,"1,401.78",D D PAYROLL SERVICES
Children's Services,Children's Social Care,Family Support Services,CNN Pool: Children Direct Paym,Social Care - Direct Payments,05/04/2017,3867122,"7,049.06",DAVID HOWARD LTD CLIENT ACCOUNT
Children's Services,Children's Social Care,Family Support Services,CNN Pool: Children Direct Paym,Social Care - Direct Payments,05/04/2017,3867125,"1,349.20",DAVID HOWARD LTD CLIENT ACCOUNT
Children's Services,Children's Social Care,Family Support Services,CNN Pool: Children Direct Paym,Social Care - Direct Payments,05/04/2017,3867126,898.42,DAVID HOWARD LTD CLIENT ACCOUNT
Children's Services,Children's Social Care,Family Support Services,CNN Pool: Children Direct Paym,Social Care - Direct Payments,05/04/2017,3867127,845.73,DAVID HOWARD LTD CLIENT ACCOUNT
Children's Services,Children's Social Care,Family Support Services,CNN Pool: Children Direct Paym,Social Care - Direct Payments,05/04/2017,3867128,"1,257.61",DAVID HOWARD LTD CLIENT ACCOUNT
Children's Services,Children's Social Care,Family Support Services,CNN Pool: Children Direct Paym,Social Care - Direct Payments,05/04/2017,3867130,674.60,DAVID HOWARD LTD CLIENT ACCOUNT
Children's Services,Children's Social Care,Family Support Services,CNN Pool: Children Direct Paym,Social Care - Direct Payments,05/04/2017,3867134,899.46,DAVID HOWARD LTD CLIENT ACCOUNT
Children's Services,Children's Social Care,Family Support Services,CNN Pool: Children Direct Paym,Social Care - Direct Payments,05/04/2017,3867141,674.60,DAVID HOWARD LTD CLIENT ACCOUNT
Children's Services,Children's Social Care,Family Support Services,CNN Pool: Children Direct Paym,Social Care - Direct Payments,05/04/2017,3867143,"9,809.54",DAVID HOWARD LTD CLIENT ACCOUNT
Children's Services,Children's Social Care,Family Support Services,CNN Pool: Children Direct Paym,Social Care - Direct Payments,05/04/2017,3867144,674.56,DAVID HOWARD LTD CLIENT ACCOUNT
Children's Services,Children's Social Care,Family Support Services,CNN Pool: Children Direct Paym,Social Care - Direct Payments,05/04/2017,3867145,674.60,DAVID HOWARD LTD CLIENT ACCOUNT
Children's Services,Children's Social Care,Family Support Services,CNN Pool: Children Direct Paym,Social Care - Direct Payments,05/04/2017,3867146,449.71,DAVID HOWARD LTD CLIENT ACCOUNT
Children's Services,Children's Social Care,Family Support Services,CNN Pool: Children Direct Paym,Social Care - Direct Payments,05/04/2017,3867147,929.45,DAVID HOWARD LTD CLIENT ACCOUNT
Children's Services,Children's Social Care,Family Support Services,CNN Pool: Children Direct Paym,Social Care - Direct Payments,05/04/2017,3867148,"1,349.12",DAVID HOWARD LTD CLIENT ACCOUNT
Children's Services,Children's Social Care,Family Support Services,CNN Pool: Children Direct Paym,Social Care - Direct Payments,05/04/2017,3867152,"18,472.20",DAVID HOWARD LTD CLIENT ACCOUNT
Children's Services,Children's Social Care,Family Support Services,CNN Pool: Children Direct Paym,Social Care - Direct Payments,05/04/2017,3867163,"8,526.66",DAVID HOWARD LTD CLIENT ACCOUNT
Children's Services,Children's Social Care,Family Support Services,CNN Pool: Children Direct Paym,Social Care - Direct Payments,05/04/2017,3867166,548.40,DAVID HOWARD LTD CLIENT ACCOUNT
Children's Services,Children's Social Care,Family Support Services,CNN Pool: Children Direct Paym,Social Care - Direct Payments,05/04/2017,3867170,674.60,DAVID HOWARD LTD CLIENT ACCOUNT
Children's Services,Children's Social Care,Family Support Services,CNN Pool: Children Direct Paym,Social Care - Direct Payments,05/04/2017,3867171,"2,248.66",DAVID HOWARD LTD CLIENT ACCOUNT
Children's Services,Children's Social Care,Family Support Services,CNN Pool: Children Direct Paym,Social Care - Direct Payments,05/04/2017,3867172,674.60,DAVID HOWARD LTD CLIENT ACCOUNT
Children's Services,Children's Social Care,Family Support Services,CNN Pool: Children Direct Paym,Social Care - Direct Payments,05/04/2017,3867173,899.46,D D PAYROLL SERVICES
Children's Services,Children's Social Care,Family Support Services,CNN Pool: Children Direct Paym,Social Care - Direct Payments,05/04/2017,3867174,929.40,DAVID HOWARD LTD CLIENT ACCOUNT
Children's Services,Children's Social Care,Family Support Services,CNN Pool: Children Direct Paym,Social Care - Direct Payments,05/04/2017,3867175,674.60,DAVID HOWARD LTD CLIENT ACCOUNT
Children's Services,Children's Social Care,Family Support Services,CNN Pool: Children Direct Paym,Social Care - Direct Payments,05/04/2017,3867177,674.60,DAVID HOWARD LTD CLIENT ACCOUNT
Children's Services,Children's Social Care,Family Support Services,CNN Pool: Children Direct Paym,Social Care - Direct Payments,05/04/2017,3867178,674.60,DAVID HOWARD LTD CLIENT ACCOUNT
Children's Services,Children's Social Care,Family Support Services,CNN Pool: Children Direct Paym,Social Care - Direct Payments,05/04/2017,3867180,674.60,DAVID HOWARD LTD CLIENT ACCOUNT
Children's Services,Children's Social Care,Family Support Services,CNN Pool: Children Direct Paym,Social Care - Direct Payments,05/04/2017,3867181,899.46,DAVID HOWARD LTD CLIENT ACCOUNT
Children's Services,Children's Social Care,Family Support Services,CNN Pool: Children Direct Paym,Social Care - Direct Payments,05/04/2017,3867183,"4,081.20",DAVID HOWARD LTD CLIENT ACCOUNT
Children's Services,Children's Social Care,Family Support Services,CNN Pool: Children Direct Paym,Social Care - Direct Payments,05/04/2017,3867184,674.60,DAVID HOWARD LTD CLIENT ACCOUNT
Children's Services,Children's Social Care,Family Support Services,CNN Pool: Children Direct Paym,Social Care - Direct Payments,05/04/2017,3867186,674.60,DAVID HOWARD LTD CLIENT ACCOUNT
Children's Services,Education Services,Early Years,SSEYCG Two Year Old Pilot,Third Party Payments - Voluntary Associations,05/04/2017,3867197,850.00,ABERTOTS PLAY
Children's Services,Education Services,Early Years,SSEYCG Two Year Old Pilot,Third Party Payments - Voluntary Associations,05/04/2017,3867198,"9,204.60",Avebury Playgroup
Children's Services,Education Services,Early Years,SSEYCG Two Year Old Pilot,Third Party Payments - Voluntary Associations,05/04/2017,3867199,"4,002.00",Barkantine Community Nursery
Children's Services,Education Services,Early Years,SSEYCG Two Year Old Pilot,Third Party Payments - Voluntary Associations,05/04/2017,3867200,"26,764.08",Barnardo's
Children's Services,Education Services,Early Years,SSEYCG Two Year Old Pilot,Third Party Payments - Voluntary Associations,05/04/2017,3867201,"1,000.00",BRAYFORD SQUARE PLAYGROUP
Children's Services,Education Services,Early Years,SSEYCG Two Year Old Pilot,Third Party Payments - Voluntary Associations,05/04/2017,3867202,"1,101.20",SOMALI INTEGRATION TEAM
Children's Services,Education Services,Early Years,SSEYCG Two Year Old Pilot,Third Party Payments - Voluntary Associations,05/04/2017,3867204,"8,704.50",Account 3 Ltd
Children's Services,Education Services,Early Years,SSEYCG Two Year Old Pilot,Third Party Payments - Voluntary Associations,05/04/2017,3867205,"20,810.40",Munchkins Playgroup
Children's Services,Education Services,Early Years,SSEYCG Two Year Old Pilot,Third Party Payments - Voluntary Associations,05/04/2017,3867206,"2,701.30",New Generation Nursery
Children's Services,Education Services,Early Years,SSEYCG Two Year Old Pilot,Third Party Payments - Voluntary Associations,05/04/2017,3867207,950.80,Scallywags Playgroup
Children's Services,Education Services,Early Years,SSEYCG Two Year Old Pilot,Third Party Payments - Voluntary Associations,05/04/2017,3867208,"4,502.25",Shining Futures Nursery
Children's Services,Education Services,Early Years,SSEYCG Two Year Old Pilot,Third Party Payments - Voluntary Associations,05/04/2017,3867209,"11,505.85",TATE HOUSE PLAYGROUP
Children's Services,Education Services,Early Years,SSEYCG Two Year Old Pilot,Third Party Payments - Voluntary Associations,05/04/2017,3867210,"1,000.25",SELECTIVE LEARNING
Children's Services,Education Services,Early Years,SSEYCG Two Year Old Pilot,Third Party Payments - Voluntary Associations,05/04/2017,3867211,"14,656.85",Tower Hamlets College
Children's Services,Education Services,Early Years,SSEYCG Two Year Old Pilot,Third Party Payments - Voluntary Associations,05/04/2017,3867212,"10,605.30",London Early Years Foundation
Children's Services,Education Services,Early Years,SSEYCG Two Year Old Pilot,Third Party Payments - Voluntary Associations,05/04/2017,3867213,"10,255.13",London Early Years Foundation
Children's Services,Education Services,Early Years,SSEYCG Two Year Old Pilot,Third Party Payments - Voluntary Associations,05/04/2017,3867214,"2,301.15",DATE PALM PRIMARY
Children's Services,Education Services,Early Years,SSEYCG Two Year Old Pilot,Third Party Payments - Voluntary Associations,05/04/2017,3867215,"4,052.15",MAGIC ROUNDABOUT NURSERIES LTD
Children's Services,Education Services,Early Years,SSEYCG Two Year Old Pilot,Third Party Payments - Voluntary Associations,05/04/2017,3867216,"3,101.55",Jingle Jungle Nursery
Children's Services,Education Services,Early Years,3&4 Year old PVI�s,Third Party Payments - Voluntary Associations,05/04/2017,3867217,"1,532.70",Incy Wincy Stars Childcare Ltd
Children's Services,Children's Social Care,Support Service and Management Costs,Schools Catering,Kitchen Supplies - Food and Beverages,07/04/2017,3839823,282.05,Thomas Ridley & Son Ltd
Children's Services,Children's Social Care,Support Service and Management Costs,Schools Catering,Kitchen Supplies - Food and Beverages,07/04/2017,3843861,474.78,Thomas Ridley & Son Ltd
Children's Services,Children's Social Care,Support Service and Management Costs,Schools Catering,Kitchen Supplies - Food and Beverages,07/04/2017,3846909,407.75,Prescott-Thomas LTD.
Children's Services,Cultural and Related Services,Open Spaces,Victoria Park,Services - Professional Fees - Security Fees,07/04/2017,3848109,"12,262.68",OCS T/A LEGION
Children's Services,Children's Social Care,Family Support Services,Eva Armsby Family Centre,Photocopier Charges - Consumables,07/04/2017,3848128,347.97,Supplies Team Ltd
Children's Services,Children's Social Care,Support Service and Management Costs,Schools Catering,Kitchen Supplies - Food and Beverages,07/04/2017,3848228,653.27,Thomas Ridley & Son Ltd
Children's Services,Children's Social Care,Support Service and Management Costs,Schools Catering,Kitchen Supplies - Food and Beverages,07/04/2017,3848236,403.38,Thomas Ridley & Son Ltd
Children's Services,Children's Social Care,Support Service and Management Costs,Schools Catering,Kitchen Supplies - Food and Beverages,07/04/2017,3848241,417.01,Thomas Ridley & Son Ltd
Children's Services,Children's Social Care,Support Service and Management Costs,Schools Catering,Kitchen Supplies - Food and Beverages,07/04/2017,3848248,443.62,Thomas Ridley & Son Ltd
Children's Services,Children's Social Care,Support Service and Management Costs,Schools Catering,Kitchen Supplies - Food and Beverages,07/04/2017,3848253,809.13,Thomas Ridley & Son Ltd
Children's Services,Children's Social Care,Support Service and Management Costs,Schools Catering,Kitchen Supplies - Food and Beverages,07/04/2017,3848264,324.32,Thomas Ridley & Son Ltd
Children's Services,Children's Social Care,Support Service and Management Costs,Schools Catering,Kitchen Supplies - Food and Beverages,07/04/2017,3848272,531.12,Thomas Ridley & Son Ltd
Children's Services,Children's Social Care,Support Service and Management Costs,Schools Catering,Kitchen Supplies - Food and Beverages,07/04/2017,3848276,862.44,Thomas Ridley & Son Ltd
Children's Services,Children's Social Care,Support Service and Management Costs,Schools Catering,Kitchen Supplies - Food and Beverages,07/04/2017,3848280,464.90,Thomas Ridley & Son Ltd
Children's Services,Children's Social Care,Support Service and Management Costs,Schools Catering,Kitchen Supplies - Food and Beverages,07/04/2017,3848283,280.52,Thomas Ridley & Son Ltd
Children's Services,Children's Social Care,Support Service and Management Costs,Schools Catering,Kitchen Supplies - Food and Beverages,07/04/2017,3848300,732.35,Thomas Ridley & Son Ltd
Children's Services,Children's Social Care,Support Service and Management Costs,Schools Catering,Kitchen Supplies - Food and Beverages,07/04/2017,3848304,676.46,Thomas Ridley & Son Ltd
Children's Services,Education Services,Other Strategic Functions,Alternative Provision,Third Party Payments - Other Establishments,07/04/2017,3848554,"4,682.14",City Gateway 14-19 Provision
Children's Services,Education Services,Early Years,Overland CC,Stationery,07/04/2017,3849083,350.89,Office Depot (Catalogue)
Children's Services,Education Services,Early Years,Overland CC,Stationery,07/04/2017,3849090,282.79,Office Depot (Catalogue)
Children's Services,Children's Social Care,Support Service and Management Costs,Welfare Catering,Kitchen Supplies - Food and Beverages,07/04/2017,3849183,336.62,William White Meats Ltd
Children's Services,Children's Social Care,Support Service and Management Costs,Welfare Catering,Kitchen Supplies - Food and Beverages,07/04/2017,3849192,535.64,William White Meats Ltd
Children's Services,Children's Social Care,Support Service and Management Costs,Schools Catering,Kitchen Supplies - Food and Beverages,07/04/2017,3849461,632.48,William White Meats Ltd
Children's Services,Children's Social Care,Support Service and Management Costs,Schools Catering,Kitchen Supplies - Food and Beverages,07/04/2017,3849549,294.79,William White Meats Ltd
Children's Services,Children's Social Care,Support Service and Management Costs,Schools Catering,Kitchen Supplies - Food and Beverages,07/04/2017,3849563,438.95,William White Meats Ltd
Children's Services,Children's Social Care,Support Service and Management Costs,Schools Catering,Kitchen Supplies - Food and Beverages,07/04/2017,3849566,596.83,William White Meats Ltd
Children's Services,Children's Social Care,Support Service and Management Costs,Schools Catering,Kitchen Supplies - Food and Beverages,07/04/2017,3849568,321.16,William White Meats Ltd
Children's Services,Children's Social Care,Support Service and Management Costs,Schools Catering,Kitchen Supplies - Food and Beverages,07/04/2017,3849569,295.30,William White Meats Ltd
Children's Services,Children's Social Care,Support Service and Management Costs,Schools Catering,Kitchen Supplies - Food and Beverages,07/04/2017,3849570,281.30,William White Meats Ltd
Children's Services,Children's Social Care,Support Service and Management Costs,Schools Catering,Kitchen Supplies - Food and Beverages,07/04/2017,3849574,323.65,William White Meats Ltd
Children's Services,Children's Social Care,Support Service and Management Costs,Schools Catering,Kitchen Supplies - Food and Beverages,07/04/2017,3849581,326.13,William White Meats Ltd
Children's Services,Children's Social Care,Support Service and Management Costs,Schools Catering,Kitchen Supplies - Food and Beverages,07/04/2017,3849582,276.90,William White Meats Ltd
Children's Services,Children's Social Care,Support Service and Management Costs,Schools Catering,Kitchen Supplies - Food and Beverages,07/04/2017,3849588,412.20,William White Meats Ltd
Children's Services,Children's Social Care,Support Service and Management Costs,Schools Catering,Kitchen Supplies - Food and Beverages,07/04/2017,3849590,"1,001.67",William White Meats Ltd
Children's Services,Children's Social Care,Support Service and Management Costs,Schools Catering,Kitchen Supplies - Food and Beverages,07/04/2017,3849593,"3,182.35",William White Meats Ltd
Children's Services,Children's Social Care,Support Service and Management Costs,Schools Catering,Kitchen Supplies - Food and Beverages,07/04/2017,3849594,274.50,William White Meats Ltd
Children's Services,Children's Social Care,Children Looked After,S23 Fam Pl P&V-F/Care,Childrens Act Section 23 - Placement Fee,07/04/2017,3849658,"3,401.32",Next Step Fostering Services Ltd
Children's Services,Children's Social Care,Children Looked After,S23 Fam Pl P&V-F/Care,Childrens Act Section 23 - Placement Fee,07/04/2017,3849661,"4,650.00",St Christopher's Fellowship
Children's Services,Education Services,Other Strategic Functions,Music Trading Account,Educational/Training Supplies - Arts & Crafts,07/04/2017,3849664,"2,468.50",LMS Music Supplies
Children's Services,Children's Social Care,Children's and Young People's Safety,Child Protection Mgt & Admin,Meeting Expenses,07/04/2017,3849674,333.00,Account 3 Ltd
Children's Services,Education Services,Early Years,Collingwood,Educational/Training Supplies - Arts & Crafts,07/04/2017,3849696,387.95,Early Excellence
Children's Services,No Service Specified,No Division Specified,Capital-Minor Works (SC),Building Works - Main Works,07/04/2017,3849754,"8,515.90",London Grid Learning Trust
Children's Services,No Service Specified,No Division Specified,Capital-Minor Works (SC),Other External Fees - Other External Fees,07/04/2017,3849756,"25,000.00",The Diocese Of London~ Board For Schools
Children's Services,Children's Social Care,Children Looked After,S23 Fam Pl P&V-F/Care,Childrens Act Section 23 - Placement Fee,07/04/2017,3849788,"4,650.00",St Christopher's Fellowship
Children's Services,Children's Social Care,Children's and Young People's Safety,Child Protection Mgt & Admin,Meeting Expenses,07/04/2017,3849791,294.00,Account 3 Ltd
Children's Services,Children's Social Care,Children's and Young People's Safety,Child Protection Mgt & Admin,Meeting Expenses,07/04/2017,3849821,383.00,Account 3 Ltd
Children's Services,Children's Social Care,Support Service and Management Costs,Schools Catering,Kitchen Supplies - Food and Beverages,07/04/2017,3849851,262.81,William White Meats Ltd
Children's Services,Children's Social Care,Commissioning and Social Work,Children-Mental Health,Social Care - Nursing Care,07/04/2017,3852104,"61,643.40",East London NHS Foundation Trust
Children's Services,Children's Social Care,Service Strategy,Contribution to CAMHS Pool,Social Care - Nursing Care,07/04/2017,3852105,"48,157.19",East London NHS Foundation Trust
Children's Services,Children's Social Care,Family Support Services,Disabled Children�s Outreach Service,Social Care - Nursing Care,07/04/2017,3852106,"43,328.05",East London NHS Foundation Trust
Children's Services,Children's Social Care,Support Service and Management Costs,Sch. Meals A/c - P.D.C. Cateen,Kitchen Supplies - Catering Equipment,07/04/2017,3852136,524.18,Pelican Rouge Coffee Solutions Ltd
Children's Services,Children's Social Care,Support Service and Management Costs,"Programme Management		",Training Expenses - Staff External Training (UK Based),07/04/2017,3852158,"9,999.00",The Knowledge Academy
Children's Services,Education Services,Other Strategic Functions,High Needs Other Boroughs,Third Party Payments - Payments to Schools,07/04/2017,3852169,"8,896.65",Valentines High School
Children's Services,Cultural and Related Services,Recreation & Sport,Mayors Cup,Recreational Activities,07/04/2017,3852231,"2,100.00",Newitts
Children's Services,Cultural and Related Services,Recreation & Sport,Mayors Cup,Recreational Activities,07/04/2017,3852232,495.55,Newitts
Children's Services,Education Services,Early Years,Marner. CC,Office Furniture/Equipment,07/04/2017,3853480,473.55,Yorkshire Purchasing Organisation
Children's Services,Children's Social Care,Support Service and Management Costs,Welfare Catering,Kitchen Supplies - Food and Beverages,07/04/2017,3853790,293.93,Apetito LTD
Children's Services,Children's Social Care,Children's and Young People's Safety,Local Safegrd Child Board:LSCB,Other Contributions - Other Agencies,07/04/2017,3854083,"2,030.00",Berrick Computing Ltd
Children's Services,Education Services,Primary Schools,Primary Schools Development,Education & Training - Non Staff Tuition Fees,07/04/2017,3855701,400.00,Bow Arts Trust
Children's Services,Education Services,Services to Young People and Other Community Learners,Holiday Childcare,Educational/Training Supplies - Arts & Crafts,07/04/2017,3855713,456.78,ESPO
Children's Services,Education Services,Early Years,Meath Gardens CC,Community Equipment  Supplies - Non Store Items,07/04/2017,3855808,701.65,ESPO
Children's Services,Education Services,Early Years,Meath Gardens CC,Community Equipment  Supplies - Non Store Items,07/04/2017,3855840,"1,069.70",ESPO
Children's Services,Children's Social Care,Children Looked After,LCS/Allowances-Accom,Leaving Care Financial Assistance - Supp Accom/Hous Rents,07/04/2017,3856569,925.00,Real Life
Children's Services,Children's Social Care,Children Looked After,S23-Other-Semi-Ind. Unit,Childrens Act Section 23 - Placement Fee,07/04/2017,3856570,"2,514.27",Real Life
Children's Services,Children's Social Care,Service Strategy,89 CA Sec 17 Chld in Need WAPP,Childrens Act Section 17 - Other Childcare Support,07/04/2017,3860921,365.00,BETHNAL GREEN SOCIAL SERVICES
Children's Services,Children's Social Care,Children Looked After,S23 Fam Pl P&V-F/Care,Childrens Act Section 23 - Placement Fee,07/04/2017,3860954,"4,185.00",St Christopher's Fellowship
Children's Services,Children's Social Care,Children Looked After,LCS/Allowances-Accom,Leaving Care Financial Assistance - Supp Accom/Hous Rents,07/04/2017,3861011,"2,999.99",Transforming Lives Co
Children's Services,Children's Social Care,Children Looked After,S23 Fam Pl P&V-F/Care,Childrens Act Section 23 - Placement Fee,07/04/2017,3861300,"3,401.32",Next Step Fostering Services Ltd
Children's Services,Education Services,Other Strategic Functions,Education Arts Grants,Levies - Baits and Poisons,07/04/2017,3861310,"4,922.00",Stepney City Farm
Children's Services,Education Services,Other Strategic Functions,Music Trading Account,Third Party Payments - Other Establishments,07/04/2017,3861335,"4,000.00",Redacted Section 40 FOI ACT
Children's Services,Children's Social Care,Children Looked After,S23-Resi-P&V/OLA-Sec Acc-Wel,Services - Professional Fees - Security Fees,07/04/2017,3861336,"1,498.70",Wrixon Care Services
Children's Services,Education Services,Early Years,Collingwood,Educational/Training Supplies - Arts & Crafts,07/04/2017,3861340,"1,523.00",Early Excellence
Children's Services,Education Services,Other Strategic Functions,High Needs FE Colleges,Third Party Payments - Payments to Schools,07/04/2017,3861430,"4,528.47",Newham College of Further Education
Children's Services,Children's Social Care,Children Looked After,S23 Fam Pl P&V-F/Care,Childrens Act Section 23 - Placement Fee,07/04/2017,3864256,926.20,Family Fostering
Children's Services,Children's Social Care,Children Looked After,C.B.C & Fam.Prev/Support-Mgmnt,Social Care - Day Care,07/04/2017,3864324,"8,200.00",ACTION FOR CHILDREN SERVICES LTD
Children's Services,Education Services,Other Strategic Functions,Special Education Needs DSG,Third Party Payments - Payments to Schools,07/04/2017,3864334,"7,000.00",The Complete Works Ltd
Children's Services,Education Services,Early Years,John Smith CC,Medical Requisites,07/04/2017,3864354,260.00,DHB Oral Healthcare
Children's Services,Education Services,Other Strategic Functions,Special Education Needs DSG,Third Party Payments - Payments to Schools,07/04/2017,3864932,"7,000.00",The Complete Works Ltd
Children's Services,Education Services,Other Strategic Functions,Special Education Needs DSG,Third Party Payments - Payments to Schools,07/04/2017,3864934,"7,000.00",The Complete Works Ltd
Children's Services,Education Services,Other Strategic Functions,Special Education Needs DSG,Third Party Payments - Payments to Schools,07/04/2017,3864977,"7,000.00",The Complete Works Ltd
Children's Services,Education Services,Other Strategic Functions,Special Education Needs DSG,Third Party Payments - Payments to Schools,07/04/2017,3864992,"3,750.00",The Complete Works Ltd
Children's Services,Education Services,Other Strategic Functions,Special Education Needs DSG,Third Party Payments - Payments to Schools,07/04/2017,3865004,"11,875.00",The Complete Works Ltd
Children's Services,Education Services,Other Strategic Functions,Special Education Needs DSG,Third Party Payments - Payments to Schools,07/04/2017,3865014,"7,000.00",The Complete Works Ltd
Children's Services,Children's Social Care,Children Looked After,LCS/Allowances-Accom,Leaving Care Financial Assistance - Supp Accom/Hous Rents,07/04/2017,3865314,"1,107.14",Newhaven 16 Plus
Children's Services,Children's Social Care,Children Looked After,LCS/Allowances-Accom,Leaving Care Financial Assistance - Supp Accom/Hous Rents,07/04/2017,3865316,960.11,Newhaven 16 Plus
Children's Services,Children's Social Care,Children Looked After,Leaving Care-UASC,Leaving Care Financial Assistance - Supp Accom/Hous Rents,07/04/2017,3865317,960.11,Newhaven 16 Plus
Children's Services,Children's Social Care,Children Looked After,LCS/Allowances-Accom,Leaving Care Financial Assistance - Supp Accom/Hous Rents,07/04/2017,3865318,"1,860.00",Newhaven 16 Plus
Children's Services,Children's Social Care,Children Looked After,LCS/Allowances-Accom,Leaving Care Financial Assistance - Supp Accom/Hous Rents,07/04/2017,3865320,960.11,Newhaven 16 Plus
Children's Services,Children's Social Care,Children Looked After,LCS/Allowances-Accom,Leaving Care Financial Assistance - Supp Accom/Hous Rents,07/04/2017,3865321,960.11,Newhaven 16 Plus
Children's Services,Children's Social Care,Children Looked After,LCS/Allowances-Accom,Leaving Care Financial Assistance - Supp Accom/Hous Rents,07/04/2017,3865323,960.11,Newhaven 16 Plus
Children's Services,Children's Social Care,Children Looked After,LCS/Allowances-Accom,Leaving Care Financial Assistance - Supp Accom/Hous Rents,07/04/2017,3865325,960.11,Newhaven 16 Plus
Children's Services,Children's Social Care,Children Looked After,LCS/Allowances-Accom,Leaving Care Financial Assistance - Supp Accom/Hous Rents,07/04/2017,3865326,960.11,Newhaven 16 Plus
Children's Services,Children's Social Care,Children Looked After,LCS/Allowances-Accom,Leaving Care Financial Assistance - Supp Accom/Hous Rents,07/04/2017,3865329,557.49,Newhaven 16 Plus
Children's Services,Children's Social Care,Children Looked After,LCS/Allowances-Accom,Leaving Care Financial Assistance - Supp Accom/Hous Rents,07/04/2017,3865330,805.26,Newhaven 16 Plus
Children's Services,Children's Social Care,Children Looked After,Leaving Care-UASC,Leaving Care Financial Assistance - Supp Accom/Hous Rents,07/04/2017,3865447,442.86,Newhaven 16 Plus
Children's Services,Children's Social Care,Children Looked After,LCS/Allowances-Accom,Leaving Care Financial Assistance - Supp Accom/Hous Rents,07/04/2017,3865448,-770.48,Newhaven 16 Plus
Children's Services,Children's Social Care,Children Looked After,LCS/Allowances-Accom,Leaving Care Financial Assistance - Supp Accom/Hous Rents,07/04/2017,3865449,-622.28,Newhaven 16 Plus
Children's Services,Children's Social Care,Children Looked After,LCS/Allowances-Accom,Leaving Care Financial Assistance - Supp Accom/Hous Rents,07/04/2017,3865450,885.71,Newhaven 16 Plus
Children's Services,Children's Social Care,Children Looked After,LCS/Allowances-Accom,Leaving Care Financial Assistance - Supp Accom/Hous Rents,07/04/2017,3865452,"3,645.60",Newhaven 16 Plus
Children's Services,Children's Social Care,Children Looked After,LCS/Allowances-Accom,Leaving Care Financial Assistance - Supp Accom/Hous Rents,07/04/2017,3865453,"3,645.60",Newhaven 16 Plus
Children's Services,Children's Social Care,Children Looked After,LCS/Allowances-Accom,Leaving Care Financial Assistance - Supp Accom/Hous Rents,07/04/2017,3865454,"3,645.60",Newhaven 16 Plus
Children's Services,Children's Social Care,Children Looked After,LCS/Allowances-Accom,Leaving Care Financial Assistance - Supp Accom/Hous Rents,07/04/2017,3865474,"-1,194.69",Newhaven 16 Plus
Children's Services,Children's Social Care,Children Looked After,LCS/Allowances-Accom,Leaving Care Financial Assistance - Supp Accom/Hous Rents,07/04/2017,3865475,"4,285.03",Newhaven 16 Plus
Children's Services,Children's Social Care,Children Looked After,LCS/Allowances-Accom,Leaving Care Financial Assistance - Supp Accom/Hous Rents,07/04/2017,3865486,"3,689.89",Newhaven 16 Plus
Children's Services,Cultural and Related Services,Culture & Heritage,Arts-Park Events,Events & Exhibition Supplies,07/04/2017,3865607,"2,000.00",Gurdwara Sikh Sangat
Children's Services,Children's Social Care,Children Looked After,Virtual School PPG,Third Party Payments - Payments to Schools,07/04/2017,3865683,423.00,The Sheiling Special Education Trust
Children's Services,Children's Social Care,Children Looked After,S23-Resi-P&V/OLA-Child Home,Social Care - Day Care,07/04/2017,3865689,"2,250.00",Heartwood Outreach Services Ltd
Children's Services,Children's Social Care,Children Looked After,S23-Resi-P&V/OLA-Child Home,Childrens Act Section 23 - Placement Fee,07/04/2017,3866923,"6,857.14",Quality Protects Children Ltd
Children's Services,Children's Social Care,Children Looked After,S23-Resi-P&V/OLA-Child Home,Childrens Act Section 23 - Placement Fee,07/04/2017,3866926,"7,200.00",Quality Protects Children Ltd
Children's Services,Children's Social Care,Children Looked After,S23-Resi-P&V/OLA-Sec Acc-Wel,Childrens Act Section 23 - Placement Fee,07/04/2017,3866933,"12,784.00",Swanwick Lodge Hampshire County Council
Children's Services,Children's Social Care,Services for young people,Connexions General Fund,Educational/Training Supplies - Curriculum Visits/Activities,07/04/2017,3866934,"1,716.00",Tower Hamlets Community Transport
Children's Services,Children's Social Care,Children Looked After,Leaving Care-UASC,Leaving Care Financial Assistance - Supp Accom/Hous Rents,07/04/2017,3866940,998.25,Circle Housing Old Ford
Children's Services,Children's Social Care,Support Service and Management Costs,Schools Catering,Kitchen Supplies - Food and Beverages,07/04/2017,3866943,322.76,Jones Brothers
Children's Services,Children's Social Care,Children Looked After,C.B.C & Fam.Prev/Support-Mgmnt,Third Party Payments - Staff External Training (UK Based),07/04/2017,3866959,"3,392.64",TCS SERVICES LTD
Children's Services,Children's Social Care,Support Service and Management Costs,Welfare Catering,Kitchen Supplies - Food and Beverages,07/04/2017,3866961,702.40,Raj Foods LTD
Children's Services,Children's Social Care,Children Looked After,S23-Resi-P&V/OLA-Child Home,Childrens Act Section 23 - Placement Fee,07/04/2017,3867028,"10,628.57",Quality Protects Children Ltd
Children's Services,Children's Social Care,Children Looked After,LCS/Allowances-Accom,Leaving Care Financial Assistance - Supp Accom/Hous Rents,07/04/2017,3867030,475.00,Newhaven 16 Plus
Children's Services,Children's Social Care,Children Looked After,C.B.C & Fam.Prev/Support-Mgmnt,Third Party Payments - Staff External Training (UK Based),07/04/2017,3867039,"5,706.96",TCS SERVICES LTD
Children's Services,Children's Social Care,Children Looked After,S23-Resi-P&V/OLA-Child Home,Childrens Act Section 23 - Placement Fee,07/04/2017,3867054,"10,628.57",Quality Protects Children Ltd
Children's Services,Children's Social Care,Children Looked After,LCS/Allowances-Accom,Leaving Care Financial Assistance - Supp Accom/Hous Rents,07/04/2017,3867055,260.00,Newhaven 16 Plus
Children's Services,Children's Social Care,Children Looked After,S23-Resi-P&V/OLA-Child Home,Childrens Act Section 23 - Placement Fee,07/04/2017,3867065,"9,600.00",Quality Protects Children Ltd
Children's Services,Children's Social Care,Children Looked After,LCS/Allowances-Accom,Leaving Care Financial Assistance - Supp Accom/Hous Rents,07/04/2017,3867072,505.00,Newhaven 16 Plus
Children's Services,Children's Social Care,Children Looked After,LCS/Allowances-Accom,Leaving Care Financial Assistance - Supp Accom/Hous Rents,07/04/2017,3867076,"1,056.00",Newhaven 16 Plus
Children's Services,Cultural and Related Services,Open Spaces,Mile End Park,Repairs and Maintenance - Responsive - Buildings,07/04/2017,3867784,305.36,Office Depot (Catalogue)
Children's Services,Children's Social Care,Services for young people,Outdoor,Educational/Training Supplies - Curriculum Visits/Activities,07/04/2017,3867833,576.00,Mile End Climbing Wall
Children's Services,Children's Social Care,Children Looked After,S23-Resi-P&V/OLA-Child Home,Childrens Act Section 23 - Placement Fee,07/04/2017,3867840,"10,000.00",Bellview Homecare
Children's Services,Children's Social Care,Support Service and Management Costs,Sch. Meals A/c - George Green,Kitchen Supplies - Food and Beverages,07/04/2017,3867875,485.89,Chicken Joes
Children's Services,Children's Social Care,Support Service and Management Costs,Sch. Meals A/c - Langdon Park,Kitchen Supplies - Food and Beverages,07/04/2017,3867876,251.37,Chicken Joes
Children's Services,Children's Social Care,Support Service and Management Costs,Sch. Meals A/c - Mulberry,Kitchen Supplies - Food and Beverages,07/04/2017,3867878,357.97,Chicken Joes
Children's Services,Children's Social Care,Support Service and Management Costs,Sch. Meals A/c - C.F.S. Upper (Harley Grove),Kitchen Supplies - Food and Beverages,07/04/2017,3867879,603.35,Chicken Joes
Children's Services,Children's Social Care,Support Service and Management Costs,Swanlea,Kitchen Supplies - Food and Beverages,07/04/2017,3867880,621.08,Chicken Joes
Children's Services,Children's Social Care,Support Service and Management Costs,Welfare Catering,Kitchen Supplies - Food and Beverages,07/04/2017,3867940,"2,122.84",Raj Foods LTD
Children's Services,Children's Social Care,Support Service and Management Costs,Sch. Meals A/c - George Green,Kitchen Supplies - Food and Beverages,07/04/2017,3867988,495.05,Chicken Joes
Children's Services,Children's Social Care,Support Service and Management Costs,Welfare Catering,Kitchen Supplies - Food and Beverages,07/04/2017,3868015,"1,208.79",Raj Foods LTD
Children's Services,Children's Social Care,Children Looked After,S23 Fam Pl P&V-F/Care,Childrens Act Section 23 - Placement Fee,07/04/2017,3868839,454.24,Affinity Fostering Services Ltd
Children's Services,Children's Social Care,Children Looked After,S23 Fam Pl In-Hse-Placed Home,Childrens Act Section 23 - Spec Pymnts Legal,07/04/2017,3868916,456.30,BIBBY FACTORS YORKSHIRE LTD
Children's Services,Children's Social Care,Family Support Services,Family Intervention Programme,Training Expenses - Other Internal Training,10/04/2017,3843486,600.00,Redacted Section 40 FOI ACT
Children's Services,Highways and Transport Services,Management and Support Services,Contract Services M & A,Photocopier Charges - Consumables,10/04/2017,3848544,296.61,Supplies Team Ltd
Children's Services,Children's Social Care,Support Service and Management Costs,Welfare Catering,Kitchen Supplies - Food and Beverages,10/04/2017,3849119,510.73,Thomas Ridley & Son Ltd
Children's Services,Children's Social Care,Support Service and Management Costs,Schools Catering,Kitchen Supplies - Food and Beverages,10/04/2017,3849120,"1,300.31",Thomas Ridley & Son Ltd
Children's Services,Education Services,Other Strategic Functions,Schools Library,Comms - Courier,10/04/2017,3849129,"1,551.00",Figurehead Studios
Children's Services,Children's Social Care,Children Looked After,S23 Fam Pl P&V-F/Care,Childrens Act Section 23 - All Contact Expenses,10/04/2017,3849143,286.50,A. A. Agency Ltd
Children's Services,Education Services,Early Years,Overland CC,Stationery,10/04/2017,3849170,785.20,Office Depot (Catalogue)
Children's Services,Children's Social Care,Support Service and Management Costs,Schools Catering,Materials - Cleaning Materials,10/04/2017,3849175,360.87,The Maintenance Supply Co Ltd
Children's Services,Education Services,Other Strategic Functions,Schools Library,Comms - Courier,10/04/2017,3849181,"2,450.00",Figurehead Studios
Children's Services,Children's Social Care,Support Service and Management Costs,Schools Catering,Kitchen Supplies - Food and Beverages,10/04/2017,3849187,724.33,Thomas Ridley & Son Ltd
Children's Services,Children's Social Care,Support Service and Management Costs,Schools Catering,Kitchen Supplies - Food and Beverages,10/04/2017,3849194,687.63,Thomas Ridley & Son Ltd
Children's Services,Children's Social Care,Support Service and Management Costs,Schools Catering,Kitchen Supplies - Food and Beverages,10/04/2017,3849199,327.24,Thomas Ridley & Son Ltd
Children's Services,Children's Social Care,Support Service and Management Costs,Schools Catering,Kitchen Supplies - Food and Beverages,10/04/2017,3849206,559.54,Thomas Ridley & Son Ltd
Children's Services,Children's Social Care,Support Service and Management Costs,Schools Catering,Kitchen Supplies - Food and Beverages,10/04/2017,3849212,366.69,Thomas Ridley & Son Ltd
Children's Services,Children's Social Care,Support Service and Management Costs,Schools Catering,Kitchen Supplies - Food and Beverages,10/04/2017,3849215,270.51,Thomas Ridley & Son Ltd
Children's Services,Children's Social Care,Support Service and Management Costs,Schools Catering,Kitchen Supplies - Food and Beverages,10/04/2017,3849221,709.40,Thomas Ridley & Son Ltd
Children's Services,Children's Social Care,Support Service and Management Costs,Schools Catering,Kitchen Supplies - Food and Beverages,10/04/2017,3849230,862.44,Thomas Ridley & Son Ltd
Children's Services,Children's Social Care,Support Service and Management Costs,Schools Catering,Kitchen Supplies - Food and Beverages,10/04/2017,3849233,984.06,Thomas Ridley & Son Ltd
Children's Services,Children's Social Care,Support Service and Management Costs,Schools Catering,Kitchen Supplies - Food and Beverages,10/04/2017,3849275,682.94,Thomas Ridley & Son Ltd
Children's Services,Children's Social Care,Support Service and Management Costs,Schools Catering,Kitchen Supplies - Food and Beverages,10/04/2017,3849278,518.96,Thomas Ridley & Son Ltd
Children's Services,Children's Social Care,Support Service and Management Costs,Schools Catering,Kitchen Supplies - Food and Beverages,10/04/2017,3849281,611.83,Thomas Ridley & Son Ltd
Children's Services,Children's Social Care,Support Service and Management Costs,Schools Catering,Kitchen Supplies - Food and Beverages,10/04/2017,3849287,486.84,Thomas Ridley & Son Ltd
Children's Services,Children's Social Care,Support Service and Management Costs,Schools Catering,Kitchen Supplies - Food and Beverages,10/04/2017,3849290,372.16,Thomas Ridley & Son Ltd
Children's Services,Children's Social Care,Support Service and Management Costs,Schools Catering,Kitchen Supplies - Food and Beverages,10/04/2017,3849294,547.43,Thomas Ridley & Son Ltd
Children's Services,Children's Social Care,Support Service and Management Costs,Schools Catering,Kitchen Supplies - Food and Beverages,10/04/2017,3849298,381.78,Thomas Ridley & Son Ltd
Children's Services,Children's Social Care,Support Service and Management Costs,Schools Catering,Kitchen Supplies - Food and Beverages,10/04/2017,3849318,389.06,Thomas Ridley & Son Ltd
Children's Services,Children's Social Care,Support Service and Management Costs,Schools Catering,Kitchen Supplies - Food and Beverages,10/04/2017,3849322,388.24,Prescott-Thomas LTD.
Children's Services,Children's Social Care,Support Service and Management Costs,Schools Catering,Kitchen Supplies - Food and Beverages,10/04/2017,3849397,263.16,Prescott-Thomas LTD.
Children's Services,Children's Social Care,Support Service and Management Costs,Schools Catering,Kitchen Supplies - Food and Beverages,10/04/2017,3849420,"1,219.27",Thomas Ridley & Son Ltd
Children's Services,Children's Social Care,Support Service and Management Costs,Schools Catering,Kitchen Supplies - Food and Beverages,10/04/2017,3849423,615.79,Thomas Ridley & Son Ltd
Children's Services,Children's Social Care,Support Service and Management Costs,Schools Catering,Kitchen Supplies - Food and Beverages,10/04/2017,3849424,260.82,Prescott-Thomas LTD.
Children's Services,Children's Social Care,Support Service and Management Costs,Schools Catering,Kitchen Supplies - Food and Beverages,10/04/2017,3849429,321.17,Thomas Ridley & Son Ltd
Children's Services,Children's Social Care,Support Service and Management Costs,Schools Catering,Kitchen Supplies - Food and Beverages,10/04/2017,3849430,264.82,Prescott-Thomas LTD.
Children's Services,Children's Social Care,Support Service and Management Costs,Schools Catering,Kitchen Supplies - Food and Beverages,10/04/2017,3849444,386.00,Thomas Ridley & Son Ltd
Children's Services,Children's Social Care,Support Service and Management Costs,Schools Catering,Kitchen Supplies - Food and Beverages,10/04/2017,3849447,415.28,Thomas Ridley & Son Ltd
Children's Services,Children's Social Care,Support Service and Management Costs,Schools Catering,Kitchen Supplies - Food and Beverages,10/04/2017,3849450,692.10,Thomas Ridley & Son Ltd
Children's Services,Children's Social Care,Support Service and Management Costs,Schools Catering,Kitchen Supplies - Food and Beverages,10/04/2017,3849459,323.73,Thomas Ridley & Son Ltd
Children's Services,Children's Social Care,Support Service and Management Costs,Schools Catering,Kitchen Supplies - Food and Beverages,10/04/2017,3849462,404.31,Thomas Ridley & Son Ltd
Children's Services,Children's Social Care,Support Service and Management Costs,Schools Catering,Kitchen Supplies - Food and Beverages,10/04/2017,3849465,385.29,Thomas Ridley & Son Ltd
Children's Services,Children's Social Care,Support Service and Management Costs,Schools Catering,Kitchen Supplies - Food and Beverages,10/04/2017,3849468,302.11,Thomas Ridley & Son Ltd
Children's Services,Children's Social Care,Support Service and Management Costs,Schools Catering,Kitchen Supplies - Food and Beverages,10/04/2017,3849475,891.15,Thomas Ridley & Son Ltd
Children's Services,Children's Social Care,Support Service and Management Costs,Schools Catering,Kitchen Supplies - Food and Beverages,10/04/2017,3849478,838.62,Thomas Ridley & Son Ltd
Children's Services,Children's Social Care,Support Service and Management Costs,Schools Catering,Kitchen Supplies - Food and Beverages,10/04/2017,3849484,412.27,Thomas Ridley & Son Ltd
Children's Services,Children's Social Care,Support Service and Management Costs,Schools Catering,Kitchen Supplies - Food and Beverages,10/04/2017,3849487,266.05,Thomas Ridley & Son Ltd
Children's Services,Children's Social Care,Support Service and Management Costs,Schools Catering,Kitchen Supplies - Food and Beverages,10/04/2017,3849499,324.01,Thomas Ridley & Son Ltd
Children's Services,Children's Social Care,Support Service and Management Costs,Schools Catering,Kitchen Supplies - Food and Beverages,10/04/2017,3849520,"1,088.06",Thomas Ridley & Son Ltd
Children's Services,Children's Social Care,Support Service and Management Costs,Schools Catering,Kitchen Supplies - Food and Beverages,10/04/2017,3849532,297.75,Thomas Ridley & Son Ltd
Children's Services,Children's Social Care,Support Service and Management Costs,Schools Catering,Kitchen Supplies - Food and Beverages,10/04/2017,3849535,422.00,Thomas Ridley & Son Ltd
Children's Services,Children's Social Care,Support Service and Management Costs,Schools Catering,Kitchen Supplies - Food and Beverages,10/04/2017,3849540,270.19,Thomas Ridley & Son Ltd
Children's Services,Children's Social Care,Support Service and Management Costs,Schools Catering,Kitchen Supplies - Food and Beverages,10/04/2017,3849542,734.06,Thomas Ridley & Son Ltd
Children's Services,Children's Social Care,Support Service and Management Costs,Schools Catering,Kitchen Supplies - Food and Beverages,10/04/2017,3849544,323.73,Thomas Ridley & Son Ltd
Children's Services,Children's Social Care,Support Service and Management Costs,Schools Catering,Kitchen Supplies - Food and Beverages,10/04/2017,3849546,344.27,Thomas Ridley & Son Ltd
Children's Services,Children's Social Care,Support Service and Management Costs,Schools Catering,Kitchen Supplies - Food and Beverages,10/04/2017,3849548,364.56,Thomas Ridley & Son Ltd
Children's Services,Children's Social Care,Support Service and Management Costs,Schools Catering,Kitchen Supplies - Food and Beverages,10/04/2017,3849554,320.72,Thomas Ridley & Son Ltd
Children's Services,Children's Social Care,Support Service and Management Costs,Schools Catering,Kitchen Supplies - Food and Beverages,10/04/2017,3849560,256.07,Thomas Ridley & Son Ltd
Children's Services,Children's Social Care,Children Looked After,S23-Other-Semi-Ind. Unit,Childrens Act Section 23 - Placement Fee,10/04/2017,3849662,"5,314.33",St Christopher's Fellowship
Children's Services,Children's Social Care,Support Service and Management Costs,Schools Catering,Materials - Cleaning Materials,10/04/2017,3852267,355.55,The Maintenance Supply Co Ltd
Children's Services,Children's Social Care,Support Service and Management Costs,Schools Catering,Kitchen Supplies - Food and Beverages,10/04/2017,3852268,661.97,Thomas Ridley & Son Ltd
Children's Services,Children's Social Care,Support Service and Management Costs,Schools Catering,Kitchen Supplies - Food and Beverages,10/04/2017,3852289,517.95,Thomas Ridley & Son Ltd
Children's Services,Children's Social Care,Support Service and Management Costs,Schools Catering,Kitchen Supplies - Food and Beverages,10/04/2017,3852308,"1,250.23",Thomas Ridley & Son Ltd
Children's Services,Children's Social Care,Support Service and Management Costs,Schools Catering,Kitchen Supplies - Food and Beverages,10/04/2017,3852318,718.84,Thomas Ridley & Son Ltd
Children's Services,Children's Social Care,Support Service and Management Costs,Schools Catering,Kitchen Supplies - Food and Beverages,10/04/2017,3852321,267.55,Thomas Ridley & Son Ltd
Children's Services,Children's Social Care,Support Service and Management Costs,Schools Catering,Kitchen Supplies - Food and Beverages,10/04/2017,3852328,327.51,Thomas Ridley & Son Ltd
Children's Services,Children's Social Care,Support Service and Management Costs,Schools Catering,Kitchen Supplies - Food and Beverages,10/04/2017,3852331,343.73,Thomas Ridley & Son Ltd
Children's Services,Children's Social Care,Support Service and Management Costs,Schools Catering,Kitchen Supplies - Food and Beverages,10/04/2017,3852334,336.32,Thomas Ridley & Son Ltd
Children's Services,Children's Social Care,Support Service and Management Costs,Schools Catering,Kitchen Supplies - Food and Beverages,10/04/2017,3852342,402.65,Thomas Ridley & Son Ltd
Children's Services,Children's Social Care,Support Service and Management Costs,Schools Catering,Kitchen Supplies - Food and Beverages,10/04/2017,3852344,299.12,Thomas Ridley & Son Ltd
Children's Services,Children's Social Care,Support Service and Management Costs,Schools Catering,Kitchen Supplies - Food and Beverages,10/04/2017,3852346,551.75,Thomas Ridley & Son Ltd
Children's Services,Children's Social Care,Support Service and Management Costs,Schools Catering,Kitchen Supplies - Food and Beverages,10/04/2017,3852348,385.18,Thomas Ridley & Son Ltd
Children's Services,Children's Social Care,Support Service and Management Costs,Schools Catering,Kitchen Supplies - Food and Beverages,10/04/2017,3852350,405.19,Thomas Ridley & Son Ltd
Children's Services,Children's Social Care,Support Service and Management Costs,Schools Catering,Kitchen Supplies - Food and Beverages,10/04/2017,3852352,476.27,Thomas Ridley & Son Ltd
Children's Services,Children's Social Care,Support Service and Management Costs,Schools Catering,Kitchen Supplies - Food and Beverages,10/04/2017,3852354,359.49,Thomas Ridley & Son Ltd
Children's Services,Children's Social Care,Support Service and Management Costs,Schools Catering,Kitchen Supplies - Food and Beverages,10/04/2017,3852356,444.88,Thomas Ridley & Son Ltd
Children's Services,Children's Social Care,Support Service and Management Costs,Schools Catering,Kitchen Supplies - Food and Beverages,10/04/2017,3852358,341.98,Thomas Ridley & Son Ltd
Children's Services,Children's Social Care,Support Service and Management Costs,Schools Catering,Kitchen Supplies - Food and Beverages,10/04/2017,3852361,279.19,Thomas Ridley & Son Ltd
Children's Services,Children's Social Care,Support Service and Management Costs,Schools Catering,Kitchen Supplies - Food and Beverages,10/04/2017,3852374,381.55,Thomas Ridley & Son Ltd
Children's Services,Children's Social Care,Support Service and Management Costs,Schools Catering,Kitchen Supplies - Food and Beverages,10/04/2017,3852379,836.92,Thomas Ridley & Son Ltd
Children's Services,Children's Social Care,Children Looked After,Virtual School PPG,Third Party Payments - Payments to Schools,10/04/2017,3853124,"1,200.00",RUSH GREEN PRIMARY SCHOOL
Children's Services,Education Services,Early Years,Isle of Dogs. CC,Tools and Equipment - Purchase,10/04/2017,3853482,410.45,Yorkshire Purchasing Organisation
Children's Services,Education Services,Early Years,Meath Gardens CC,Community Equipment  Supplies - Non Store Items,10/04/2017,3853505,390.45,Space kraft Ltd
Children's Services,Highways and Transport Services,Management and Support Services,Contract Services M & A,Subscriptions - Associations,10/04/2017,3853710,"9,014.10",APSE
Children's Services,Children's Social Care,Support Service and Management Costs,Schools Catering,Kitchen Supplies - Food and Beverages,10/04/2017,3853801,424.82,William White Meats Ltd
Children's Services,Children's Social Care,Support Service and Management Costs,Schools Catering,Kitchen Supplies - Food and Beverages,10/04/2017,3853918,330.00,William White Meats Ltd
Children's Services,Children's Social Care,Support Service and Management Costs,Schools Catering,Kitchen Supplies - Food and Beverages,10/04/2017,3853936,313.51,William White Meats Ltd
Children's Services,Children's Social Care,Support Service and Management Costs,Schools Catering,Kitchen Supplies - Food and Beverages,10/04/2017,3853942,892.39,William White Meats Ltd
Children's Services,Children's Social Care,Support Service and Management Costs,Schools Catering,Kitchen Supplies - Food and Beverages,10/04/2017,3853960,289.91,William White Meats Ltd
Children's Services,Children's Social Care,Support Service and Management Costs,Schools Catering,Kitchen Supplies - Food and Beverages,10/04/2017,3853970,369.00,William White Meats Ltd
Children's Services,Children's Social Care,Support Service and Management Costs,Schools Catering,Kitchen Supplies - Food and Beverages,10/04/2017,3853975,349.50,William White Meats Ltd
Children's Services,Children's Social Care,Support Service and Management Costs,Schools Catering,Kitchen Supplies - Food and Beverages,10/04/2017,3853983,326.98,William White Meats Ltd
Children's Services,Children's Social Care,Support Service and Management Costs,Schools Catering,Kitchen Supplies - Food and Beverages,10/04/2017,3854003,483.54,William White Meats Ltd
Children's Services,Children's Social Care,Support Service and Management Costs,Schools Catering,Kitchen Supplies - Food and Beverages,10/04/2017,3854007,286.44,William White Meats Ltd
Children's Services,Children's Social Care,Support Service and Management Costs,Schools Catering,Kitchen Supplies - Food and Beverages,10/04/2017,3854013,859.17,William White Meats Ltd
Children's Services,Children's Social Care,Support Service and Management Costs,Schools Catering,Kitchen Supplies - Food and Beverages,10/04/2017,3854019,275.28,William White Meats Ltd
Children's Services,Children's Social Care,Support Service and Management Costs,Schools Catering,Kitchen Supplies - Food and Beverages,10/04/2017,3854021,521.08,William White Meats Ltd
Children's Services,Children's Social Care,Support Service and Management Costs,Schools Catering,Kitchen Supplies - Food and Beverages,10/04/2017,3854023,290.94,William White Meats Ltd
Children's Services,Children's Social Care,Support Service and Management Costs,Schools Catering,Kitchen Supplies - Food and Beverages,10/04/2017,3854025,397.05,William White Meats Ltd
Children's Services,Children's Social Care,Support Service and Management Costs,Schools Catering,Kitchen Supplies - Food and Beverages,10/04/2017,3854027,625.27,William White Meats Ltd
Children's Services,Children's Social Care,Support Service and Management Costs,Schools Catering,Kitchen Supplies - Food and Beverages,10/04/2017,3854031,361.40,William White Meats Ltd
Children's Services,Children's Social Care,Support Service and Management Costs,Schools Catering,Kitchen Supplies - Food and Beverages,10/04/2017,3854033,"1,369.76",William White Meats Ltd
Children's Services,Children's Social Care,Support Service and Management Costs,Schools Catering,Kitchen Supplies - Food and Beverages,10/04/2017,3854035,324.80,William White Meats Ltd
Children's Services,Children's Social Care,Support Service and Management Costs,Schools Catering,Kitchen Supplies - Food and Beverages,10/04/2017,3854043,251.62,William White Meats Ltd
Children's Services,Children's Social Care,Support Service and Management Costs,Schools Catering,Kitchen Supplies - Food and Beverages,10/04/2017,3854045,747.75,William White Meats Ltd
Children's Services,Children's Social Care,Support Service and Management Costs,Schools Catering,Kitchen Supplies - Food and Beverages,10/04/2017,3854047,531.10,William White Meats Ltd
Children's Services,Children's Social Care,Support Service and Management Costs,Schools Catering,Kitchen Supplies - Food and Beverages,10/04/2017,3854053,548.98,William White Meats Ltd
Children's Services,Children's Social Care,Support Service and Management Costs,Schools Catering,Kitchen Supplies - Food and Beverages,10/04/2017,3854057,273.05,William White Meats Ltd
Children's Services,Children's Social Care,Support Service and Management Costs,Schools Catering,Kitchen Supplies - Food and Beverages,10/04/2017,3854061,265.90,William White Meats Ltd
Children's Services,Children's Social Care,Support Service and Management Costs,Schools Catering,Kitchen Supplies - Food and Beverages,10/04/2017,3854070,304.31,William White Meats Ltd
Children's Services,Children's Social Care,Support Service and Management Costs,Schools Catering,Kitchen Supplies - Food and Beverages,10/04/2017,3854073,299.81,William White Meats Ltd
Children's Services,Children's Social Care,Support Service and Management Costs,Schools Catering,Kitchen Supplies - Food and Beverages,10/04/2017,3854076,304.78,William White Meats Ltd
Children's Services,Children's Social Care,Support Service and Management Costs,Schools Catering,Kitchen Supplies - Food and Beverages,10/04/2017,3854081,772.95,William White Meats Ltd
Children's Services,Children's Social Care,Children Looked After,LCS/Allowances-Accom,Leaving Care Financial Assistance - User Inv Care Lea Group,10/04/2017,3856563,"1,000.00",Love2Reward
Children's Services,Children's Social Care,Children's and Young People's Safety,Community Safeguarding,Training Expenses - Staff External Training (UK Based),10/04/2017,3861265,400.00,WF Somali Women Association
Children's Services,Children's Social Care,Children Looked After,Fostering Support,Meeting Expenses,10/04/2017,3861285,"4,100.00",The Atrium London Ltd
Children's Services,Education Services,Other Strategic Functions,SACRE,Services - Professional Fees - Consultants Fees,10/04/2017,3861316,"8,400.00",Christian Education Movement t/a RE Today Services
Children's Services,Education Services,Early Years,SSEYCG Development Funding,Comms - Courier,10/04/2017,3861380,927.50,Figurehead Studios
Children's Services,Children's Social Care,Children Looked After,S23 Fam Pl P&V-F/Care,Childrens Act Section 23 - Placement Fee,10/04/2017,3861705,"3,401.32",CAPSTONE VISION FOSTER CARE LTD
Children's Services,Children's Social Care,Children Looked After,S23-Resi-P&V/OLA-Child Home,Childrens Act Section 23 - Placement Fee,10/04/2017,3861840,"2,332.00",Horizon Residential Homes LTD
Children's Services,Children's Social Care,Services for young people,Youth Service Management,Catering - Hospitality,10/04/2017,3862216,772.00,Katerz
Children's Services,Children's Social Care,Children's and Young People's Safety,Community Safeguarding,Training Expenses - Staff External Training (UK Based),10/04/2017,3864173,400.00,WF Somali Women Association
Children's Services,Children's Social Care,Children's and Young People's Safety,Community Safeguarding,Education & Training - Non Staff Tuition Fees,10/04/2017,3864202,750.00,Optimus Education
Children's Services,No Service Specified,No Division Specified,Capital-Minor Works (SC),Building Works - Main Works,10/04/2017,3864245,"29,049.14",Tower Hamlets Schools LTD
Children's Services,Children's Social Care,Service Strategy,89 CA Sec 17 Chld in Need BOW,Social Care - Prevention & Support,10/04/2017,3864881,300.00,A. A. Agency Ltd
Children's Services,Children's Social Care,Support Service and Management Costs,Schools Catering,Kitchen Supplies - Catering Equipment,10/04/2017,3865303,369.92,W V Howe LTD
Children's Services,Children's Social Care,Support Service and Management Costs,Schools Catering,Kitchen Supplies - Catering Equipment,10/04/2017,3865304,256.00,W V Howe LTD
Children's Services,Children's Social Care,Children Looked After,S23-Resi-P&V/OLA-Child Home,Childrens Act Section 23 - Placement Fee,10/04/2017,3867982,"11,071.42",Bellview Homecare
Children's Services,Children's Social Care,Support Service and Management Costs,Sch. Meals A/c - C.F.S. Upper (Harley Grove),Kitchen Supplies - Food and Beverages,10/04/2017,3867989,619.75,Chicken Joes
Children's Services,Children's Social Care,Support Service and Management Costs,Swanlea,Kitchen Supplies - Food and Beverages,10/04/2017,3867991,430.11,Chicken Joes
Children's Services,Children's Social Care,Support Service and Management Costs,Sch. Meals A/c - Mulberry,Kitchen Supplies - Food and Beverages,10/04/2017,3867992,396.21,Chicken Joes
Children's Services,Education Services,Early Years,Overland CC,Property Leases - Buildings,10/04/2017,3868175,"12,000.00",Olga Primary School
Children's Services,Education Services,Early Years,Overland CC,Property Leases - Buildings,10/04/2017,3868176,"8,372.00",Olga Primary School
Children's Services,Children's Social Care,Family Support Services,CNN Pool: Joint Family Support,Social Care - Homecare,10/04/2017,3868180,257.25,Allied Healthcare Group LTD
Children's Services,Children's Social Care,Children Looked After,Leaving Care-UASC,Leaving Care Financial Assistance - Supp Accom/Hous Rents,10/04/2017,3868243,960.11,Newhaven 16 Plus
Children's Services,No Service Specified,No Division Specified,Capital-Minor Works (SC),Building Works - Main Works,10/04/2017,3869019,"9,998.63",Shining Futures Nursery
Children's Services,No Service Specified,No Division Specified,Capital-Minor Works (SC),Building Works - Main Works,10/04/2017,3869020,"7,233.87",Early Years Network Tower Hamlets
Children's Services,Children's Social Care,Children Looked After,S23 Fam Pl In-Hse-Kinshp Care,Childrens Act Section 23 - Expert Assessmt/Witness Costs,10/04/2017,3869025,400.00,Milner Elledge Solicitors
Children's Services,Children's Social Care,Services for young people,Outdoor,Water Services - Metered,10/04/2017,3869042,981.59,CASTLE WATER
Children's Services,Education Services,Early Years,John Smith,Water Services - Metered,10/04/2017,3869047,"2,232.66",CASTLE WATER
Children's Services,Children's Social Care,Family Support Services,IPST S17 NRPF,Childrens Act Section 17 - Other Placements Bed & Breakfast,12/04/2017,3843583,"2,095.75",Colchester & Tendring Womens Refuge
Children's Services,Children's Social Care,Support Service and Management Costs,Schools Catering,Kitchen Supplies - Food and Beverages,12/04/2017,3849700,"1,234.39",Thomas Ridley & Son Ltd
Children's Services,Children's Social Care,Support Service and Management Costs,Schools Catering,Kitchen Supplies - Food and Beverages,12/04/2017,3849806,-323.73,Thomas Ridley & Son Ltd
Children's Services,Children's Social Care,Support Service and Management Costs,Schools Catering,Kitchen Supplies - Food and Beverages,12/04/2017,3849831,-319.63,Thomas Ridley & Son Ltd
Children's Services,Children's Social Care,Support Service and Management Costs,Schools Catering,Kitchen Supplies - Food and Beverages,12/04/2017,3849840,-352.24,Thomas Ridley & Son Ltd
Children's Services,Children's Social Care,Support Service and Management Costs,Schools Catering,Kitchen Supplies - Food and Beverages,12/04/2017,3849841,534.13,Thomas Ridley & Son Ltd
Children's Services,Children's Social Care,Support Service and Management Costs,Schools Catering,Kitchen Supplies - Food and Beverages,12/04/2017,3849854,-422.00,Thomas Ridley & Son Ltd
Children's Services,Children's Social Care,Support Service and Management Costs,Schools Catering,Kitchen Supplies - Food and Beverages,12/04/2017,3849855,252.28,Thomas Ridley & Son Ltd
Children's Services,Children's Social Care,Support Service and Management Costs,Schools Catering,Kitchen Supplies - Food and Beverages,12/04/2017,3849860,-532.37,Thomas Ridley & Son Ltd
Children's Services,Children's Social Care,Support Service and Management Costs,Schools Catering,Kitchen Supplies - Food and Beverages,12/04/2017,3849865,284.55,Thomas Ridley & Son Ltd
Children's Services,Children's Social Care,Support Service and Management Costs,Schools Catering,Kitchen Supplies - Food and Beverages,12/04/2017,3849868,-320.72,Thomas Ridley & Son Ltd
Children's Services,Children's Social Care,Support Service and Management Costs,Schools Catering,Kitchen Supplies - Food and Beverages,12/04/2017,3849869,404.58,Thomas Ridley & Son Ltd
Children's Services,Children's Social Care,Support Service and Management Costs,Schools Catering,Kitchen Supplies - Food and Beverages,12/04/2017,3849874,-256.07,Thomas Ridley & Son Ltd
Children's Services,Children's Social Care,Support Service and Management Costs,Schools Catering,Kitchen Supplies - Food and Beverages,12/04/2017,3849875,"1,011.08",Thomas Ridley & Son Ltd
Children's Services,Children's Social Care,Support Service and Management Costs,Schools Catering,Kitchen Supplies - Food and Beverages,12/04/2017,3849879,864.54,Thomas Ridley & Son Ltd
Children's Services,Children's Social Care,Support Service and Management Costs,Schools Catering,Kitchen Supplies - Food and Beverages,12/04/2017,3849891,281.57,Thomas Ridley & Son Ltd
Children's Services,Children's Social Care,Support Service and Management Costs,Schools Catering,Kitchen Supplies - Food and Beverages,12/04/2017,3849895,"1,276.31",Thomas Ridley & Son Ltd
Children's Services,Children's Social Care,Support Service and Management Costs,Schools Catering,Kitchen Supplies - Food and Beverages,12/04/2017,3849906,296.63,Thomas Ridley & Son Ltd
Children's Services,Children's Social Care,Support Service and Management Costs,Schools Catering,Kitchen Supplies - Food and Beverages,12/04/2017,3849910,350.48,Thomas Ridley & Son Ltd
Children's Services,Children's Social Care,Support Service and Management Costs,Schools Catering,Kitchen Supplies - Food and Beverages,12/04/2017,3850444,315.87,Thomas Ridley & Son Ltd
Children's Services,Children's Social Care,Support Service and Management Costs,Schools Catering,Kitchen Supplies - Food and Beverages,12/04/2017,3850446,438.96,Thomas Ridley & Son Ltd
Children's Services,Children's Social Care,Support Service and Management Costs,Schools Catering,Kitchen Supplies - Food and Beverages,12/04/2017,3850447,256.97,Thomas Ridley & Son Ltd
Children's Services,Children's Social Care,Support Service and Management Costs,Schools Catering,Kitchen Supplies - Food and Beverages,12/04/2017,3850449,291.72,Thomas Ridley & Son Ltd
Children's Services,Children's Social Care,Support Service and Management Costs,Schools Catering,Kitchen Supplies - Food and Beverages,12/04/2017,3850450,504.54,Thomas Ridley & Son Ltd
Children's Services,Children's Social Care,Support Service and Management Costs,Schools Catering,Kitchen Supplies - Food and Beverages,12/04/2017,3850453,425.39,Thomas Ridley & Son Ltd
Children's Services,Children's Social Care,Support Service and Management Costs,Schools Catering,Kitchen Supplies - Food and Beverages,12/04/2017,3850454,482.82,Thomas Ridley & Son Ltd
Children's Services,Children's Social Care,Support Service and Management Costs,Schools Catering,Kitchen Supplies - Food and Beverages,12/04/2017,3850455,374.59,Thomas Ridley & Son Ltd
Children's Services,Children's Social Care,Support Service and Management Costs,Schools Catering,Kitchen Supplies - Food and Beverages,12/04/2017,3850457,518.00,Thomas Ridley & Son Ltd
Children's Services,Children's Social Care,Support Service and Management Costs,Schools Catering,Kitchen Supplies - Food and Beverages,12/04/2017,3850458,266.76,Thomas Ridley & Son Ltd
Children's Services,Children's Social Care,Support Service and Management Costs,Schools Catering,Kitchen Supplies - Food and Beverages,12/04/2017,3850459,393.12,Thomas Ridley & Son Ltd
Children's Services,Children's Social Care,Support Service and Management Costs,Schools Catering,Kitchen Supplies - Food and Beverages,12/04/2017,3850460,274.69,Thomas Ridley & Son Ltd
Children's Services,Children's Social Care,Support Service and Management Costs,Schools Catering,Kitchen Supplies - Food and Beverages,12/04/2017,3850462,464.33,Thomas Ridley & Son Ltd
Children's Services,Children's Social Care,Support Service and Management Costs,Schools Catering,Kitchen Supplies - Food and Beverages,12/04/2017,3850463,255.62,Thomas Ridley & Son Ltd
Children's Services,Children's Social Care,Support Service and Management Costs,Schools Catering,Kitchen Supplies - Food and Beverages,12/04/2017,3850464,646.61,Thomas Ridley & Son Ltd
Children's Services,Children's Social Care,Support Service and Management Costs,Schools Catering,Kitchen Supplies - Food and Beverages,12/04/2017,3850465,"1,000.27",Thomas Ridley & Son Ltd
Children's Services,Children's Social Care,Support Service and Management Costs,Schools Catering,Kitchen Supplies - Food and Beverages,12/04/2017,3850468,519.99,Thomas Ridley & Son Ltd
Children's Services,Children's Social Care,Support Service and Management Costs,Schools Catering,Kitchen Supplies - Food and Beverages,12/04/2017,3850469,268.33,Thomas Ridley & Son Ltd
Children's Services,Children's Social Care,Support Service and Management Costs,Schools Catering,Kitchen Supplies - Food and Beverages,12/04/2017,3850474,255.24,Thomas Ridley & Son Ltd
Children's Services,Children's Social Care,Support Service and Management Costs,Schools Catering,Kitchen Supplies - Food and Beverages,12/04/2017,3850476,"1,226.49",Thomas Ridley & Son Ltd
Children's Services,Children's Social Care,Support Service and Management Costs,Schools Catering,Kitchen Supplies - Food and Beverages,12/04/2017,3850480,352.58,Thomas Ridley & Son Ltd
Children's Services,Children's Social Care,Support Service and Management Costs,Schools Catering,Kitchen Supplies - Food and Beverages,12/04/2017,3852038,453.54,Thomas Ridley & Son Ltd
Children's Services,Children's Social Care,Support Service and Management Costs,Schools Catering,Kitchen Supplies - Food and Beverages,12/04/2017,3852040,377.76,Thomas Ridley & Son Ltd
Children's Services,Children's Social Care,Support Service and Management Costs,Schools Catering,Kitchen Supplies - Food and Beverages,12/04/2017,3852042,541.60,Thomas Ridley & Son Ltd
Children's Services,Cultural and Related Services,Culture & Heritage,Brady Arts Centre,Stationery,12/04/2017,3852084,550.80,Office Depot (Catalogue)
Children's Services,Children's Social Care,Children Looked After,S23 Family Placements P&V,Childrens Act Section 23 - Placement Fee,12/04/2017,3852174,"3,064.66",Sunbeam Fostering Agency Ltd
Children's Services,Children's Social Care,Children Looked After,S23 Fam Pl P&V-F/Care,Childrens Act Section 23 - Placement Fee,12/04/2017,3852175,"3,122.14",Sunbeam Fostering Agency Ltd
Children's Services,Children's Social Care,Children Looked After,S23 Fam Pl P&V-F/Care,Childrens Act Section 23 - Placement Fee,12/04/2017,3852176,"3,122.14",Sunbeam Fostering Agency Ltd
Children's Services,Children's Social Care,Children Looked After,S23 Fam Pl P&V-F/Care,Childrens Act Section 23 - Placement Fee,12/04/2017,3852272,"3,122.14",Sunbeam Fostering Agency Ltd
Children's Services,Children's Social Care,Children Looked After,S23 Fam Pl P&V-F/Care,Childrens Act Section 23 - Placement Fee,12/04/2017,3852291,"3,122.14",Sunbeam Fostering Agency Ltd
Children's Services,Children's Social Care,Support Service and Management Costs,Schools Catering,Kitchen Supplies - Food and Beverages,12/04/2017,3852383,393.37,Thomas Ridley & Son Ltd
Children's Services,Children's Social Care,Support Service and Management Costs,Schools Catering,Kitchen Supplies - Food and Beverages,12/04/2017,3852385,292.94,Thomas Ridley & Son Ltd
Children's Services,Children's Social Care,Support Service and Management Costs,Schools Catering,Kitchen Supplies - Food and Beverages,12/04/2017,3852387,276.84,Thomas Ridley & Son Ltd
Children's Services,Children's Social Care,Support Service and Management Costs,Schools Catering,Kitchen Supplies - Food and Beverages,12/04/2017,3852389,756.71,Thomas Ridley & Son Ltd
Children's Services,Children's Social Care,Support Service and Management Costs,Schools Catering,Kitchen Supplies - Food and Beverages,12/04/2017,3852391,742.72,Thomas Ridley & Son Ltd
Children's Services,Children's Social Care,Support Service and Management Costs,Schools Catering,Kitchen Supplies - Food and Beverages,12/04/2017,3852395,301.29,Thomas Ridley & Son Ltd
Children's Services,Children's Social Care,Support Service and Management Costs,Schools Catering,Kitchen Supplies - Food and Beverages,12/04/2017,3852397,668.35,Thomas Ridley & Son Ltd
Children's Services,Children's Social Care,Support Service and Management Costs,Schools Catering,Kitchen Supplies - Food and Beverages,12/04/2017,3852401,367.93,Thomas Ridley & Son Ltd
Children's Services,Children's Social Care,Support Service and Management Costs,Schools Catering,Kitchen Supplies - Food and Beverages,12/04/2017,3852403,909.74,Thomas Ridley & Son Ltd
Children's Services,Children's Social Care,Support Service and Management Costs,Schools Catering,Kitchen Supplies - Food and Beverages,12/04/2017,3852408,576.58,Thomas Ridley & Son Ltd
Children's Services,Children's Social Care,Support Service and Management Costs,Schools Catering,Kitchen Supplies - Food and Beverages,12/04/2017,3852413,607.94,Thomas Ridley & Son Ltd
Children's Services,Children's Social Care,Support Service and Management Costs,Schools Catering,Kitchen Supplies - Food and Beverages,12/04/2017,3852417,"1,078.75",Thomas Ridley & Son Ltd
Children's Services,Children's Social Care,Support Service and Management Costs,Schools Catering,Kitchen Supplies - Food and Beverages,12/04/2017,3852420,966.62,Thomas Ridley & Son Ltd
Children's Services,Children's Social Care,Support Service and Management Costs,Schools Catering,Kitchen Supplies - Food and Beverages,12/04/2017,3852421,490.78,Thomas Ridley & Son Ltd
Children's Services,Children's Social Care,Support Service and Management Costs,Schools Catering,Kitchen Supplies - Food and Beverages,12/04/2017,3852422,305.67,Thomas Ridley & Son Ltd
Children's Services,Children's Social Care,Support Service and Management Costs,Schools Catering,Kitchen Supplies - Food and Beverages,12/04/2017,3852424,559.64,Thomas Ridley & Son Ltd
Children's Services,Children's Social Care,Support Service and Management Costs,Schools Catering,Kitchen Supplies - Food and Beverages,12/04/2017,3852426,443.18,Thomas Ridley & Son Ltd
Children's Services,Children's Social Care,Support Service and Management Costs,Schools Catering,Kitchen Supplies - Food and Beverages,12/04/2017,3852428,401.45,Thomas Ridley & Son Ltd
Children's Services,Children's Social Care,Support Service and Management Costs,Schools Catering,Kitchen Supplies - Food and Beverages,12/04/2017,3852429,903.50,Thomas Ridley & Son Ltd
Children's Services,Children's Social Care,Support Service and Management Costs,Schools Catering,Kitchen Supplies - Food and Beverages,12/04/2017,3852430,456.93,Thomas Ridley & Son Ltd
Children's Services,Children's Social Care,Support Service and Management Costs,Schools Catering,Kitchen Supplies - Food and Beverages,12/04/2017,3852431,262.16,Thomas Ridley & Son Ltd
Children's Services,Children's Social Care,Support Service and Management Costs,Schools Catering,Kitchen Supplies - Food and Beverages,12/04/2017,3852433,282.20,Thomas Ridley & Son Ltd
Children's Services,Children's Social Care,Support Service and Management Costs,Schools Catering,Kitchen Supplies - Food and Beverages,12/04/2017,3852434,512.13,Thomas Ridley & Son Ltd
Children's Services,Children's Social Care,Support Service and Management Costs,Schools Catering,Kitchen Supplies - Food and Beverages,12/04/2017,3852435,884.75,Thomas Ridley & Son Ltd
Children's Services,Children's Social Care,Support Service and Management Costs,Schools Catering,Kitchen Supplies - Food and Beverages,12/04/2017,3852439,667.44,Thomas Ridley & Son Ltd
Children's Services,Children's Social Care,Support Service and Management Costs,Schools Catering,Kitchen Supplies - Food and Beverages,12/04/2017,3852440,740.99,Thomas Ridley & Son Ltd
Children's Services,Children's Social Care,Support Service and Management Costs,Schools Catering,Kitchen Supplies - Food and Beverages,12/04/2017,3852441,310.33,Thomas Ridley & Son Ltd
Children's Services,Children's Social Care,Support Service and Management Costs,Schools Catering,Kitchen Supplies - Food and Beverages,12/04/2017,3852442,386.27,Thomas Ridley & Son Ltd
Children's Services,Children's Social Care,Support Service and Management Costs,Schools Catering,Kitchen Supplies - Food and Beverages,12/04/2017,3852447,981.22,Thomas Ridley & Son Ltd
Children's Services,Children's Social Care,Support Service and Management Costs,Schools Catering,Kitchen Supplies - Food and Beverages,12/04/2017,3852448,761.92,Thomas Ridley & Son Ltd
Children's Services,Children's Social Care,Support Service and Management Costs,Schools Catering,Kitchen Supplies - Food and Beverages,12/04/2017,3852453,299.54,Thomas Ridley & Son Ltd
Children's Services,Education Services,Early Years,Mowlem CC,Repairs and Maintenance - Responsive - Repair & Maintenance,12/04/2017,3853043,"7,640.00",JC Coster (Metalworks) Ltd
Children's Services,Education Services,Early Years,Collingwood,Repairs and Maintenance - Responsive - Repair & Maintenance,12/04/2017,3853044,"6,110.00",JC Coster (Metalworks) Ltd
Children's Services,Children's Social Care,Services for young people,Youth Service Management,Repairs and Maintenance - Responsive - Buildings,12/04/2017,3853046,"7,400.00",JC Coster (Metalworks) Ltd
Children's Services,Education Services,Early Years,Mowlem CC,Repairs and Maintenance - Responsive - Repair & Maintenance,12/04/2017,3853051,"1,560.00",JC Coster (Metalworks) Ltd
Children's Services,Children's Social Care,Children Looked After,S23 Fam Pl P&V-F/Care,Childrens Act Section 23 - Placement Fee,12/04/2017,3853106,"3,410.00",Fostering People Too
Children's Services,Children's Social Care,Support Service and Management Costs,Schools Catering,Kitchen Supplies - Food and Beverages,12/04/2017,3853147,-519.99,Thomas Ridley & Son Ltd
Children's Services,Children's Social Care,Support Service and Management Costs,Schools Catering,Kitchen Supplies - Food and Beverages,12/04/2017,3853178,263.28,Thomas Ridley & Son Ltd
Children's Services,Children's Social Care,Support Service and Management Costs,Schools Catering,Kitchen Supplies - Food and Beverages,12/04/2017,3853187,267.59,Thomas Ridley & Son Ltd
Children's Services,Children's Social Care,Support Service and Management Costs,Schools Catering,Kitchen Supplies - Food and Beverages,12/04/2017,3853189,271.48,Thomas Ridley & Son Ltd
Children's Services,Children's Social Care,Support Service and Management Costs,Schools Catering,Kitchen Supplies - Food and Beverages,12/04/2017,3853192,"1,008.19",Thomas Ridley & Son Ltd
Children's Services,Children's Social Care,Support Service and Management Costs,Schools Catering,Kitchen Supplies - Food and Beverages,12/04/2017,3853195,554.58,Thomas Ridley & Son Ltd
Children's Services,Children's Social Care,Support Service and Management Costs,Schools Catering,Kitchen Supplies - Food and Beverages,12/04/2017,3853197,516.25,Thomas Ridley & Son Ltd
Children's Services,Children's Social Care,Support Service and Management Costs,Schools Catering,Kitchen Supplies - Food and Beverages,12/04/2017,3853200,348.88,Thomas Ridley & Son Ltd
Children's Services,Children's Social Care,Support Service and Management Costs,Schools Catering,Kitchen Supplies - Food and Beverages,12/04/2017,3853204,504.75,Thomas Ridley & Son Ltd
Children's Services,Children's Social Care,Support Service and Management Costs,Schools Catering,Kitchen Supplies - Food and Beverages,12/04/2017,3853212,468.55,Thomas Ridley & Son Ltd
Children's Services,Children's Social Care,Support Service and Management Costs,Schools Catering,Kitchen Supplies - Food and Beverages,12/04/2017,3853214,505.16,Thomas Ridley & Son Ltd
Children's Services,Children's Social Care,Support Service and Management Costs,Professional Dev Centre,Stationery,12/04/2017,3853373,378.00,Office Depot (Catalogue)
Children's Services,Children's Social Care,Family Support Services,Tackling Troubled Families,Computing - Purchase of Software,12/04/2017,3853429,"14,360.50",Agilisys Professional Services
Children's Services,Children's Social Care,Other Children's and Family Services,Permanent Placements,Services - Professional Fees - Feasibility Studies,12/04/2017,3853437,"2,450.00",Intuitive Blue Social Care Ltd
Children's Services,Children's Social Care,Children Looked After,S23 Fam Pl P&V-F/Care,Childrens Act Section 23 - Placement Fee,12/04/2017,3853440,"5,528.76",Barnardo's
Children's Services,Children's Social Care,Other Children's and Family Services,Permanent Placements,Events & Exhibition Supplies,12/04/2017,3853441,307.50,FROGGLE PARTIES LTD
Children's Services,Children's Social Care,Other Children's and Family Services,Permanent Placements,Events & Exhibition Supplies,12/04/2017,3853442,307.50,FROGGLE PARTIES LTD
Children's Services,Cultural and Related Services,Recreation & Sport,Sports Development,Recreational Activities,12/04/2017,3853454,500.00,Redacted Section 40 FOI ACT
Children's Services,Education Services,Other Strategic Functions,Special Education Needs DSG,Third Party Payments - Payments to Schools,12/04/2017,3853456,"18,892.64",Woodcroft School Ltd
Children's Services,Children's Social Care,Children Looked After,S23-Resi-P&V/OLA-Sec Acc-Wel,Childrens Act Section 23 - Non-Contact Trans/Travel Costs,12/04/2017,3853469,"2,120.10",Wrixon Care Services
Children's Services,Children's Social Care,Children Looked After,Virtual School PPG,Third Party Payments - Payments to Schools,12/04/2017,3853503,500.00,Thamesview School
Children's Services,Education Services,Other Strategic Functions,High Needs Other Boroughs,Third Party Payments - Payments to Schools,12/04/2017,3853535,"22,860.00",Frank Barnes School for Deaf Children
Children's Services,Education Services,Other Strategic Functions,High Needs Other Boroughs,Third Party Payments - Payments to Schools,12/04/2017,3853536,"-14,586.00",Frank Barnes School for Deaf Children
Children's Services,Education Services,Other Strategic Functions,Special Education Needs DSG,Third Party Payments - Payments to Schools,12/04/2017,3853564,"18,892.64",Woodcroft School Ltd
Children's Services,Education Services,Other Strategic Functions,Special Education Needs DSG,Third Party Payments - Payments to Schools,12/04/2017,3853581,"18,892.64",Woodcroft School Ltd
Children's Services,Education Services,Other Strategic Functions,Special Education Needs DSG,Third Party Payments - Payments to Schools,12/04/2017,3853590,"18,892.64",Woodcroft School Ltd
Children's Services,Education Services,Other Strategic Functions,Special Education Needs DSG,Third Party Payments - Payments to Schools,12/04/2017,3853596,"18,892.64",Woodcroft School Ltd
Children's Services,Education Services,Other Strategic Functions,Special Education Needs DSG,Third Party Payments - Payments to Schools,12/04/2017,3853601,"18,892.64",Woodcroft School Ltd
Children's Services,Children's Social Care,Family Support Services,IPST S17 NRPF,Childrens Act Section 17 - Other Childcare Support,12/04/2017,3853604,980.00,A. A. Agency Ltd
Children's Services,Education Services,Other Strategic Functions,Special Education Needs DSG,Third Party Payments - Payments to Schools,12/04/2017,3853606,"18,892.64",Woodcroft School Ltd
Children's Services,Education Services,Other Strategic Functions,Special Education Needs DSG,Third Party Payments - Payments to Schools,12/04/2017,3853610,"18,892.64",Woodcroft School Ltd
Children's Services,Education Services,Other Strategic Functions,Special Education Needs DSG,Third Party Payments - Payments to Schools,12/04/2017,3853613,"18,892.64",Woodcroft School Ltd
Children's Services,Education Services,Other Strategic Functions,Special Education Needs DSG,Third Party Payments - Payments to Schools,12/04/2017,3853617,"18,892.64",Woodcroft School Ltd
Children's Services,Education Services,Other Strategic Functions,Special Education Needs DSG,Third Party Payments - Payments to Schools,12/04/2017,3853619,"18,892.64",Woodcroft School Ltd
Children's Services,Education Services,Other Strategic Functions,Special Education Needs DSG,Third Party Payments - Payments to Schools,12/04/2017,3853621,"18,892.64",Woodcroft School Ltd
Children's Services,Education Services,Other Strategic Functions,Special Education Needs DSG,Third Party Payments - Payments to Schools,12/04/2017,3853624,"18,892.64",Woodcroft School Ltd
Children's Services,Education Services,Other Strategic Functions,Special Education Needs DSG,Third Party Payments - Payments to Schools,12/04/2017,3853627,"18,892.64",Woodcroft School Ltd
Children's Services,Education Services,Early Years,Meath Gardens CC,Stationery,12/04/2017,3853669,749.39,Office Depot (Catalogue)
Children's Services,Education Services,Early Years,Meath Gardens CC,Stationery,12/04/2017,3853670,272.05,Office Depot (Catalogue)
Children's Services,Education Services,Services to Young People and Other Community Learners,Holiday Childcare,Stationery,12/04/2017,3853671,389.19,Office Depot (Catalogue)
Children's Services,Education Services,Other Strategic Functions,Education Psychologists GF,Computing - Purchase of Hardware,12/04/2017,3853686,999.99,Misco
Children's Services,Children's Social Care,Children Looked After,Virtual School PPG,Training Expenses - Staff External Training (UK Based),12/04/2017,3853729,"3,800.00",Kate Cairns Associates Ltd
Children's Services,Children's Social Care,Children Looked After,Virtual School PPG,Training Expenses - Staff External Training (UK Based),12/04/2017,3853730,"4,600.00",Kate Cairns Associates Ltd
Children's Services,Children's Social Care,Children Looked After,S23-Resi-P&V/OLA-Child Home,Childrens Act Section 23 - All Contact Expenses,12/04/2017,3853783,281.25,A. A. Agency Ltd
Children's Services,Education Services,Other Strategic Functions,Special Education Needs DSG,Third Party Payments - Payments to Schools,12/04/2017,3853823,"11,597.60",St Elizabeth's Centre
Children's Services,Children's Social Care,Children Looked After,S23-Resi-P&V/OLA-Boarding Sch,Childrens Act Section 23 - Placement Fee,12/04/2017,3853823,"11,597.60",St Elizabeth's Centre
Children's Services,Children's Social Care,Support Service and Management Costs,Schools Catering,Kitchen Supplies - Food and Beverages,12/04/2017,3853861,373.58,Prescott-Thomas LTD.
Children's Services,Children's Social Care,Children Looked After,S23 Family Placements P&V,Childrens Act Section 23 - Placement Fee,12/04/2017,3853871,"3,272.71",Link Fostering Agency
Children's Services,Children's Social Care,Children Looked After,S23 Fam Pl P&V-F/Care,Childrens Act Section 23 - Placement Fee,12/04/2017,3853872,"3,272.71",Link Fostering Agency
Children's Services,Children's Social Care,Children Looked After,S23 Fam Pl P&V-F/Care,Childrens Act Section 23 - Placement Fee,12/04/2017,3853873,"3,272.71",Link Fostering Agency
Children's Services,Children's Social Care,Support Service and Management Costs,Schools Catering,Social Care - Nursing Care,12/04/2017,3853885,"-4,045.00",Barts Health NHS Trust
Children's Services,Children's Social Care,Support Service and Management Costs,Schools Catering,Kitchen Supplies - Food and Beverages,12/04/2017,3853886,262.28,Thomas Ridley & Son Ltd
Children's Services,Children's Social Care,Support Service and Management Costs,Schools Catering,Kitchen Supplies - Food and Beverages,12/04/2017,3853902,"1,401.56",Thomas Ridley & Son Ltd
Children's Services,Children's Social Care,Support Service and Management Costs,Welfare Catering,Kitchen Supplies - Food and Beverages,12/04/2017,3853907,414.46,William White Meats Ltd
Children's Services,Children's Social Care,Support Service and Management Costs,Welfare Catering,Kitchen Supplies - Food and Beverages,12/04/2017,3853919,353.72,William White Meats Ltd
Children's Services,Children's Social Care,Support Service and Management Costs,Schools Catering,Kitchen Supplies - Food and Beverages,12/04/2017,3853925,333.07,Thomas Ridley & Son Ltd
Children's Services,Children's Social Care,Support Service and Management Costs,Schools Catering,Materials - Cleaning Materials,12/04/2017,3853932,318.18,The Maintenance Supply Co Ltd
Children's Services,Children's Social Care,Support Service and Management Costs,Schools Catering,Kitchen Supplies - Food and Beverages,12/04/2017,3853933,673.48,Thomas Ridley & Son Ltd
Children's Services,Children's Social Care,Support Service and Management Costs,Schools Catering,Kitchen Supplies - Food and Beverages,12/04/2017,3853940,381.65,Thomas Ridley & Son Ltd
Children's Services,Children's Social Care,Support Service and Management Costs,Schools Catering,Kitchen Supplies - Food and Beverages,12/04/2017,3853952,373.09,Thomas Ridley & Son Ltd
Children's Services,Children's Social Care,Support Service and Management Costs,Schools Catering,Kitchen Supplies - Food and Beverages,12/04/2017,3853958,378.04,Thomas Ridley & Son Ltd
Children's Services,Children's Social Care,Support Service and Management Costs,Schools Catering,Kitchen Supplies - Food and Beverages,12/04/2017,3853963,"1,036.88",Thomas Ridley & Son Ltd
Children's Services,Children's Social Care,Support Service and Management Costs,Schools Catering,Kitchen Supplies - Food and Beverages,12/04/2017,3853968,"1,070.46",Thomas Ridley & Son Ltd
Children's Services,Children's Social Care,Support Service and Management Costs,Schools Catering,Kitchen Supplies - Food and Beverages,12/04/2017,3853973,323.43,Thomas Ridley & Son Ltd
Children's Services,Children's Social Care,Support Service and Management Costs,Schools Catering,Kitchen Supplies - Food and Beverages,12/04/2017,3853977,"1,482.89",Thomas Ridley & Son Ltd
Children's Services,Children's Social Care,Support Service and Management Costs,Schools Catering,Kitchen Supplies - Food and Beverages,12/04/2017,3853981,333.16,Thomas Ridley & Son Ltd
Children's Services,Children's Social Care,Support Service and Management Costs,Schools Catering,Kitchen Supplies - Food and Beverages,12/04/2017,3853987,443.06,Thomas Ridley & Son Ltd
Children's Services,Children's Social Care,Support Service and Management Costs,Schools Catering,Kitchen Supplies - Food and Beverages,12/04/2017,3853999,654.65,Thomas Ridley & Son Ltd
Children's Services,Children's Social Care,Support Service and Management Costs,Schools Catering,Kitchen Supplies - Food and Beverages,12/04/2017,3854022,473.22,Prescott-Thomas LTD.
Children's Services,Children's Social Care,Support Service and Management Costs,Schools Catering,Kitchen Supplies - Food and Beverages,12/04/2017,3854030,315.27,Prescott-Thomas LTD.
Children's Services,Children's Social Care,Support Service and Management Costs,Schools Catering,Kitchen Supplies - Food and Beverages,12/04/2017,3854038,269.94,Prescott-Thomas LTD.
Children's Services,Children's Social Care,Support Service and Management Costs,Schools Catering,Kitchen Supplies - Food and Beverages,12/04/2017,3854044,294.12,Prescott-Thomas LTD.
Children's Services,Children's Social Care,Support Service and Management Costs,Schools Catering,Kitchen Supplies - Food and Beverages,12/04/2017,3854089,576.87,William White Meats Ltd
Children's Services,Children's Social Care,Support Service and Management Costs,Schools Catering,Kitchen Supplies - Food and Beverages,12/04/2017,3854096,264.05,Prescott-Thomas LTD.
Children's Services,Children's Social Care,Support Service and Management Costs,Schools Catering,Kitchen Supplies - Food and Beverages,12/04/2017,3854146,550.14,William White Meats Ltd
Children's Services,Children's Social Care,Support Service and Management Costs,Schools Catering,Kitchen Supplies - Food and Beverages,12/04/2017,3854153,296.25,William White Meats Ltd
Children's Services,Children's Social Care,Support Service and Management Costs,Schools Catering,Kitchen Supplies - Food and Beverages,12/04/2017,3854171,360.05,William White Meats Ltd
Children's Services,Children's Social Care,Support Service and Management Costs,Schools Catering,Kitchen Supplies - Food and Beverages,12/04/2017,3854174,271.95,William White Meats Ltd
Children's Services,Children's Social Care,Support Service and Management Costs,Schools Catering,Kitchen Supplies - Food and Beverages,12/04/2017,3854176,266.61,William White Meats Ltd
Children's Services,Children's Social Care,Support Service and Management Costs,Schools Catering,Kitchen Supplies - Food and Beverages,12/04/2017,3854184,257.50,William White Meats Ltd
Children's Services,Children's Social Care,Support Service and Management Costs,Schools Catering,Kitchen Supplies - Food and Beverages,12/04/2017,3854185,257.50,William White Meats Ltd
Children's Services,Children's Social Care,Support Service and Management Costs,Schools Catering,Kitchen Supplies - Food and Beverages,12/04/2017,3854187,"1,042.11",William White Meats Ltd
Children's Services,Children's Social Care,Support Service and Management Costs,Schools Catering,Kitchen Supplies - Food and Beverages,12/04/2017,3854190,498.95,William White Meats Ltd
Children's Services,Children's Social Care,Family Support Services,Short Breaks and Family Support,Third Party Payments - Payments to Schools,12/04/2017,3855684,"30,000.00",Stephen Hawking School Trust
Children's Services,Children's Social Care,Children Looked After,Virtual School PPG,Agency Staff - Associations,12/04/2017,3855735,916.00,Academics ltd
Children's Services,Children's Social Care,Children Looked After,Virtual School PPG,Agency Staff - Associations,12/04/2017,3855736,687.00,Academics ltd
Children's Services,Children's Social Care,Children Looked After,Virtual School PPG,Agency Staff - Associations,12/04/2017,3855737,"1,145.00",Academics ltd
Children's Services,Children's Social Care,Children Looked After,Virtual School PPG,Agency Staff - Associations,12/04/2017,3855738,"1,145.00",Academics ltd
Children's Services,Children's Social Care,Children Looked After,Virtual School PPG,Agency Staff - Associations,12/04/2017,3855739,916.00,Academics ltd
Children's Services,Children's Social Care,Children Looked After,Virtual School PPG,Agency Staff - Associations,12/04/2017,3855740,687.00,Academics ltd
Children's Services,Education Services,Early Years,Overland CC,Educational/Training Supplies - Resources,12/04/2017,3855742,"1,144.00",COMMUNITY PRODUCTS (UK) LTD
Children's Services,Children's Social Care,Services for young people,Outdoor,Educational/Training Supplies - Curriculum Visits/Activities,12/04/2017,3855771,"4,166.67",Award Scheme LTD
Children's Services,Education Services,Early Years,Chrisp St,Room Hire,12/04/2017,3856487,"1,326.00",Poplar HARCA LTD
Children's Services,Children's Social Care,Services for young people,Outdoor,Educational/Training Supplies - Curriculum Visits/Activities,12/04/2017,3856514,"5,470.00",Unique Office Solutions
Children's Services,Education Services,Secondary Schools,Secondary Schools Development,Third Party Payments - Other Local Authorities,12/04/2017,3856578,500.00,London Borough Of Hackney
Children's Services,Children's Social Care,Children Looked After,Virtual School PPG,Agency Staff - Payments to Schools,12/04/2017,3856631,500.00,Snaresbrook Primary School
Children's Services,Children's Social Care,Family Support Services,CNN Pool: Joint Family Support,Social Care - Prevention & Support,12/04/2017,3856669,937.50,A. A. Agency Ltd
Children's Services,Children's Social Care,Services for young people,Youth Service Management,Events & Exhibition Supplies,12/04/2017,3860992,769.50,JS Entertainments Ltd
Children's Services,Cultural and Related Services,Culture & Heritage,Arts-Park Events,Events & Exhibition Supplies,12/04/2017,3861266,305.00,Community Link Trading Ltd
Children's Services,Cultural and Related Services,Culture & Heritage,Arts-Park Events,Events & Exhibition Supplies,12/04/2017,3861267,505.00,Community Link Trading Ltd
Children's Services,Education Services,Early Years,Overland CC,Educational/Training Supplies - Arts & Crafts,12/04/2017,3861343,402.00,Rahmqvist UK LTD
Children's Services,Children's Social Care,Children Looked After,S23 Fam Pl P&V-F/Care,Childrens Act Section 23 - Placement Fee,12/04/2017,3861366,"3,364.74",Ryancare Fostering Ltd
Children's Services,Children's Social Care,Children Looked After,S23 Fam Pl P&V-F/Care,Childrens Act Section 23 - Placement Fee,12/04/2017,3861367,"3,506.41",Ryancare Fostering Ltd
Children's Services,Children's Social Care,Children Looked After,S23 Fam Pl P&V-F/Care,Childrens Act Section 23 - Placement Fee,12/04/2017,3861368,"1,000.00",Ryancare Fostering Ltd
Children's Services,Children's Social Care,Children Looked After,S23-Other-Semi-Ind. Unit,Childrens Act Section 23 - Placement Fee,12/04/2017,3861400,"7,226.25",Youth reality homes
Children's Services,Cultural and Related Services,Open Spaces,Parks & Open Spaces Man&Admin,Services - Professional Fees - Legal Fees/Expenses,12/04/2017,3861401,900.00,Engineering Design Associates
Children's Services,Children's Social Care,Children Looked After,S23-Other-Semi-Ind. Unit,Childrens Act Section 23 - Placement Fee,12/04/2017,3861408,"4,985.75",Youth reality homes
Children's Services,Children's Social Care,Children Looked After,S23-Other-Semi-Ind. Unit,Childrens Act Section 23 - Placement Fee,12/04/2017,3861413,"4,812.50",Youth reality homes
Children's Services,Children's Social Care,Children Looked After,Virtual School PPG,Third Party Payments - Payments to Schools,12/04/2017,3861417,720.00,Little Ilford School
Children's Services,Children's Social Care,Children Looked After,S23 Fam Pl P&V-F/Care,Childrens Act Section 23 - Placement Fee,12/04/2017,3861469,"3,541.75",Ryancare Fostering Ltd
Children's Services,Children's Social Care,Children Looked After,S23 Fam Pl P&V-F/Care,Childrens Act Section 23 - Placement Fee,12/04/2017,3861500,"4,650.00",Ryancare Fostering Ltd
Children's Services,Adult Social Care,Support Service and Management Costs,Org Development L&D Training,Training Expenses - Staff External Training (UK Based),12/04/2017,3861711,837.50,Edge Training and Consultancy Ltd
Children's Services,Cultural and Related Services,Culture & Heritage,Arts-Park Events,Events & Exhibition Supplies,12/04/2017,3861712,"2,578.40",A P Security (North) LTD
Children's Services,Cultural and Related Services,Culture & Heritage,Arts-Park Events,Events & Exhibition Supplies,12/04/2017,3861713,257.10,A P Security (North) LTD
Children's Services,Education Services,Early Years,Meath Gardens CC,Educational/Training Supplies - Arts & Crafts,12/04/2017,3861732,393.46,ESPO
Children's Services,Education Services,Early Years,Meath Gardens CC,Educational/Training Supplies - Arts & Crafts,12/04/2017,3861733,619.22,ESPO
Children's Services,Children's Social Care,Support Service and Management Costs,Schools Catering,Repairs and Maintenance - Responsive - General,12/04/2017,3861754,"1,262.00",Lambourne Refrigeration
Children's Services,Children's Social Care,Support Service and Management Costs,Welfare Catering,Kitchen Supplies - Food and Beverages,12/04/2017,3861779,285.24,Apetito LTD
Children's Services,Children's Social Care,Support Service and Management Costs,Schools Catering,Kitchen Supplies - Food and Beverages,12/04/2017,3861782,390.75,William White Meats Ltd
Children's Services,Children's Social Care,Support Service and Management Costs,Welfare Catering,Kitchen Supplies - Food and Beverages,12/04/2017,3861783,493.95,William White Meats Ltd
Children's Services,Education Services,Other Strategic Functions,Information & Support Services,Education & Training - Non Staff Tuition Fees,12/04/2017,3861789,"1,399.50",Queen Mary University of London
Children's Services,Education Services,Early Years,Meath Gardens CC,Community Equipment  Supplies - Non Store Items,12/04/2017,3861836,689.58,ESPO
Children's Services,Children's Social Care,Support Service and Management Costs,Schools Catering,Kitchen Supplies - Food and Beverages,12/04/2017,3861890,797.40,William White Meats Ltd
Children's Services,Children's Social Care,Support Service and Management Costs,Schools Catering,Kitchen Supplies - Food and Beverages,12/04/2017,3861899,472.15,William White Meats Ltd
Children's Services,Children's Social Care,Support Service and Management Costs,Schools Catering,Kitchen Supplies - Food and Beverages,12/04/2017,3861902,457.82,William White Meats Ltd
Children's Services,Children's Social Care,Support Service and Management Costs,Schools Catering,Kitchen Supplies - Food and Beverages,12/04/2017,3861908,477.75,William White Meats Ltd
Children's Services,Children's Social Care,Support Service and Management Costs,Schools Catering,Kitchen Supplies - Food and Beverages,12/04/2017,3861911,320.84,William White Meats Ltd
Children's Services,Children's Social Care,Support Service and Management Costs,Schools Catering,Kitchen Supplies - Food and Beverages,12/04/2017,3861915,386.15,William White Meats Ltd
Children's Services,Children's Social Care,Support Service and Management Costs,Schools Catering,Kitchen Supplies - Food and Beverages,12/04/2017,3861925,480.35,William White Meats Ltd
Children's Services,Children's Social Care,Support Service and Management Costs,Schools Catering,Kitchen Supplies - Food and Beverages,12/04/2017,3861929,500.50,William White Meats Ltd
Children's Services,Children's Social Care,Support Service and Management Costs,Schools Catering,Kitchen Supplies - Food and Beverages,12/04/2017,3861950,301.81,William White Meats Ltd
Children's Services,Children's Social Care,Support Service and Management Costs,Schools Catering,Kitchen Supplies - Food and Beverages,12/04/2017,3861952,359.08,William White Meats Ltd
Children's Services,Children's Social Care,Support Service and Management Costs,Schools Catering,Kitchen Supplies - Food and Beverages,12/04/2017,3861957,497.50,William White Meats Ltd
Children's Services,Children's Social Care,Support Service and Management Costs,Schools Catering,Kitchen Supplies - Food and Beverages,12/04/2017,3861961,"1,024.14",William White Meats Ltd
Children's Services,Children's Social Care,Support Service and Management Costs,Schools Catering,Kitchen Supplies - Food and Beverages,12/04/2017,3861969,318.90,William White Meats Ltd
Children's Services,Children's Social Care,Support Service and Management Costs,Schools Catering,Kitchen Supplies - Food and Beverages,12/04/2017,3861975,308.25,William White Meats Ltd
Children's Services,Children's Social Care,Support Service and Management Costs,Schools Catering,Kitchen Supplies - Food and Beverages,12/04/2017,3861980,503.91,William White Meats Ltd
Children's Services,Children's Social Care,Support Service and Management Costs,Schools Catering,Kitchen Supplies - Food and Beverages,12/04/2017,3861984,327.30,William White Meats Ltd
Children's Services,Children's Social Care,Support Service and Management Costs,Schools Catering,Kitchen Supplies - Food and Beverages,12/04/2017,3861992,399.20,William White Meats Ltd
Children's Services,Children's Social Care,Support Service and Management Costs,Schools Catering,Kitchen Supplies - Food and Beverages,12/04/2017,3861996,435.05,William White Meats Ltd
Children's Services,Children's Social Care,Support Service and Management Costs,Schools Catering,Kitchen Supplies - Food and Beverages,12/04/2017,3861998,674.10,William White Meats Ltd
Children's Services,Children's Social Care,Support Service and Management Costs,Schools Catering,Kitchen Supplies - Food and Beverages,12/04/2017,3862009,343.50,William White Meats Ltd
Children's Services,Children's Social Care,Support Service and Management Costs,Schools Catering,Kitchen Supplies - Food and Beverages,12/04/2017,3862052,732.25,William White Meats Ltd
Children's Services,Education Services,Other Strategic Functions,Special Education Needs DSG,Third Party Payments - Payments to Schools,12/04/2017,3862247,"5,869.00",Riverston School LTD
Children's Services,Education Services,Other Strategic Functions,Special Education Needs DSG,Third Party Payments - Payments to Schools,12/04/2017,3862248,"12,030.00",Riverston School LTD
Children's Services,Children's Social Care,Family Support Services,Short Breaks and Family Support,Childrens Act Section 23 - Placement Fee,12/04/2017,3862251,"17,845.80",QALB Centre Short Break Services
Children's Services,Education Services,Other Strategic Functions,Special Education Needs DSG,Third Party Payments - Payments to Schools,12/04/2017,3863131,"8,481.60",Riverston School LTD
Children's Services,Education Services,Other Strategic Functions,Special Education Needs DSG,Third Party Payments - Payments to Schools,12/04/2017,3863145,"9,476.00",Riverston School LTD
Children's Services,Education Services,Other Strategic Functions,Special Education Needs DSG,Third Party Payments - Payments to Schools,12/04/2017,3863155,"10,736.00",Riverston School LTD
Children's Services,Education Services,Other Strategic Functions,Special Education Needs DSG,Third Party Payments - Payments to Schools,12/04/2017,3863164,"8,481.60",Riverston School LTD
Children's Services,Education Services,Other Strategic Functions,Special Education Needs DSG,Third Party Payments - Payments to Schools,12/04/2017,3863170,"9,319.90",Riverston School LTD
Children's Services,Education Services,Other Strategic Functions,Special Education Needs DSG,Third Party Payments - Payments to Schools,12/04/2017,3863175,"3,976.82",Riverston School LTD
Children's Services,Education Services,Other Strategic Functions,Special Education Needs DSG,Third Party Payments - Payments to Schools,12/04/2017,3863180,"8,586.85",Riverston School LTD
Children's Services,Education Services,Other Strategic Functions,Special Education Needs DSG,Third Party Payments - Payments to Schools,12/04/2017,3863185,"2,905.74",Riverston School LTD
Children's Services,Education Services,Other Strategic Functions,Special Education Needs DSG,Third Party Payments - Payments to Schools,12/04/2017,3863190,"9,332.20",Riverston School LTD
Children's Services,Education Services,Other Strategic Functions,Special Education Needs DSG,Third Party Payments - Payments to Schools,12/04/2017,3863195,"12,818.00",Riverston School LTD
Children's Services,Education Services,Other Strategic Functions,Special Education Needs DSG,Third Party Payments - Payments to Schools,12/04/2017,3863202,"9,291.00",Riverston School LTD
Children's Services,Children's Social Care,Children Looked After,S23-Resi-P&V/OLA-Sec Acc-Wel,Childrens Act Section 23 - Non-Contact Taxi Costs,12/04/2017,3864254,"2,037.40",Wrixon Care Services
Children's Services,Children's Social Care,Support Service and Management Costs,Schools Catering,Printing - External,12/04/2017,3864273,356.73,Copy & Print
Children's Services,Children's Social Care,Children Looked After,S23 Family Placements P&V,Childrens Act Section 23 - Placement Fee,12/04/2017,3864296,"3,359.47",Safehouses
Children's Services,Children's Social Care,Services for young people,LAPS 1 - 8,Educational/Training Supplies - Curriculum Visits/Activities,12/04/2017,3864331,660.16,Newitts
Children's Services,Education Services,Early Years,Early Years Health Project,Social Care - Nursing Care,12/04/2017,3864806,349.67,NHS SUPPLY CHAIN
Children's Services,Children's Social Care,Children Looked After,S23 Family Placements P&V,Childrens Act Section 23 - Placement Fee,12/04/2017,3864878,"5,601.24",Credo Care ltd
Children's Services,Children's Social Care,Children Looked After,S23 Family Placements P&V,Childrens Act Section 23 - Placement Fee,12/04/2017,3864879,"5,601.24",Credo Care ltd
Children's Services,Education Services,Other Strategic Functions,Special Education Needs DSG,Third Party Payments - Payments to Schools,12/04/2017,3864895,"2,905.74",Riverston School LTD
Children's Services,Education Services,Early Years,Early Years Health Project,Social Care - Nursing Care,12/04/2017,3864955,740.00,NHS SUPPLY CHAIN
Children's Services,Education Services,Other Strategic Functions,Special Education Needs DSG,Third Party Payments - Payments to Schools,12/04/2017,3864970,"10,736.00",Riverston School LTD
Children's Services,Education Services,Other Strategic Functions,Special Education Needs DSG,Third Party Payments - Payments to Schools,12/04/2017,3864988,"2,905.74",Riverston School LTD
Children's Services,Education Services,Early Years,Early Years Health Project,Social Care - Nursing Care,12/04/2017,3864997,662.33,NHS SUPPLY CHAIN
Children's Services,Children's Social Care,Support Service and Management Costs,Schools Catering,Kitchen Supplies - Catering Equipment,12/04/2017,3865306,299.52,W V Howe LTD
Children's Services,Education Services,Other Strategic Functions,Music Trading Account,Educational/Training Supplies - Arts & Crafts,12/04/2017,3865597,460.00,Bow Strings
Children's Services,Cultural and Related Services,Recreation & Sport,Mayors Cup,Events & Exhibition Supplies,12/04/2017,3865650,416.67,Neils Sports Trophies
Children's Services,Cultural and Related Services,Culture & Heritage,Youth Arts,Educational/Training Supplies - Resources,12/04/2017,3865672,381.52,AQA Assessment & Qualifications Alliance
Children's Services,Education Services,Other Strategic Functions,Schools Library,Books - General Purchases,12/04/2017,3866911,"1,190.98",Peters Bookselling Services
Children's Services,Education Services,Other Strategic Functions,Schools Library,Books - General Purchases,12/04/2017,3867843,"1,072.74",Peters Bookselling Services
Children's Services,No Service Specified,No Division Specified,Capital-Minor Works (SC),Building Works - Main Works,12/04/2017,3867856,"170,685.00",Tower Hamlets Schools LTD
Children's Services,No Service Specified,No Division Specified,Capital-Minor Works (SC),Building Works - Main Works,12/04/2017,3867857,"372,062.88",Tower Hamlets Schools LTD
Children's Services,Children's Social Care,Support Service and Management Costs,Sch. Meals A/c - George Green,Kitchen Supplies - Food and Beverages,12/04/2017,3868022,420.26,Chicken Joes
Children's Services,Children's Social Care,Support Service and Management Costs,Sch. Meals A/c - C.F.S. Upper (Harley Grove),Kitchen Supplies - Food and Beverages,12/04/2017,3868024,658.72,Chicken Joes
Children's Services,Children's Social Care,Support Service and Management Costs,Sch. Meals A/c - Mulberry,Kitchen Supplies - Food and Beverages,12/04/2017,3868025,373.83,Chicken Joes
Children's Services,Children's Social Care,Support Service and Management Costs,Sch. Meals A/c - Stepney Green,Kitchen Supplies - Food and Beverages,12/04/2017,3868026,256.12,Chicken Joes
Children's Services,Children's Social Care,Support Service and Management Costs,Swanlea,Kitchen Supplies - Food and Beverages,12/04/2017,3868027,752.16,Chicken Joes
Children's Services,Children's Social Care,Family Support Services,Eva Armsby Family Centre,Services - Professional Fees - Legal Fees/Expenses,12/04/2017,3868172,"1,293.00",Core Assets Expert Services Ltd T/a Carter Brown
Children's Services,Children's Social Care,Children Looked After,S23-Resi-P&V/OLA-Child Home,Childrens Act Section 23 - Placement Fee,12/04/2017,3868365,"15,500.00",The Cuckfield Care Consultancy Ltd
Children's Services,Children's Social Care,Family Support Services,Eva Armsby Family Centre,Services - Professional Fees - Legal Fees/Expenses,12/04/2017,3869023,"2,476.00",EF Focus Ltd
Children's Services,Cultural and Related Services,Open Spaces,Parks & Open Spaces Man&Admin,Services - Professional Fees - Consultants Fees,12/04/2017,3869079,"1,520.00",ROSPA PLAY SAFETY
Children's Services,Children's Social Care,Children Looked After,S23-Resi-P&V/OLA-Child Home,Childrens Act Section 23 - Placement Fee,12/04/2017,3869322,"18,339.82",Castle Homes Care Ltd
Children's Services,Children's Social Care,Children Looked After,S23-Resi-P&V/OLA-Child Home,Childrens Act Section 23 - Placement Fee,12/04/2017,3869323,"17,702.55",Castle Homes Care Ltd
Children's Services,Children's Social Care,Commissioning and Social Work,Children-Mental Health,Computing - Purchase of Software,12/04/2017,3869340,387.19,Specialist Computer Centres PLC
Children's Services,Education Services,Other Strategic Functions,Special Education Needs DSG,Third Party Payments - Payments to Schools,19/04/2017,3823755,"-5,654.71",Kisimul Group Ltd
Children's Services,Children's Social Care,Children Looked After,S23-Resi-P&V/OLA-Boarding Sch,Childrens Act Section 23 - Placement Fee,19/04/2017,3823755,"-5,654.71",Kisimul Group Ltd
Children's Services,Education Services,Other Strategic Functions,Special Education Needs DSG,Third Party Payments - Payments to Schools,19/04/2017,3823756,"-30,352.50",Kisimul Group Ltd
Children's Services,Children's Social Care,Children Looked After,S23 18+ & Relevnt Young People,Childrens Act Section 23 - Placement Fee,19/04/2017,3823756,"-30,352.50",Kisimul Group Ltd
Children's Services,Children's Social Care,Service Strategy,FS&P - NRPF,Childrens Act Section 17 - Expert Assessmt/Witness Costs,19/04/2017,3853360,592.80,EXPERT IN MIND LIMITED
Children's Services,Education Services,Early Years,Meath Gardens CC,Materials - Cleaning Materials,19/04/2017,3855695,329.64,The Maintenance Supply Co Ltd
Children's Services,Children's Social Care,Support Service and Management Costs,Schools Catering,Kitchen Supplies - Food and Beverages,19/04/2017,3855704,"-1,036.88",Thomas Ridley & Son Ltd
Children's Services,No Service Specified,No Division Specified,Capital-Minor Works (SC),Other External Fees - Architects Fees,19/04/2017,3855727,"1,600.00",Architype
Children's Services,Children's Social Care,Support Service and Management Costs,Schools Catering,Kitchen Supplies - Food and Beverages,19/04/2017,3855806,-378.04,Thomas Ridley & Son Ltd
Children's Services,Children's Social Care,Support Service and Management Costs,Schools Catering,Kitchen Supplies - Food and Beverages,19/04/2017,3856420,339.09,Thomas Ridley & Son Ltd
Children's Services,Children's Social Care,Support Service and Management Costs,Schools Catering,Kitchen Supplies - Food and Beverages,19/04/2017,3856422,286.40,Thomas Ridley & Son Ltd
Children's Services,Children's Social Care,Support Service and Management Costs,Schools Catering,Kitchen Supplies - Food and Beverages,19/04/2017,3856424,"1,741.87",Thomas Ridley & Son Ltd
Children's Services,Children's Social Care,Support Service and Management Costs,Schools Catering,Kitchen Supplies - Food and Beverages,19/04/2017,3856426,875.32,Thomas Ridley & Son Ltd
Children's Services,Children's Social Care,Support Service and Management Costs,Schools Catering,Kitchen Supplies - Food and Beverages,19/04/2017,3856429,262.88,Prescott-Thomas LTD.
Children's Services,Children's Social Care,Support Service and Management Costs,Schools Catering,Kitchen Supplies - Food and Beverages,19/04/2017,3856430,820.18,Thomas Ridley & Son Ltd
Children's Services,Children's Social Care,Support Service and Management Costs,Schools Catering,Kitchen Supplies - Food and Beverages,19/04/2017,3856432,317.60,Thomas Ridley & Son Ltd
Children's Services,Children's Social Care,Support Service and Management Costs,Schools Catering,Kitchen Supplies - Food and Beverages,19/04/2017,3856435,278.32,Thomas Ridley & Son Ltd
Children's Services,Children's Social Care,Support Service and Management Costs,Schools Catering,Kitchen Supplies - Food and Beverages,19/04/2017,3856437,572.56,Thomas Ridley & Son Ltd
Children's Services,Children's Social Care,Support Service and Management Costs,Schools Catering,Kitchen Supplies - Food and Beverages,19/04/2017,3856443,311.35,Thomas Ridley & Son Ltd
Children's Services,Children's Social Care,Support Service and Management Costs,Schools Catering,Kitchen Supplies - Food and Beverages,19/04/2017,3856445,372.52,Thomas Ridley & Son Ltd
Children's Services,Children's Social Care,Support Service and Management Costs,Schools Catering,Kitchen Supplies - Food and Beverages,19/04/2017,3856448,430.57,Thomas Ridley & Son Ltd
Children's Services,Children's Social Care,Support Service and Management Costs,Schools Catering,Kitchen Supplies - Food and Beverages,19/04/2017,3856449,"1,176.05",Thomas Ridley & Son Ltd
Children's Services,Children's Social Care,Support Service and Management Costs,Schools Catering,Kitchen Supplies - Food and Beverages,19/04/2017,3856450,589.34,Thomas Ridley & Son Ltd
Children's Services,Children's Social Care,Support Service and Management Costs,Schools Catering,Kitchen Supplies - Food and Beverages,19/04/2017,3856453,330.05,Thomas Ridley & Son Ltd
Children's Services,Children's Social Care,Support Service and Management Costs,Schools Catering,Kitchen Supplies - Food and Beverages,19/04/2017,3856456,792.66,Thomas Ridley & Son Ltd
Children's Services,Children's Social Care,Support Service and Management Costs,Schools Catering,Kitchen Supplies - Food and Beverages,19/04/2017,3856458,"1,545.67",Thomas Ridley & Son Ltd
Children's Services,Children's Social Care,Support Service and Management Costs,Schools Catering,Kitchen Supplies - Food and Beverages,19/04/2017,3856461,277.25,Thomas Ridley & Son Ltd
Children's Services,Children's Social Care,Support Service and Management Costs,Schools Catering,Kitchen Supplies - Food and Beverages,19/04/2017,3856462,417.88,Thomas Ridley & Son Ltd
Children's Services,Children's Social Care,Support Service and Management Costs,Schools Catering,Kitchen Supplies - Food and Beverages,19/04/2017,3856463,479.56,Thomas Ridley & Son Ltd
Children's Services,Children's Social Care,Support Service and Management Costs,Schools Catering,Kitchen Supplies - Food and Beverages,19/04/2017,3856464,625.01,Thomas Ridley & Son Ltd
Children's Services,Children's Social Care,Support Service and Management Costs,Schools Catering,Kitchen Supplies - Food and Beverages,19/04/2017,3856465,489.12,Thomas Ridley & Son Ltd
Children's Services,Children's Social Care,Support Service and Management Costs,Schools Catering,Kitchen Supplies - Food and Beverages,19/04/2017,3856472,337.23,Thomas Ridley & Son Ltd
Children's Services,Children's Social Care,Support Service and Management Costs,Schools Catering,Kitchen Supplies - Food and Beverages,19/04/2017,3856474,520.07,Thomas Ridley & Son Ltd
Children's Services,Children's Social Care,Support Service and Management Costs,Schools Catering,Kitchen Supplies - Food and Beverages,19/04/2017,3856476,957.65,Thomas Ridley & Son Ltd
Children's Services,Children's Social Care,Services for young people,Youth Service Management,SLA Services (Expenditure) - Service Level Agreements,19/04/2017,3856490,"6,759.20",NEWARK YOUTH LONDON
Children's Services,Education Services,Other Strategic Functions,Information & Support Services,Stationery,19/04/2017,3856502,272.54,Office Depot (Catalogue)
Children's Services,Children's Social Care,Other Children's and Family Services,Adoption Concortium,Services - Professional Fees - Consultants Fees,19/04/2017,3856533,319.00,London Borough of Ealing (252511)
Children's Services,Education Services,Secondary Schools,PFI Hldg Account-Grouped Schoo,Repairs and Maintenance - Responsive - Buildings,19/04/2017,3856552,567.10,Tower Hamlets Schools LTD
Children's Services,Education Services,Secondary Schools,PFI Hldg Account-Grouped Schoo,Repairs and Maintenance - Responsive - Repair & Maintenance,19/04/2017,3856553,"5,519.34",Tower Hamlets Schools LTD
Children's Services,Children's Social Care,Support Service and Management Costs,Schools Catering,Kitchen Supplies - Food and Beverages,19/04/2017,3856572,410.81,Thomas Ridley & Son Ltd
Children's Services,Children's Social Care,Services for young people,Youth Service Management,Events & Exhibition Supplies,19/04/2017,3856612,575.00,JS Entertainments Ltd
Children's Services,Children's Social Care,Support Service and Management Costs,Schools Catering,Materials - Cleaning Materials,19/04/2017,3856656,253.72,The Maintenance Supply Co Ltd
Children's Services,Children's Social Care,Children Looked After,LCS/Allowances-Accom,Leaving Care Financial Assistance - Supp Accom/Hous Rents,19/04/2017,3856660,"1,850.00",Real Life
Children's Services,Children's Social Care,Children Looked After,S23-Other-Semi-Ind. Unit,Childrens Act Section 23 - Placement Fee,19/04/2017,3856661,"3,200.00",Real Life
Children's Services,Children's Social Care,Support Service and Management Costs,Schools Catering,Kitchen Supplies - Food and Beverages,19/04/2017,3856688,352.96,Thomas Ridley & Son Ltd
Children's Services,Children's Social Care,Support Service and Management Costs,Schools Catering,Kitchen Supplies - Food and Beverages,19/04/2017,3856710,583.62,Thomas Ridley & Son Ltd
Children's Services,Children's Social Care,Support Service and Management Costs,Schools Catering,Kitchen Supplies - Food and Beverages,19/04/2017,3856718,272.76,Thomas Ridley & Son Ltd
Children's Services,Children's Social Care,Support Service and Management Costs,Schools Catering,Kitchen Supplies - Food and Beverages,19/04/2017,3856731,683.20,Thomas Ridley & Son Ltd
Children's Services,Children's Social Care,Support Service and Management Costs,Schools Catering,Kitchen Supplies - Food and Beverages,19/04/2017,3856735,276.03,Thomas Ridley & Son Ltd
Children's Services,Children's Social Care,Support Service and Management Costs,Schools Catering,Kitchen Supplies - Food and Beverages,19/04/2017,3856740,379.85,Thomas Ridley & Son Ltd
Children's Services,Children's Social Care,Support Service and Management Costs,Schools Catering,Kitchen Supplies - Food and Beverages,19/04/2017,3856749,748.59,Thomas Ridley & Son Ltd
Children's Services,Children's Social Care,Support Service and Management Costs,Schools Catering,Kitchen Supplies - Food and Beverages,19/04/2017,3856751,527.35,Thomas Ridley & Son Ltd
Children's Services,Children's Social Care,Support Service and Management Costs,Schools Catering,Kitchen Supplies - Food and Beverages,19/04/2017,3856753,253.30,Thomas Ridley & Son Ltd
Children's Services,Children's Social Care,Support Service and Management Costs,Schools Catering,Kitchen Supplies - Food and Beverages,19/04/2017,3856757,535.18,Thomas Ridley & Son Ltd
Children's Services,Children's Social Care,Support Service and Management Costs,Schools Catering,Kitchen Supplies - Food and Beverages,19/04/2017,3856759,716.06,Thomas Ridley & Son Ltd
Children's Services,Children's Social Care,Support Service and Management Costs,Schools Catering,Kitchen Supplies - Food and Beverages,19/04/2017,3856761,301.53,Thomas Ridley & Son Ltd
Children's Services,Children's Social Care,Support Service and Management Costs,Schools Catering,Kitchen Supplies - Food and Beverages,19/04/2017,3856771,484.81,Thomas Ridley & Son Ltd
Children's Services,Children's Social Care,Support Service and Management Costs,Schools Catering,Kitchen Supplies - Food and Beverages,19/04/2017,3856773,734.75,Thomas Ridley & Son Ltd
Children's Services,Children's Social Care,Support Service and Management Costs,Schools Catering,Kitchen Supplies - Food and Beverages,19/04/2017,3856777,349.29,Thomas Ridley & Son Ltd
Children's Services,Children's Social Care,Support Service and Management Costs,Schools Catering,Kitchen Supplies - Food and Beverages,19/04/2017,3856783,375.68,Thomas Ridley & Son Ltd
Children's Services,Children's Social Care,Support Service and Management Costs,Schools Catering,Kitchen Supplies - Food and Beverages,19/04/2017,3856785,569.12,Thomas Ridley & Son Ltd
Children's Services,Children's Social Care,Support Service and Management Costs,Schools Catering,Kitchen Supplies - Food and Beverages,19/04/2017,3856789,270.19,Thomas Ridley & Son Ltd
Children's Services,Children's Social Care,Support Service and Management Costs,Schools Catering,Kitchen Supplies - Food and Beverages,19/04/2017,3856791,378.08,Thomas Ridley & Son Ltd
Children's Services,Children's Social Care,Support Service and Management Costs,Schools Catering,Kitchen Supplies - Food and Beverages,19/04/2017,3856794,256.15,Prescott-Thomas LTD.
Children's Services,Children's Social Care,Support Service and Management Costs,Schools Catering,Kitchen Supplies - Food and Beverages,19/04/2017,3856796,770.49,Thomas Ridley & Son Ltd
Children's Services,Children's Social Care,Support Service and Management Costs,Schools Catering,Kitchen Supplies - Food and Beverages,19/04/2017,3856798,"1,146.33",Thomas Ridley & Son Ltd
Children's Services,Children's Social Care,Support Service and Management Costs,Schools Catering,Kitchen Supplies - Food and Beverages,19/04/2017,3856802,597.32,Thomas Ridley & Son Ltd
Children's Services,Children's Social Care,Support Service and Management Costs,Schools Catering,Kitchen Supplies - Food and Beverages,19/04/2017,3856804,"1,732.54",Thomas Ridley & Son Ltd
Children's Services,Children's Social Care,Support Service and Management Costs,Schools Catering,Kitchen Supplies - Food and Beverages,19/04/2017,3859755,930.43,Thomas Ridley & Son Ltd
Children's Services,Children's Social Care,Support Service and Management Costs,Schools Catering,Kitchen Supplies - Food and Beverages,19/04/2017,3859757,573.93,Thomas Ridley & Son Ltd
Children's Services,Children's Social Care,Support Service and Management Costs,Schools Catering,Kitchen Supplies - Food and Beverages,19/04/2017,3859759,294.03,Thomas Ridley & Son Ltd
Children's Services,Children's Social Care,Support Service and Management Costs,Schools Catering,Kitchen Supplies - Food and Beverages,19/04/2017,3859763,730.37,Thomas Ridley & Son Ltd
Children's Services,Children's Social Care,Support Service and Management Costs,Schools Catering,Kitchen Supplies - Food and Beverages,19/04/2017,3859768,376.75,Thomas Ridley & Son Ltd
Children's Services,Children's Social Care,Support Service and Management Costs,Schools Catering,Kitchen Supplies - Food and Beverages,19/04/2017,3859770,677.82,Thomas Ridley & Son Ltd
Children's Services,Children's Social Care,Support Service and Management Costs,Schools Catering,Kitchen Supplies - Food and Beverages,19/04/2017,3859773,"1,054.89",Thomas Ridley & Son Ltd
Children's Services,Children's Social Care,Support Service and Management Costs,Schools Catering,Kitchen Supplies - Food and Beverages,19/04/2017,3859779,"1,028.90",Thomas Ridley & Son Ltd
Children's Services,Children's Social Care,Support Service and Management Costs,Schools Catering,Kitchen Supplies - Food and Beverages,19/04/2017,3859782,363.68,Thomas Ridley & Son Ltd
Children's Services,Children's Social Care,Support Service and Management Costs,Schools Catering,Kitchen Supplies - Food and Beverages,19/04/2017,3859784,550.65,Thomas Ridley & Son Ltd
Children's Services,Children's Social Care,Support Service and Management Costs,Schools Catering,Kitchen Supplies - Food and Beverages,19/04/2017,3859787,370.88,Thomas Ridley & Son Ltd
Children's Services,Children's Social Care,Support Service and Management Costs,Schools Catering,Kitchen Supplies - Food and Beverages,19/04/2017,3859788,487.94,Thomas Ridley & Son Ltd
Children's Services,Children's Social Care,Support Service and Management Costs,Schools Catering,Kitchen Supplies - Food and Beverages,19/04/2017,3859790,"1,147.93",Thomas Ridley & Son Ltd
Children's Services,Children's Social Care,Support Service and Management Costs,Schools Catering,Kitchen Supplies - Food and Beverages,19/04/2017,3859791,262.59,Thomas Ridley & Son Ltd
Children's Services,Children's Social Care,Support Service and Management Costs,Schools Catering,Kitchen Supplies - Food and Beverages,19/04/2017,3859792,472.53,Thomas Ridley & Son Ltd
Children's Services,Children's Social Care,Support Service and Management Costs,Schools Catering,Kitchen Supplies - Food and Beverages,19/04/2017,3859793,607.73,Thomas Ridley & Son Ltd
Children's Services,Children's Social Care,Support Service and Management Costs,Schools Catering,Kitchen Supplies - Food and Beverages,19/04/2017,3861048,939.61,Thomas Ridley & Son Ltd
Children's Services,Children's Social Care,Support Service and Management Costs,Schools Catering,Kitchen Supplies - Food and Beverages,19/04/2017,3861079,344.40,Thomas Ridley & Son Ltd
Children's Services,Children's Social Care,Children Looked After,Virtual School PPG,Third Party Payments - Payments to Schools,19/04/2017,3861341,"1,200.00",Tower Hamlets College
Children's Services,Children's Social Care,Children Looked After,S23 Fam Pl P&V-F/Care,Childrens Act Section 23 - Placement Fee,19/04/2017,3861674,"1,780.29",Scope
Children's Services,Children's Social Care,Children Looked After,S23 Family Placements P&V,Childrens Act Section 23 - Placement Fee,19/04/2017,3861675,"4,871.43",Scope
Children's Services,Children's Social Care,Services for young people,Youth Service Management,SLA Services (Expenditure) - Service Level Agreements,19/04/2017,3861676,"8,332.00",Society Links
Children's Services,Education Services,Other Strategic Functions,Information & Support Services,Subscriptions - Associations,19/04/2017,3861738,"1,567.50",ADCS
Children's Services,Education Services,Other Strategic Functions,Education Psychologists GF,Staff Advertising,19/04/2017,3861742,696.50,Penna PLC
Children's Services,Children's Social Care,Children Looked After,S23-Resi-P&V/OLA-Child Home,Childrens Act Section 23 - Placement Fee,19/04/2017,3861857,"2,332.00",Horizon Residential Homes LTD
Children's Services,Children's Social Care,Support Service and Management Costs,Schools Catering,Kitchen Supplies - Food and Beverages,19/04/2017,3862093,486.25,William White Meats Ltd
Children's Services,Children's Social Care,Support Service and Management Costs,Schools Catering,Kitchen Supplies - Food and Beverages,19/04/2017,3862096,257.00,William White Meats Ltd
Children's Services,Children's Social Care,Support Service and Management Costs,Schools Catering,Kitchen Supplies - Food and Beverages,19/04/2017,3862097,267.40,William White Meats Ltd
Children's Services,Education Services,Other Strategic Functions,High Needs Academies & Free Schs,Third Party Payments - Payments to Schools,19/04/2017,3862162,"8,191.67",Medway Council
Children's Services,Education Services,Other Strategic Functions,High Needs Other Boroughs,Third Party Payments - Payments to Schools,19/04/2017,3862193,880.00,London Borough Of Redbridge
Children's Services,Cultural and Related Services,Open Spaces,Mile End Park,Contract Cleaning,19/04/2017,3864211,290.00,Wetton Cleaning Services LTD
Children's Services,Cultural and Related Services,Open Spaces,Mile End Park,Contract Cleaning,19/04/2017,3864211,290.00,Wetton Cleaning Services LTD
Children's Services,Education Services,Early Years,Around Poplar CC,Contract Cleaning,19/04/2017,3864224,367.80,Wetton Cleaning Services LTD
Children's Services,Education Services,Early Years,Overland CC,Educational/Training Supplies - Resources,19/04/2017,3864246,"1,995.00",COMMUNITY PRODUCTS (UK) LTD
Children's Services,Children's Social Care,Children Looked After,S23-Other-Semi-Ind. Unit,Childrens Act Section 23 - Placement Fee,19/04/2017,3864317,290.00,Alpha Care Service Ltd
Children's Services,Children's Social Care,Children Looked After,S23-Other-Semi-Ind. Unit,Childrens Act Section 23 - Placement Fee,19/04/2017,3864360,"3,985.67",Alpha Care Service Ltd
Children's Services,Children's Social Care,Children Looked After,S23 Fam Pl P&V-F/Care,Childrens Act Section 23 - Placement Fee,19/04/2017,3864792,"5,314.29",Scope
Children's Services,Education Services,Secondary Schools,PFI Hldg Account-Grouped Schoo,Repairs and Maintenance - Responsive - Repair & Maintenance,19/04/2017,3864827,"2,701.75",Tower Hamlets Schools LTD
Children's Services,Education Services,Secondary Schools,PFI Hldg Account-Grouped Schoo,Repairs and Maintenance - Responsive - Repair & Maintenance,19/04/2017,3864828,"2,701.75",Tower Hamlets Schools LTD
Children's Services,Education Services,Secondary Schools,PFI Hldg Account-Grouped Schoo,Payments to Private Contractors - Other Contractors,19/04/2017,3864829,"1,218,372.77",Tower Hamlets Schools LTD
Children's Services,Children's Social Care,Children Looked After,Virtual School PPG,Agency Staff - Associations,19/04/2017,3864870,916.00,Academics ltd
Children's Services,Children's Social Care,Children Looked After,Virtual School PPG,Agency Staff - Associations,19/04/2017,3864871,916.00,Academics ltd
Children's Services,Children's Social Care,Children Looked After,Virtual School PPG,Agency Staff - Associations,19/04/2017,3864872,"1,145.00",Academics ltd
Children's Services,Children's Social Care,Children Looked After,Virtual School PPG,Agency Staff - Associations,19/04/2017,3864873,"1,145.00",Academics ltd
Children's Services,Children's Social Care,Children Looked After,Virtual School PPG,Agency Staff - Associations,19/04/2017,3864874,916.00,Academics ltd
Children's Services,Children's Social Care,Children Looked After,Virtual School PPG,Agency Staff - Associations,19/04/2017,3864875,916.00,Academics ltd
Children's Services,Education Services,Other Strategic Functions,High Needs FE Colleges,Third Party Payments - Payments to Schools,19/04/2017,3865403,"6,426.04",Newham College of Further Education
Children's Services,Education Services,Other Strategic Functions,High Needs FE Colleges,Third Party Payments - Payments to Schools,19/04/2017,3865404,"5,225.14",Newham College of Further Education
Children's Services,Education Services,Other Strategic Functions,Project Costs and Training,Computing - Purchase of Software,19/04/2017,3865656,"3,196.00",Atomwide Ltd
Children's Services,Children's Social Care,Other Children's and Family Services,Permanent Placements,Services - Professional Fees - Legal Fees/Expenses,19/04/2017,3867766,"1,624.00",Chins Assessments Services Ltd
Children's Services,Education Services,Other Strategic Functions,High Needs FE Colleges,Third Party Payments - Payments to Schools,19/04/2017,3867960,"6,989.98",Newham College of Further Education
Children's Services,Education Services,Other Strategic Functions,High Needs FE Colleges,Third Party Payments - Payments to Schools,19/04/2017,3867961,"6,426.04",Newham College of Further Education
Children's Services,Education Services,Other Strategic Functions,High Needs FE Colleges,Third Party Payments - Payments to Schools,19/04/2017,3867962,709.10,Newham College of Further Education
Children's Services,Children's Social Care,Services for young people,Youth Service Management,Events & Exhibition Supplies,19/04/2017,3868128,500.00,Redacted Section 40 FOI ACT
Children's Services,Education Services,Secondary Schools,PFI Hldg Account-Grouped Schoo,Repairs and Maintenance - Responsive - Buildings,19/04/2017,3868221,"1,889.09",Tower Hamlets Schools LTD
Children's Services,Education Services,Secondary Schools,PFI Hldg Account-Grouped Schoo,Repairs and Maintenance - Responsive - Buildings,19/04/2017,3868222,435.06,Tower Hamlets Schools LTD
Children's Services,Education Services,Secondary Schools,PFI Hldg Account-Grouped Schoo,Repairs and Maintenance - Responsive - Buildings,19/04/2017,3868224,709.84,Tower Hamlets Schools LTD
Children's Services,Education Services,Secondary Schools,PFI Hldg Account-Grouped Schoo,Repairs and Maintenance - Responsive - Buildings,19/04/2017,3868225,"1,262.80",Tower Hamlets Schools LTD
Children's Services,Education Services,Secondary Schools,PFI Hldg Account-Grouped Schoo,Repairs and Maintenance - Responsive - Buildings,19/04/2017,3868226,"2,138.67",Tower Hamlets Schools LTD
Children's Services,No Service Specified,No Division Specified,Capital-Minor Works (SC),Building Works - Main Works,19/04/2017,3868227,"2,896.60",Tower Hamlets Schools LTD
Children's Services,Education Services,Secondary Schools,PFI Hldg Account-Grouped Schoo,Repairs and Maintenance - Responsive - Buildings,19/04/2017,3868229,520.93,Tower Hamlets Schools LTD
Children's Services,Education Services,Secondary Schools,PFI Hldg Account-Grouped Schoo,Repairs and Maintenance - Responsive - Buildings,19/04/2017,3868230,"1,282.29",Tower Hamlets Schools LTD
Children's Services,Children's Social Care,Children Looked After,S23 Fam Pl P&V-F/Care,Childrens Act Section 23 - Placement Fee,19/04/2017,3868232,"2,157.83",Affinity Fostering Services Ltd
Children's Services,Education Services,Other Strategic Functions,Special Education Needs DSG,Third Party Payments - Payments to Schools,19/04/2017,3869204,"28,531.87",Kisimul Group Ltd
Children's Services,Children's Social Care,Children Looked After,S23 18+ & Relevnt Young People,Childrens Act Section 23 - Placement Fee,19/04/2017,3869204,"28,531.88",Kisimul Group Ltd
Children's Services,Children's Social Care,Family Support Services,IPST S17 NRPF,Childrens Act Section 17 - Other Placements Bed & Breakfast,19/04/2017,3869280,"1,240.00",Apolonia Property Services (Exodus Housing)
Children's Services,Children's Social Care,Family Support Services,CNN Pool: Joint Family Support,Educational/Training Supplies - Resources,19/04/2017,3869352,594.67,RNIB
Children's Services,Children's Social Care,Family Support Services,IPST S17 NRPF,Childrens Act Section 17 - Other Placements Bed & Breakfast,19/04/2017,3869365,"1,240.00",Apolonia Property Services (Exodus Housing)
Children's Services,Children's Social Care,Family Support Services,IPST S17 NRPF,Childrens Act Section 17 - Other Placements Bed & Breakfast,19/04/2017,3869390,"1,054.00",Apolonia Property Services (Exodus Housing)
Children's Services,Children's Social Care,Family Support Services,IPST S17 NRPF,Childrens Act Section 17 - Other Placements Bed & Breakfast,19/04/2017,3869401,"1,240.00",Apolonia Property Services (Exodus Housing)
Children's Services,Children's Social Care,Services for young people,Outdoor,Educational/Training Supplies - Curriculum Visits/Activities,19/04/2017,3869577,"4,643.00",Access Expeditions Ltd
Children's Services,Cultural and Related Services,Recreation & Sport,Mayors Cup,Recreational Activities,19/04/2017,3869603,"1,200.00",BANGLADESH FOOTBALL ASSOCIATION
Children's Services,Education Services,Other Strategic Functions,Special Education Needs DSG,Third Party Payments - Payments to Schools,19/04/2017,3871134,"31,264.09",NAS Services Ltd
Children's Services,Children's Social Care,Children Looked After,S23-Resi-P&V/OLA-Boarding Sch,Childrens Act Section 23 - Placement Fee,19/04/2017,3871134,"31,264.09",NAS Services Ltd
Children's Services,Children's Social Care,Children Looked After,Fostering Support,Events & Exhibition Supplies,19/04/2017,3871175,495.00,TONY POOLE DISCOS
Children's Services,Children's Social Care,Support Service and Management Costs,Schools Catering,Kitchen Supplies - Packaging,19/04/2017,3871200,253.86,Tri-Star Packaging Supplies LTD
Children's Services,Children's Social Care,Support Service and Management Costs,Schools Catering,Kitchen Supplies - Packaging,19/04/2017,3871230,335.30,Tri-Star Packaging Supplies LTD
Children's Services,Children's Social Care,Support Service and Management Costs,Schools Catering,Kitchen Supplies - Packaging,19/04/2017,3871260,379.74,Tri-Star Packaging Supplies LTD
Children's Services,Children's Social Care,Support Service and Management Costs,Schools Catering,Kitchen Supplies - Packaging,19/04/2017,3871274,600.79,Tri-Star Packaging Supplies LTD
Children's Services,Children's Social Care,Support Service and Management Costs,Schools Catering,Kitchen Supplies - Packaging,19/04/2017,3871278,326.69,Tri-Star Packaging Supplies LTD
Children's Services,Children's Social Care,Support Service and Management Costs,Schools Catering,Kitchen Supplies - Packaging,19/04/2017,3871286,288.78,Tri-Star Packaging Supplies LTD
Children's Services,Children's Social Care,Family Support Services,CNN Pool: Joint Family Support,Social Care - Homecare,19/04/2017,3871404,257.25,Allied Healthcare Group LTD
Children's Services,Children's Social Care,Children Looked After,S23 Fam Pl P&V-F/Care,Childrens Act Section 23 - Placement Fee,19/04/2017,3871445,"-1,648.00",Time For Children
Children's Services,Children's Social Care,Children Looked After,S23 Fam Pl P&V-F/Care,Childrens Act Section 23 - Placement Fee,19/04/2017,3871471,"-1,648.00",Time For Children
Children's Services,Children's Social Care,Children Looked After,S23 Fam Pl P&V-F/Care,Childrens Act Section 23 - Placement Fee,19/04/2017,3871479,"-1,648.00",Time For Children
Children's Services,Children's Social Care,Children Looked After,S23 Fam Pl P&V-F/Care,Childrens Act Section 23 - Placement Fee,19/04/2017,3871486,"-1,648.00",Time For Children
Children's Services,Children's Social Care,Children Looked After,S23 Fam Pl P&V-F/Care,Childrens Act Section 23 - Placement Fee,19/04/2017,3871490,"1,957.00",Time For Children
Children's Services,Children's Social Care,Children Looked After,S23 Fam Pl P&V-F/Care,Childrens Act Section 23 - Placement Fee,19/04/2017,3871494,"1,957.00",Time For Children
Children's Services,Children's Social Care,Children Looked After,S23 Fam Pl P&V-F/Care,Childrens Act Section 23 - Placement Fee,19/04/2017,3871498,"1,957.00",Time For Children
Children's Services,Children's Social Care,Children Looked After,S23 Fam Pl P&V-F/Care,Childrens Act Section 23 - Placement Fee,19/04/2017,3871501,"1,957.00",Time For Children
Children's Services,Education Services,Management and Support Services,Learning & Achievm't M&A GF,Services - Professional Fees - Legal Fees/Expenses,19/04/2017,3873152,250.00,Linklaw Solictors
Children's Services,Cultural and Related Services,Recreation & Sport,"Poplar Baths		",Payments to Private Contractors - Other Contractors,21/04/2017,3843910,"123,645.89",Folera Ltd
Children's Services,Education Services,Secondary Schools,PFI Hldg Account-Grouped Schoo,Repairs and Maintenance - Responsive - Buildings,21/04/2017,3856551,"76,029.37",Tower Hamlets Schools LTD
Children's Services,Education Services,Other Strategic Functions,Empty Properties,Repairs and Maintenance - Responsive - Repair & Maintenance,21/04/2017,3856555,"41,875.32",Tower Hamlets Schools LTD
Children's Services,Education Services,Other Strategic Functions,Empty Properties,Repairs and Maintenance - Responsive - Repair & Maintenance,21/04/2017,3856556,"26,854.82",Tower Hamlets Schools LTD
Children's Services,Children's Social Care,Commissioning and Social Work,Children & Families (RLH),Photocopier Charges - Consumables,21/04/2017,3856605,336.00,Supplies Team Ltd
Children's Services,Education Services,Early Years,Meath Gardens CC,Kitchen Supplies - Crockery and Hardware,21/04/2017,3860962,668.26,The Maintenance Supply Co Ltd
Children's Services,Children's Social Care,Support Service and Management Costs,Schools Catering,Kitchen Supplies - Food and Beverages,21/04/2017,3861118,-337.23,Thomas Ridley & Son Ltd
Children's Services,Children's Social Care,Support Service and Management Costs,Schools Catering,Kitchen Supplies - Food and Beverages,21/04/2017,3861132,-515.45,Thomas Ridley & Son Ltd
Children's Services,Children's Social Care,Support Service and Management Costs,Schools Catering,Kitchen Supplies - Food and Beverages,21/04/2017,3861141,-957.65,Thomas Ridley & Son Ltd
Children's Services,Children's Social Care,Support Service and Management Costs,Schools Catering,Kitchen Supplies - Food and Beverages,21/04/2017,3861160,271.34,Thomas Ridley & Son Ltd
Children's Services,Children's Social Care,Support Service and Management Costs,Schools Catering,Kitchen Supplies - Food and Beverages,21/04/2017,3861176,429.23,Thomas Ridley & Son Ltd
Children's Services,Children's Social Care,Support Service and Management Costs,Schools Catering,Kitchen Supplies - Food and Beverages,21/04/2017,3861179,267.51,Thomas Ridley & Son Ltd
Children's Services,Children's Social Care,Support Service and Management Costs,Schools Catering,Kitchen Supplies - Food and Beverages,21/04/2017,3861183,293.20,Thomas Ridley & Son Ltd
Children's Services,Children's Social Care,Support Service and Management Costs,Schools Catering,Kitchen Supplies - Food and Beverages,21/04/2017,3861186,753.07,Thomas Ridley & Son Ltd
Children's Services,Children's Social Care,Support Service and Management Costs,Schools Catering,Kitchen Supplies - Food and Beverages,21/04/2017,3861189,696.95,Thomas Ridley & Son Ltd
Children's Services,Children's Social Care,Support Service and Management Costs,Schools Catering,Kitchen Supplies - Food and Beverages,21/04/2017,3861193,696.53,Thomas Ridley & Son Ltd
Children's Services,Children's Social Care,Support Service and Management Costs,Schools Catering,Kitchen Supplies - Food and Beverages,21/04/2017,3861198,"1,274.89",Thomas Ridley & Son Ltd
Children's Services,Children's Social Care,Support Service and Management Costs,Schools Catering,Kitchen Supplies - Food and Beverages,21/04/2017,3861200,798.75,Thomas Ridley & Son Ltd
Children's Services,Children's Social Care,Support Service and Management Costs,Schools Catering,Kitchen Supplies - Food and Beverages,21/04/2017,3861202,331.98,Thomas Ridley & Son Ltd
Children's Services,Children's Social Care,Support Service and Management Costs,Schools Catering,Kitchen Supplies - Food and Beverages,21/04/2017,3861208,883.97,Thomas Ridley & Son Ltd
Children's Services,Children's Social Care,Support Service and Management Costs,Schools Catering,Kitchen Supplies - Food and Beverages,21/04/2017,3861209,487.72,Thomas Ridley & Son Ltd
Children's Services,Children's Social Care,Support Service and Management Costs,Schools Catering,Kitchen Supplies - Food and Beverages,21/04/2017,3861210,333.65,Thomas Ridley & Son Ltd
Children's Services,Children's Social Care,Support Service and Management Costs,Schools Catering,Uniforms & Clothing,21/04/2017,3861312,"6,779.40",The Maintenance Supply Co Ltd
Children's Services,Children's Social Care,Children Looked After,Virtual School PPG,Third Party Payments - Payments to Schools,21/04/2017,3861399,500.00,PORTICO ACADEMY TRUST T/A WEST LEIGH JUNIOR SCHOOL
Children's Services,Children's Social Care,Children Looked After,Virtual School PPG,Third Party Payments - Payments to Schools,21/04/2017,3861412,500.00,Belmont Park Special School
Children's Services,Education Services,Other Strategic Functions,High Needs Academies & Free Schs,Third Party Payments - Payments to Schools,21/04/2017,3861414,"55,303.85",City Gateway 14-19 Provision
Children's Services,Children's Social Care,Support Service and Management Costs,Schools Catering,Kitchen Supplies - Food and Beverages,21/04/2017,3861580,257.07,Prescott-Thomas LTD.
Children's Services,Education Services,Other Strategic Functions,High Needs Academies & Free Schs,Third Party Payments - Payments to Schools,21/04/2017,3861701,"14,710.31",Solebay Primary a Paradigm Academy
Children's Services,Children's Social Care,Children Looked After,S23-Resi-P&V/OLA-Sec Acc-Wel,Social Care - Day Care,21/04/2017,3861717,"9,588.00",Swanwick Lodge Hampshire County Council
Children's Services,Cultural and Related Services,Recreation & Sport,Mayors Cup,Recreational Activities,21/04/2017,3861739,"1,536.60",Love2Reward
Children's Services,Children's Social Care,Support Service and Management Costs,Welfare Catering,Kitchen Supplies - Food and Beverages,21/04/2017,3861846,331.93,William White Meats Ltd
Children's Services,Children's Social Care,Support Service and Management Costs,Welfare Catering,Kitchen Supplies - Food and Beverages,21/04/2017,3861860,489.71,William White Meats Ltd
Children's Services,Children's Social Care,Support Service and Management Costs,Schools Catering,Kitchen Supplies - Food and Beverages,21/04/2017,3862111,268.84,William White Meats Ltd
Children's Services,Children's Social Care,Support Service and Management Costs,Schools Catering,Kitchen Supplies - Food and Beverages,21/04/2017,3862123,544.79,William White Meats Ltd
Children's Services,Children's Social Care,Support Service and Management Costs,Schools Catering,Kitchen Supplies - Food and Beverages,21/04/2017,3862124,692.22,William White Meats Ltd
Children's Services,Children's Social Care,Support Service and Management Costs,Schools Catering,Kitchen Supplies - Food and Beverages,21/04/2017,3862126,301.52,William White Meats Ltd
Children's Services,Children's Social Care,Support Service and Management Costs,Schools Catering,Kitchen Supplies - Food and Beverages,21/04/2017,3862129,321.00,William White Meats Ltd
Children's Services,Children's Social Care,Support Service and Management Costs,Schools Catering,Kitchen Supplies - Food and Beverages,21/04/2017,3862131,770.72,William White Meats Ltd
Children's Services,Children's Social Care,Support Service and Management Costs,Schools Catering,Kitchen Supplies - Food and Beverages,21/04/2017,3862132,389.30,William White Meats Ltd
Children's Services,Children's Social Care,Support Service and Management Costs,Schools Catering,Kitchen Supplies - Food and Beverages,21/04/2017,3862133,285.99,William White Meats Ltd
Children's Services,Children's Social Care,Support Service and Management Costs,Schools Catering,Kitchen Supplies - Food and Beverages,21/04/2017,3862135,532.57,William White Meats Ltd
Children's Services,Children's Social Care,Support Service and Management Costs,Schools Catering,Kitchen Supplies - Food and Beverages,21/04/2017,3862144,468.93,William White Meats Ltd
Children's Services,Children's Social Care,Support Service and Management Costs,Schools Catering,Kitchen Supplies - Food and Beverages,21/04/2017,3862147,815.33,William White Meats Ltd
Children's Services,Children's Social Care,Support Service and Management Costs,Schools Catering,Kitchen Supplies - Food and Beverages,21/04/2017,3862150,"1,093.88",William White Meats Ltd
Children's Services,Children's Social Care,Children Looked After,Virtual School PPG,Third Party Payments - Payments to Schools,21/04/2017,3862202,950.00,BRACKENBURY PRIMARY SCHOOL
Children's Services,Children's Social Care,Children Looked After,Virtual School PPG,Third Party Payments - Payments to Schools,21/04/2017,3864257,700.00,Hazelwick Comprehensive School
Children's Services,Education Services,Other Strategic Functions,High Needs FE Colleges,Third Party Payments - Payments to Schools,21/04/2017,3864264,"193,346.15",Tower Hamlets College
Children's Services,Children's Social Care,Children's and Young People's Safety,Community Safeguarding,Third Party Payments - Other Establishments,21/04/2017,3864284,"1,281.50",East London Mosque
Children's Services,Education Services,Other Strategic Functions,Soanes Centre,Repairs and Maintenance - Responsive - Repair & Maintenance,21/04/2017,3864288,860.00,Raptor Services Ltd
Children's Services,Education Services,Early Years,Children Centre Central Team,Training Expenses - Staff External Training (UK Based),21/04/2017,3864325,"4,300.00",National Literacy Trust
Children's Services,Education Services,Other Strategic Functions,Non-Statemented Ed.Placemts,Third Party Payments - Voluntary Associations,21/04/2017,3864361,"16,833.00",Kibble Education and Care Centre
Children's Services,Children's Social Care,Children Looked After,S23-Resi-P&V/OLA-Sec Acc-Wel,Childrens Act Section 23 - Placement Fee,21/04/2017,3864361,"16,833.00",Kibble Education and Care Centre
Children's Services,Education Services,Services to Young People and Other Community Learners,Further and Higher Education,Education Trust - Grant,21/04/2017,3864831,333.00,Tower Hamlets College
Children's Services,Children's Social Care,Children Looked After,S23 Family Placements P&V,Childrens Act Section 23 - Placement Fee,21/04/2017,3864877,"8,357.14",West Sussex County Council
Children's Services,Children's Social Care,Service Strategy,89 CA Sec 17 Chld in Need BOW,Social Care - Prevention & Support,21/04/2017,3864880,"2,089.00",A. A. Agency Ltd
Children's Services,Children's Social Care,Children Looked After,Virtual School PPG,Third Party Payments - Payments to Schools,21/04/2017,3864950,500.00,Seven Kings High School
